Workbook

Sheet Carátula
D16: UNIVERSIDAD DE CIENCIAS EMPRESARIALES Y SOCIALES
D17: FACULTAD DE CIENCIAS ECONÓMICAS
D18: Licenciatura en Administración de Empresas
D19: Planeamiento Estratégico de Negocios
A28: Cuerpo Docente:
A29: Profesor Titular Dr. Obdulio Durán
A31: Profesora Adjunta Eliana N, Ungra.
A33: Tutor: Dr. Obdulio Durán
A36: Autores:
A37: Bárbara Patricia Gordon – N.º Matrícula: 73.085
A38: Marrero, Daniela - N.º Matrícula: 113.315
A39: Aramburu, Gastón - N.º Matrícula: 56.609
D42: Año 2021 - Sede Centro

Sheet Hoja de datos
B2: Políticas | E2: Pronóstico de ventas
B3: Política de cobros | C3: 30 | E3: Concepto | F3: Período 1 | G3: Período 2 | H3: Período 3 | I3: Período 4 | J3: Período 5 | K3: Período 6 | L3: Período 7 | M3: Período 8
B4: Política de pagos | C4: 30 | E4: Tamaño de mercado (Q) | F4: 220,000 | G4: =F4*1.1 -> 242,000 | H4: 266,200 | I4: 292,820 | J4: 322,102 | K4: 354,312 | L4: 389,743 | M4: 428,718
B5: Política de inventarios | C5: Just in Time | E5: Market share | F5: 1.5% | G5: 3% | H5: 5% | I5: 7% | J5: 8% | K5: 9% | L5: 10% | M5: 11%
E6: Cantidad demandada | F6: =F4*F5 -> 3,300 | G6: 7,260 | H6: 13,310 | I6: 20,497 | J6: 25,768 | K6: 31,888 | L6: 38,974 | M6: 47,159
B7: Costos y precios
B8: Precio unitario | C8: $ 17,600.00
B9: Descuento por canales | C9: 15%
B10: Costo insumos | C10: $ 6,200.00 | E10: Sueldos y costos laborales
E11: Concepto | F11: Período 1 | G11: Período 2 | H11: Período 3 | I11: Período 4 | J11: Período 5 | K11: Período 6 | L11: Período 7 | M11: Período 8
B12: Alícuotas impositivas | E12: Sueldos y costos laborales administrativos | F12: $ 1,092,798 | G12: =F12*1.05 -> $ 1,147,438 | H12: $ 1,204,810 | I12: $ 1,265,050 | J12: $ 1,328,303 | K12: $ 1,394,718 | L12: $ 1,464,454 | M12: $ 1,537,677 | N12: Incluye Gerente General, Jefe Administración y 4 administrativos
B13: IVA | C13: 21% | E13: Sueldos y costos laborales comerciales | F13: $ 1,786,638 | G13: =F13*1.05 -> $ 1,875,970 | H13: $ 1,969,768 | I13: $ 2,068,257 | J13: $ 2,171,670 | K13: $ 2,280,253 | L13: $ 2,394,266 | M13: $ 2,513,979 | N13: Incluye sueldos Jefe comercial y 10 vendedores
B14: IIBB | C14: 3% | E14: Sueldos y costos laborales operativos | F14: $ 1,613,178 | G14: =F14*1.05 -> $ 1,693,837 | H14: $ 1,778,529 | I14: $ 1,867,455 | J14: $ 1,960,828 | K14: $ 2,058,869 | L14: $ 2,161,813 | M14: $ 2,269,903 | N14: Incluye sueldos Jefe Desarrollo y 10 operarios
B15: Ganancias | C15: 35%
B17: Inversión Inicial
B18: Propia (USD) | C18: $ 1,000,000
B19: De terceros (USD) | C19: 0
B20: Cotizacion USD (1) | C20: $ 94.27
B21: Inversion total (ARS) | C21: =+SUM(C18:C19)*C20 -> $ 94,270,000
B23: (1) Recuperado de http://www.bcra.gob.ar/PublicacionesEstadisticas/Cotizaciones_por_fecha_2.asp

Sheet Comando
B2: ANÁLISIS DE LAS VARIACIONES
B3: Variaciones | C3: Período 1 | D3: Período 2 | E3: Período 3 | F3: Período 4 | G3: Período 5 | H3: Período 6 | I3: Período 7 | J3: Período 8
B4: Cantidad demandada | C4: 1 | D4: 1 | E4: 1 | F4: 1 | G4: 1 | H4: 1 | I4: 1 | J4: 1
B5: Precio de venta | C5: 1 | D5: 1 | E5: 1 | F5: 1 | G5: 1 | H5: 1 | I5: 1 | J5: 1
B6: Costo de insumos | C6: 1 | D6: 1 | E6: 1 | F6: 1 | G6: 1 | H6: 1 | I6: 1 | J6: 1
B7: Salarios | C7: 1 | D7: 1 | E7: 1 | F7: 1 | G7: 1 | H7: 1 | I7: 1 | J7: 1
B10: Manual de usuario:
B12: Para realizar análisis de sensibilidad se debe modificar las celdas de color:
B14: Para ver reflejados aumentos en las variables, se deberán ingresar valores mayores a uno. Por ejemplo: 1,2 significa un aumento del 20%.
B15: Si desea una disminución de las variables, los valores ingresados deberán ser menores a uno. Por ejemplo: 0,8 significa una disminución del 20%.
B16: Para restablecer el comando, deberá ingresar el número 1 en todos los valores a operar, o bien hacer click en el botón Restablecer.

Sheet Datos ajustados (hidden)
B2: Costos y precios unitarios
B3: Concepto | C3: Período 1 | D3: Período 2 | E3: Período 3 | F3: Período 4 | G3: Período 5 | H3: Período 6 | I3: Período 7 | J3: Período 8
B4: Precio unitario | C4: ='Hoja de datos'!$C$8*Comando!C5 -> $ 17,600 | D4: ='Hoja de datos'!$C$8*Comando!D5 -> $ 17,600 | E4: ='Hoja de datos'!$C$8*Comando!E5 -> $ 17,600 | F4: ='Hoja de datos'!$C$8*Comando!F5 -> $ 17,600 | G4: ='Hoja de datos'!$C$8*Comando!G5 -> $ 17,600 | H4: ='Hoja de datos'!$C$8*Comando!H5 -> $ 17,600 | I4: ='Hoja de datos'!$C$8*Comando!I5 -> $ 17,600 | J4: ='Hoja de datos'!$C$8*Comando!J5 -> $ 17,600
B5: Descuento a los canales | C5: ='Hoja de datos'!$C$9 -> 15% | D5: ='Hoja de datos'!$C$9 -> 15% | E5: ='Hoja de datos'!$C$9 -> 15% | F5: ='Hoja de datos'!$C$9 -> 15% | G5: ='Hoja de datos'!$C$9 -> 15% | H5: ='Hoja de datos'!$C$9 -> 15% | I5: ='Hoja de datos'!$C$9 -> 15% | J5: ='Hoja de datos'!$C$9 -> 15%
B6: Costo insumos | C6: ='Hoja de datos'!$C$10*Comando!C6 -> $ 6,200 | D6: ='Hoja de datos'!$C$10*Comando!D6 -> $ 6,200 | E6: ='Hoja de datos'!$C$10*Comando!E6 -> $ 6,200 | F6: ='Hoja de datos'!$C$10*Comando!F6 -> $ 6,200 | G6: ='Hoja de datos'!$C$10*Comando!G6 -> $ 6,200 | H6: ='Hoja de datos'!$C$10*Comando!H6 -> $ 6,200 | I6: ='Hoja de datos'!$C$10*Comando!I6 -> $ 6,200 | J6: ='Hoja de datos'!$C$10*Comando!J6 -> $ 6,200
B8: Cantidad demandada
B9: Concepto | C9: Período 1 | D9: Período 2 | E9: Período 3 | F9: Período 4 | G9: Período 5 | H9: Período 6 | I9: Período 7 | J9: Período 8
B10: Cantidad demandada | C10: ='Hoja de datos'!F6*Comando!C4 -> 3,300 | D10: ='Hoja de datos'!G6*Comando!D4 -> 7,260 | E10: ='Hoja de datos'!H6*Comando!E4 -> 13,310 | F10: ='Hoja de datos'!I6*Comando!F4 -> 20,497 | G10: ='Hoja de datos'!J6*Comando!G4 -> 25,768 | H10: ='Hoja de datos'!K6*Comando!H4 -> 31,888 | I10: ='Hoja de datos'!L6*Comando!I4 -> 38,974 | J10: ='Hoja de datos'!M6*Comando!J4 -> 47,159
B12: Sueldos y costos laborales
B13: Concepto | C13: Período 1 | D13: Período 2 | E13: Período 3 | F13: Período 4 | G13: Período 5 | H13: Período 6 | I13: Período 7 | J13: Período 8
B14: Sueldos y costos laborales administrativos | C14: ='Hoja de datos'!F12*Comando!C7 -> $ 1,092,798 | D14: ='Hoja de datos'!G12*Comando!D7 -> $ 1,147,438 | E14: ='Hoja de datos'!H12*Comando!E7 -> $ 1,204,810 | F14: ='Hoja de datos'!I12*Comando!F7 -> $ 1,265,050 | G14: ='Hoja de datos'!J12*Comando!G7 -> $ 1,328,303 | H14: ='Hoja de datos'!K12*Comando!H7 -> $ 1,394,718 | I14: ='Hoja de datos'!L12*Comando!I7 -> $ 1,464,454 | J14: ='Hoja de datos'!M12*Comando!J7 -> $ 1,537,677
B15: Sueldos y costos laborales comerciales | C15: ='Hoja de datos'!F13*Comando!C7 -> $ 1,786,638 | D15: ='Hoja de datos'!G13*Comando!D7 -> $ 1,875,970 | E15: ='Hoja de datos'!H13*Comando!E7 -> $ 1,969,768 | F15: ='Hoja de datos'!I13*Comando!F7 -> $ 2,068,257 | G15: ='Hoja de datos'!J13*Comando!G7 -> $ 2,171,670 | H15: ='Hoja de datos'!K13*Comando!H7 -> $ 2,280,253 | I15: ='Hoja de datos'!L13*Comando!I7 -> $ 2,394,266 | J15: ='Hoja de datos'!M13*Comando!J7 -> $ 2,513,979
B16: Sueldos y costos laborales operativos | C16: ='Hoja de datos'!F14*Comando!C7 -> $ 1,613,178 | D16: ='Hoja de datos'!G14*Comando!D7 -> $ 1,693,837 | E16: ='Hoja de datos'!H14*Comando!E7 -> $ 1,778,529 | F16: ='Hoja de datos'!I14*Comando!F7 -> $ 1,867,455 | G16: ='Hoja de datos'!J14*Comando!G7 -> $ 1,960,828 | H16: ='Hoja de datos'!K14*Comando!H7 -> $ 2,058,869 | I16: ='Hoja de datos'!L14*Comando!I7 -> $ 2,161,813 | J16: ='Hoja de datos'!M14*Comando!J7 -> $ 2,269,903

Sheet Cash Flow Proyectado
B2: CASH FLOW PROYECTADO MONEDA NOMINAL
C3: Período 0 | D3: Período 1 | E3: Período 2 | F3: Período 3 | G3: Período 4 | H3: Período 5 | I3: Período 6 | J3: Período 7 | K3: Período 8
B5: Modelo de Ingresos
B7: Cobranzas | C7: 0 | D7: ='Subp. Ventas y Cobros'!G147 -> $ 52,567,046 | E7: ='Subp. Ventas y Cobros'!H147 -> $ 126,758,264 | F7: ='Subp. Ventas y Cobros'!I147 -> $ 233,704,327 | G7: ='Subp. Ventas y Cobros'!J147 -> $ 364,145,072 | H7: ='Subp. Ventas y Cobros'!K147 -> $ 460,614,363 | I7: ='Subp. Ventas y Cobros'!L147 -> $ 566,147,528 | J7: ='Subp. Ventas y Cobros'!M147 -> $ 692,670,714 | K7: ='Subp. Ventas y Cobros'!N147 -> $ 838,837,062
B8: Total Ingresos | C8: =SUM(C7) -> 0 | D8: $ 52,567,046 | E8: $ 126,758,264 | F8: $ 233,704,327 | G8: $ 364,145,072 | H8: $ 460,614,363 | I8: $ 566,147,528 | J8: $ 692,670,714 | K8: $ 838,837,062
B10: Modelo Egresos
B12: Pago a proveedores | C12: 0 | D12: ='Subp. Compras y Pagos'!G147 -> $ 21,785,808 | E12: ='Subp. Compras y Pagos'!H147 -> $ 52,533,505 | F12: ='Subp. Compras y Pagos'!I147 -> $ 96,856,071 | G12: ='Subp. Compras y Pagos'!J147 -> $ 150,915,738 | H12: ='Subp. Compras y Pagos'!K147 -> $ 190,896,327 | I12: ='Subp. Compras y Pagos'!L147 -> $ 234,633,334 | J12: ='Subp. Compras y Pagos'!M147 -> $ 287,069,413 | K12: ='Subp. Compras y Pagos'!N147 -> $ 347,646,376
B13: Gastos de Estructura | C13: 0 | D13: ='Subp. Gastos'!C17 -> $ 3,249,582 | E13: ='Subp. Gastos'!D17 -> $ 4,075,861 | F13: ='Subp. Gastos'!E17 -> $ 4,134,954 | G13: ='Subp. Gastos'!F17 -> $ 4,197,002 | H13: ='Subp. Gastos'!G17 -> $ 4,262,152 | I13: ='Subp. Gastos'!H17 -> $ 4,330,559 | J13: ='Subp. Gastos'!I17 -> $ 4,402,387 | K13: ='Subp. Gastos'!J17 -> $ 4,477,807
B14: Gastos Operativos | C14: 0 | D14: ='Subp. Gastos'!C25 -> $ 11,961,573 | E14: ='Subp. Gastos'!D25 -> $ 12,044,652 | F14: ='Subp. Gastos'!E25 -> $ 12,131,885 | G14: ='Subp. Gastos'!F25 -> $ 12,223,479 | H14: ='Subp. Gastos'!G25 -> $ 12,319,653 | I14: ='Subp. Gastos'!H25 -> $ 12,420,635 | J14: ='Subp. Gastos'!I25 -> $ 12,526,667 | K14: ='Subp. Gastos'!J25 -> $ 12,638,001
B15: Gastos Comerciales | C15: 0 | D15: ='Subp. Gastos'!C34 -> $ 6,524,354 | E15: ='Subp. Gastos'!D34 -> $ 16,662,920 | F15: ='Subp. Gastos'!E34 -> $ 28,859,134 | G15: ='Subp. Gastos'!F34 -> $ 43,484,945 | H15: ='Subp. Gastos'!G34 -> $ 53,754,233 | I15: ='Subp. Gastos'!H34 -> $ 65,839,573 | J15: ='Subp. Gastos'!I34 -> $ 80,029,506 | K15: ='Subp. Gastos'!J34 -> $ 96,400,403
B16: Gastos Financieros | C16: 0 | D16: ='Subp. Gastos'!C40 -> $ 220,000 | E16: ='Subp. Gastos'!D40 -> $ 220,000 | F16: ='Subp. Gastos'!E40 -> $ 220,000 | G16: ='Subp. Gastos'!F40 -> $ 220,000 | H16: ='Subp. Gastos'!G40 -> $ 220,000 | I16: ='Subp. Gastos'!H40 -> $ 220,000 | J16: ='Subp. Gastos'!I40 -> $ 220,000 | K16: ='Subp. Gastos'!J40 -> $ 220,000
B17: Impuestos | C17: 0 | D17: =SUM(D18:D20) -> $ 6,645,514 | E17: $ 16,024,750 | F17: $ 36,928,647 | G17: $ 66,285,237 | H17: $ 94,444,830 | I17: $ 119,638,171 | J17: $ 149,178,184 | K17: $ 182,959,998
B18: IVA | C18: 0 | D18: ='Subp. IVA e IIBB'!F132 -> $ 5,342,198 | E18: ='Subp. IVA e IIBB'!F133 -> $ 12,881,983 | F18: ='Subp. IVA e IIBB'!F134 -> $ 23,750,524 | G18: ='Subp. IVA e IIBB'!F135 -> $ 37,006,744 | H18: ='Subp. IVA e IIBB'!F136 -> $ 46,810,568 | I18: ='Subp. IVA e IIBB'!F137 -> $ 57,535,521 | J18: ='Subp. IVA e IIBB'!F138 -> $ 70,393,614 | K18: ='Subp. IVA e IIBB'!F139 -> $ 85,247,970
B19: Ingresos Brutos | C19: 0 | D19: ='Subp. IVA e IIBB'!M132 -> $ 1,303,315 | E19: ='Subp. IVA e IIBB'!M133 -> $ 3,142,767 | F19: ='Subp. IVA e IIBB'!M134 -> $ 5,794,322 | G19: ='Subp. IVA e IIBB'!M135 -> $ 9,028,390 | H19: ='Subp. IVA e IIBB'!M136 -> $ 11,420,191 | I19: ='Subp. IVA e IIBB'!M137 -> $ 14,036,716 | J19: ='Subp. IVA e IIBB'!M138 -> $ 17,173,654 | K19: ='Subp. IVA e IIBB'!M139 -> $ 20,797,613
B20: Impuesto a las Ganancias | C20: 0 | D20: =C45 -> 0 | E20: 0 | F20: $ 7,383,802 | G20: $ 20,250,103 | H20: $ 36,214,071 | I20: $ 48,065,934 | J20: $ 61,610,916 | K20: $ 76,914,415
B21: Inversión | C21: ='Hoja de datos'!C21*-1 -> $ -94,270,000 | D21: 0 | E21: 0 | F21: 0 | G21: 0 | H21: 0 | I21: 0 | J21: 0 | K21: 0
B23: Total Egresos | C23: =SUM(C12:C21) -> $ -94,270,000 | D23: =SUM(D12+D13+D14+D15+D16+D18+D19+D20+D21) -> $ 50,386,831 | E23: $ 101,561,688 | F23: $ 179,130,692 | G23: $ 277,326,401 | H23: $ 355,897,195 | I23: $ 437,082,272 | J23: $ 533,426,159 | K23: $ 644,342,584
B25: Flujo de Fondos Proyectado | C25: =C23 -> $ -94,270,000 | D25: =D8-D23 -> $ 2,180,216 | E25: $ 25,196,576 | F25: $ 54,573,635 | G25: $ 86,818,671 | H25: $ 104,717,168 | I25: $ 129,065,256 | J25: $ 159,244,555 | K25: $ 194,494,478
B28: Tasa de descuento | F28: VAN | G28: =C25+NPV(C34,D25,E25,F25,G25,H25,I25,J25,K25) -> $ 48,688,688
B29: Riesgo soberano (1) | C29: 1.62% | F29: TIR | G29: =IRR(C25:K25) -> 48%
B30: Riesgo país (2) | C30: 15.37% | F30: Payback descontado | G30: =J55 -> 3 | H30: Años
B31: Inflación | C31: 0.00% | G31: =K55 -> 1 | H31: Meses
B32: Riesgo de la actividad | C32: 10.50%
B33: Riesgo del negocio | C33: 8.00%
B34: Total | C34: =SUM(C29:C33) -> 35.49%
B36: (1) Recuperado de: https://datosmacro.expansion.com/bono
B37: (2) Recuperado de: http://www.ambito.com/economia/mercados/riesgo-pais/
B39: Cash Flow para cálculo del impuesto a las ganancias
C40: Período 0 | D40: Período 1 | E40: Período 2 | F40: Período 3 | G40: Período 4 | H40: Período 5 | I40: Período 6 | J40: Período 7 | K40: Período 8
B41: Total ingresos | C41: 0 | D41: =D8 -> $ 52,567,046 | E41: $ 126,758,264 | F41: $ 233,704,327 | G41: $ 364,145,072 | H41: $ 460,614,363 | I41: $ 566,147,528 | J41: $ 692,670,714 | K41: $ 838,837,062
B42: Total egresos (sin IIGG) | C42: 0 | D42: =SUM(D12+D13+D14+D15+D16+D18+D19+D21) -> $ 50,386,831 | E42: $ 101,561,688 | F42: $ 171,746,890 | G42: $ 257,076,298 | H42: $ 319,683,124 | I42: $ 389,016,338 | J42: $ 471,815,243 | K42: $ 567,428,169
B43: Amortizaciones | C43: 0 | D43: ='Subp. Capital e Inversión'!F8 -> $ 4,100,000 | E43: ='Subp. Capital e Inversión'!F14 -> $ 4,100,000 | F43: ='Subp. Capital e Inversión'!F20 -> $ 4,100,000 | G43: ='Subp. Capital e Inversión'!F26 -> $ 3,600,000 | H43: ='Subp. Capital e Inversión'!F32 -> $ 3,600,000 | I43: ='Subp. Capital e Inversión'!F38 -> $ 1,100,000 | J43: ='Subp. Capital e Inversión'!F44 -> $ 1,100,000 | K43: ='Subp. Capital e Inversión'!F50 -> $ 1,100,000
B44: Flujo de fondos (sin IIGG) | C44: 0 | D44: =D41-D42-D43 -> $ -1,919,784 | E44: $ 21,096,576 | F44: $ 57,857,437 | G44: $ 103,468,774 | H44: $ 137,331,239 | I44: $ 176,031,190 | J44: $ 219,755,471 | K44: $ 270,308,892
B45: Impuesto a las ganancias | C45: 0 | D45: =IF(D44>0,D44*0.35,0) -> 0 | E45: $ 7,383,802 | F45: $ 20,250,103 | G45: $ 36,214,071 | H45: $ 48,065,934 | I45: $ 61,610,916 | J45: $ 76,914,415 | K45: $ 94,608,112
B48: Cálculo del Payback descontado
C49: Período 0 | D49: Período 1 | E49: Período 2 | F49: Período 3 | G49: Período 4 | H49: Período 5 | I49: Período 6 | J49: Período 7 | K49: Período 8
B50: Flujo de fondos descontados | C50: =C25 -> $ -94,270,000 | D50: $ 2,180,216 | E50: $ 25,196,576 | F50: $ 54,573,635 | G50: $ 86,818,671 | H50: $ 104,717,168 | I50: $ 129,065,256 | J50: $ 159,244,555 | K50: $ 194,494,478
B51: Flujo de fondos descontados acumulados | C51: =C50 -> $ -94,270,000 | D51: =D50+C51 -> $ -92,089,784 | E51: $ -66,893,209 | F51: $ -12,319,573 | G51: $ 74,499,098 | H51: $ 179,216,266 | I51: $ 308,281,522 | J51: $ 467,526,076 | K51: $ 662,020,554
B52: Fracciones anuales | D52: =+-C51/D50 -> 43.24 | E52: 3.65 | F52: 1.23 | G52: 0.14 | H52: =-G51/H50 -> -0.71 | I52: -1.39 | J52: -1.94 | K52: -2.40
J54: Años | K54: Meses
J55: =+IF(K51<0,"Más de 8 años",COUNTIF(D51:K51,"<0")) -> 3 | K55: =+IF(J55="Más de 8 años","",INT(INDEX(D52:K52,J55+1)*12)) -> 1

Sheet Subp. Ventas y Cobros
B2: Subpresupuesto de ventas | G2: Subpresupuesto de cobranzas
B3: Período 1 | C3: Cantidad | D3: Importe Neto | E3: IVA DF | F3: Total | G3: Enero | H3: Febrero | I3: Marzo | J3: Abril | K3: Mayo | L3: Junio | M3: Julio | N3: Agosto | O3: Septiembre | P3: Octubre | Q3: Noviembre | R3: Diciembre | S3: Total | T3: Diferido
B4: Enero | C4: =C16*U4 -> 66 | D4: =C4*'Datos ajustados'!$C$4*(1-'Datos ajustados'!$C$5) -> $ 987,360 | E4: =D4*'Hoja de datos'!$C$13 -> $ 207,346 | F4: =SUM(D4:E4) -> $ 1,194,706 | H4: =F4 -> $ 1,194,706 | S4: =SUM(G4:R4) -> $ 1,194,706 | U4: 2%
B5: Febrero | C5: =C16*U5 -> 99 | D5: =C5*'Datos ajustados'!$C$4*(1-'Datos ajustados'!$C$5) -> $ 1,481,040 | E5: =D5*'Hoja de datos'!$C$13 -> $ 311,018 | F5: $ 1,792,058 | I5: =F5 -> $ 1,792,058 | S5: $ 1,792,058 | U5: 3%
B6: Marzo | C6: =C16*U6 -> 165 | D6: =C6*'Datos ajustados'!$C$4*(1-'Datos ajustados'!$C$5) -> $ 2,468,400 | E6: =D6*'Hoja de datos'!$C$13 -> $ 518,364 | F6: $ 2,986,764 | J6: =F6 -> $ 2,986,764 | S6: $ 2,986,764 | U6: 5%
B7: Abril | C7: =C16*U7 -> 264 | D7: =C7*'Datos ajustados'!$C$4*(1-'Datos ajustados'!$C$5) -> $ 3,949,440 | E7: =D7*'Hoja de datos'!$C$13 -> $ 829,382 | F7: $ 4,778,822 | K7: =F7 -> $ 4,778,822 | S7: $ 4,778,822 | U7: 8%
B8: Mayo | C8: =C16*U8 -> 297 | D8: =C8*'Datos ajustados'!$C$4*(1-'Datos ajustados'!$C$5) -> $ 4,443,120 | E8: =D8*'Hoja de datos'!$C$13 -> $ 933,055 | F8: $ 5,376,175 | L8: =F8 -> $ 5,376,175 | S8: $ 5,376,175 | U8: 9%
B9: Junio | C9: =C16*U9 -> 297 | D9: =C9*'Datos ajustados'!$C$4*(1-'Datos ajustados'!$C$5) -> $ 4,443,120 | E9: =D9*'Hoja de datos'!$C$13 -> $ 933,055 | F9: $ 5,376,175 | M9: =F9 -> $ 5,376,175 | S9: $ 5,376,175 | U9: 9%
B10: Julio | C10: =C16*U10 -> 297 | D10: =C10*'Datos ajustados'!$C$4*(1-'Datos ajustados'!$C$5) -> $ 4,443,120 | E10: =D10*'Hoja de datos'!$C$13 -> $ 933,055 | F10: $ 5,376,175 | N10: =F10 -> $ 5,376,175 | S10: $ 5,376,175 | U10: 9%
B11: Agosto | C11: =C16*U11 -> 330 | D11: =C11*'Datos ajustados'!$C$4*(1-'Datos ajustados'!$C$5) -> $ 4,936,800 | E11: =D11*'Hoja de datos'!$C$13 -> $ 1,036,728 | F11: $ 5,973,528 | O11: =F11 -> $ 5,973,528 | S11: $ 5,973,528 | U11: 10%
B12: Septiembre | C12: =C16*U12 -> 330 | D12: =C12*'Datos ajustados'!$C$4*(1-'Datos ajustados'!$C$5) -> $ 4,936,800 | E12: =D12*'Hoja de datos'!$C$13 -> $ 1,036,728 | F12: $ 5,973,528 | P12: =F12 -> $ 5,973,528 | S12: $ 5,973,528 | U12: 10%
B13: Octubre | C13: =C16*U13 -> 363 | D13: =C13*'Datos ajustados'!$C$4*(1-'Datos ajustados'!$C$5) -> $ 5,430,480 | E13: =D13*'Hoja de datos'!$C$13 -> $ 1,140,401 | F13: $ 6,570,881 | Q13: =F13 -> $ 6,570,881 | S13: $ 6,570,881 | U13: 11%
B14: Noviembre | C14: =C16*U14 -> 396 | D14: =C14*'Datos ajustados'!$C$4*(1-'Datos ajustados'!$C$5) -> $ 5,924,160 | E14: =D14*'Hoja de datos'!$C$13 -> $ 1,244,074 | F14: $ 7,168,234 | R14: =F14 -> $ 7,168,234 | S14: $ 7,168,234 | U14: 12%
B15: Diciembre | C15: =C16*U15 -> 396 | D15: =C15*'Datos ajustados'!$C$4*(1-'Datos ajustados'!$C$5) -> $ 5,924,160 | E15: =D15*'Hoja de datos'!$C$13 -> $ 1,244,074 | F15: $ 7,168,234 | S15: 0 | T15: =F15 -> $ 7,168,234 | U15: 12%
B16: Total | C16: ='Datos ajustados'!C10 -> 3,300 | D16: =SUM(D4:D15) -> $ 49,368,000 | E16: $ 10,367,280 | F16: $ 59,735,280 | G16: 0 | H16: $ 1,194,706 | I16: $ 1,792,058 | J16: $ 2,986,764 | K16: $ 4,778,822 | L16: $ 5,376,175 | M16: $ 5,376,175 | N16: $ 5,376,175 | O16: $ 5,973,528 | P16: $ 5,973,528 | Q16: $ 6,570,881 | R16: $ 7,168,234 | S16: $ 52,567,046 | T16: $ 7,168,234 | U16: 100%
B18: Subpresupuesto de ventas | G18: Subpresupuesto de cobranzas
B19: Período 2 | C19: Cantidad | D19: Importe Neto | E19: IVA DF | F19: Total | G19: Enero | H19: Febrero | I19: Marzo | J19: Abril | K19: Mayo | L19: Junio | M19: Julio | N19: Agosto | O19: Septiembre | P19: Octubre | Q19: Noviembre | R19: Diciembre | S19: Total | T19: Diferido
B20: Diferido período 1 | G20: =T15 -> $ 7,168,234 | S20: =SUM(G20:R20) -> $ 7,168,234
B21: Enero | C21: =C33*U21 -> 436 | D21: =C21*'Datos ajustados'!$D$4*(1-'Datos ajustados'!$D$5) -> $ 6,516,576 | E21: =D21*'Hoja de datos'!$C$13 -> $ 1,368,481 | F21: =SUM(D21:E21) -> $ 7,885,057 | H21: =F21 -> $ 7,885,057 | S21: $ 7,885,057 | U21: 6%
B22: Febrero | C22: =C33*U22 -> 508 | D22: =C22*'Datos ajustados'!$D$4*(1-'Datos ajustados'!$D$5) -> $ 7,602,672 | E22: =D22*'Hoja de datos'!$C$13 -> $ 1,596,561 | F22: $ 9,199,233 | I22: =F22 -> $ 9,199,233 | S22: $ 9,199,233 | U22: 7%
B23: Marzo | C23: =C33*U23 -> 508 | D23: =C23*'Datos ajustados'!$D$4*(1-'Datos ajustados'!$D$5) -> $ 7,602,672 | E23: =D23*'Hoja de datos'!$C$13 -> $ 1,596,561 | F23: $ 9,199,233 | J23: =F23 -> $ 9,199,233 | S23: $ 9,199,233 | U23: 7%
B24: Abril | C24: =C33*U24 -> 581 | D24: =C24*'Datos ajustados'!$D$4*(1-'Datos ajustados'!$D$5) -> $ 8,688,768 | E24: =D24*'Hoja de datos'!$C$13 -> $ 1,824,641 | F24: $ 10,513,409 | K24: =F24 -> $ 10,513,409 | S24: $ 10,513,409 | U24: 8%
B25: Mayo | C25: =C33*U25 -> 581 | D25: =C25*'Datos ajustados'!$D$4*(1-'Datos ajustados'!$D$5) -> $ 8,688,768 | E25: =D25*'Hoja de datos'!$C$13 -> $ 1,824,641 | F25: $ 10,513,409 | L25: =F25 -> $ 10,513,409 | S25: $ 10,513,409 | U25: 8%
B26: Junio | C26: =C33*U26 -> 581 | D26: =C26*'Datos ajustados'!$D$4*(1-'Datos ajustados'!$D$5) -> $ 8,688,768 | E26: =D26*'Hoja de datos'!$C$13 -> $ 1,824,641 | F26: $ 10,513,409 | M26: =F26 -> $ 10,513,409 | S26: $ 10,513,409 | U26: 8%
B27: Julio | C27: =C33*U27 -> 653 | D27: =C27*'Datos ajustados'!$D$4*(1-'Datos ajustados'!$D$5) -> $ 9,774,864 | E27: =D27*'Hoja de datos'!$C$13 -> $ 2,052,721 | F27: $ 11,827,585 | N27: =F27 -> $ 11,827,585 | S27: $ 11,827,585 | U27: 9%
B28: Agosto | C28: =C33*U28 -> 653 | D28: =C28*'Datos ajustados'!$D$4*(1-'Datos ajustados'!$D$5) -> $ 9,774,864 | E28: =D28*'Hoja de datos'!$C$13 -> $ 2,052,721 | F28: $ 11,827,585 | O28: =F28 -> $ 11,827,585 | S28: $ 11,827,585 | U28: 9%
B29: Septiembre | C29: =C33*U29 -> 653 | D29: =C29*'Datos ajustados'!$D$4*(1-'Datos ajustados'!$D$5) -> $ 9,774,864 | E29: =D29*'Hoja de datos'!$C$13 -> $ 2,052,721 | F29: $ 11,827,585 | P29: =F29 -> $ 11,827,585 | S29: $ 11,827,585 | U29: 9%
B30: Octubre | C30: =C33*U30 -> 726 | D30: =C30*'Datos ajustados'!$D$4*(1-'Datos ajustados'!$D$5) -> $ 10,860,960 | E30: =D30*'Hoja de datos'!$C$13 -> $ 2,280,802 | F30: $ 13,141,762 | Q30: =F30 -> $ 13,141,762 | S30: $ 13,141,762 | U30: 10%
B31: Noviembre | C31: =C33*U31 -> 726 | D31: =C31*'Datos ajustados'!$D$4*(1-'Datos ajustados'!$D$5) -> $ 10,860,960 | E31: =D31*'Hoja de datos'!$C$13 -> $ 2,280,802 | F31: $ 13,141,762 | R31: =F31 -> $ 13,141,762 | S31: $ 13,141,762 | U31: 10%
B32: Diciembre | C32: =C33*U32 -> 799 | D32: =C32*'Datos ajustados'!$D$4*(1-'Datos ajustados'!$D$5) -> $ 11,947,056 | E32: =D32*'Hoja de datos'!$C$13 -> $ 2,508,882 | F32: $ 14,455,938 | S32: 0 | T32: =F32 -> $ 14,455,938 | U32: 11%
B33: Total | C33: ='Datos ajustados'!D10 -> 7,260 | D33: =SUM(D21:D32) -> $ 110,781,792 | E33: $ 23,264,176 | F33: $ 134,045,968 | G33: =SUM(G20:G32) -> $ 7,168,234 | H33: =SUM(H21:H32) -> $ 7,885,057 | I33: $ 9,199,233 | J33: $ 9,199,233 | K33: $ 10,513,409 | L33: $ 10,513,409 | M33: $ 10,513,409 | N33: $ 11,827,585 | O33: $ 11,827,585 | P33: $ 11,827,585 | Q33: $ 13,141,762 | R33: $ 13,141,762 | S33: =SUM(S20:S32) -> $ 126,758,264 | T33: $ 14,455,938 | U33: =SUM(U21:U32) -> 102%
B35: Subpresupuesto de ventas | G35: Subpresupuesto de cobranzas
B36: Período 3 | C36: Cantidad | D36: Importe Neto | E36: IVA DF | F36: Total | G36: Enero | H36: Febrero | I36: Marzo | J36: Abril | K36: Mayo | L36: Junio | M36: Julio | N36: Agosto | O36: Septiembre | P36: Octubre | Q36: Noviembre | R36: Diciembre | S36: Total | T36: Diferido
B37: Diferido período 2 | G37: =T32 -> $ 14,455,938 | S37: =SUM(G37:R37) -> $ 14,455,938
B38: Enero | C38: =C50*U38 -> 799 | D38: =C38*'Datos ajustados'!$E$4*(1-'Datos ajustados'!$E$5) -> $ 11,947,056 | E38: =D38*'Hoja de datos'!$C$13 -> $ 2,508,882 | F38: =SUM(D38:E38) -> $ 14,455,938 | H38: =F38 -> $ 14,455,938 | S38: $ 14,455,938 | U38: 6%
B39: Febrero | C39: =C50*U39 -> 932 | D39: =C39*'Datos ajustados'!$E$4*(1-'Datos ajustados'!$E$5) -> $ 13,938,232 | E39: =D39*'Hoja de datos'!$C$13 -> $ 2,927,029 | F39: $ 16,865,261 | I39: =F39 -> $ 16,865,261 | S39: $ 16,865,261 | U39: 7%
B40: Marzo | C40: =C50*U40 -> 932 | D40: =C40*'Datos ajustados'!$E$4*(1-'Datos ajustados'!$E$5) -> $ 13,938,232 | E40: =D40*'Hoja de datos'!$C$13 -> $ 2,927,029 | F40: $ 16,865,261 | J40: =F40 -> $ 16,865,261 | S40: $ 16,865,261 | U40: 7%
B41: Abril | C41: =C50*U41 -> 1,065 | D41: =C41*'Datos ajustados'!$E$4*(1-'Datos ajustados'!$E$5) -> $ 15,929,408 | E41: =D41*'Hoja de datos'!$C$13 -> $ 3,345,176 | F41: $ 19,274,584 | K41: =F41 -> $ 19,274,584 | S41: $ 19,274,584 | U41: 8%
B42: Mayo | C42: =C50*U42 -> 1,065 | D42: =C42*'Datos ajustados'!$E$4*(1-'Datos ajustados'!$E$5) -> $ 15,929,408 | E42: =D42*'Hoja de datos'!$C$13 -> $ 3,345,176 | F42: $ 19,274,584 | L42: =F42 -> $ 19,274,584 | S42: $ 19,274,584 | U42: 8%
B43: Junio | C43: =C50*U43 -> 1,065 | D43: =C43*'Datos ajustados'!$E$4*(1-'Datos ajustados'!$E$5) -> $ 15,929,408 | E43: =D43*'Hoja de datos'!$C$13 -> $ 3,345,176 | F43: $ 19,274,584 | M43: =F43 -> $ 19,274,584 | S43: $ 19,274,584 | U43: 8%
B44: Julio | C44: =C50*U44 -> 1,198 | D44: =C44*'Datos ajustados'!$E$4*(1-'Datos ajustados'!$E$5) -> $ 17,920,584 | E44: =D44*'Hoja de datos'!$C$13 -> $ 3,763,323 | F44: $ 21,683,907 | N44: =F44 -> $ 21,683,907 | S44: $ 21,683,907 | U44: 9%
B45: Agosto | C45: =C50*U45 -> 1,198 | D45: =C45*'Datos ajustados'!$E$4*(1-'Datos ajustados'!$E$5) -> $ 17,920,584 | E45: =D45*'Hoja de datos'!$C$13 -> $ 3,763,323 | F45: $ 21,683,907 | O45: =F45 -> $ 21,683,907 | S45: $ 21,683,907 | U45: 9%
B46: Septiembre | C46: =C50*U46 -> 1,198 | D46: =C46*'Datos ajustados'!$E$4*(1-'Datos ajustados'!$E$5) -> $ 17,920,584 | E46: =D46*'Hoja de datos'!$C$13 -> $ 3,763,323 | F46: $ 21,683,907 | P46: =F46 -> $ 21,683,907 | S46: $ 21,683,907 | U46: 9%
B47: Octubre | C47: =C50*U47 -> 1,331 | D47: =C47*'Datos ajustados'!$E$4*(1-'Datos ajustados'!$E$5) -> $ 19,911,760 | E47: =D47*'Hoja de datos'!$C$13 -> $ 4,181,470 | F47: $ 24,093,230 | Q47: =F47 -> $ 24,093,230 | S47: $ 24,093,230 | U47: 10%
B48: Noviembre | C48: =C50*U48 -> 1,331 | D48: =C48*'Datos ajustados'!$E$4*(1-'Datos ajustados'!$E$5) -> $ 19,911,760 | E48: =D48*'Hoja de datos'!$C$13 -> $ 4,181,470 | F48: $ 24,093,230 | R48: =F48 -> $ 24,093,230 | S48: $ 24,093,230 | U48: 10%
B49: Diciembre | C49: =C50*U49 -> 1,464 | D49: =C49*'Datos ajustados'!$E$4*(1-'Datos ajustados'!$E$5) -> $ 21,902,936 | E49: =D49*'Hoja de datos'!$C$13 -> $ 4,599,617 | F49: $ 26,502,553 | S49: 0 | T49: =F49 -> $ 26,502,553 | U49: 11%
B50: Total | C50: ='Datos ajustados'!E10 -> 13,310 | D50: =SUM(D38:D49) -> $ 203,099,952 | E50: $ 42,650,990 | F50: $ 245,750,942 | G50: =SUM(G37:G49) -> $ 14,455,938 | H50: =SUM(H38:H49) -> $ 14,455,938 | I50: $ 16,865,261 | J50: $ 16,865,261 | K50: $ 19,274,584 | L50: $ 19,274,584 | M50: $ 19,274,584 | N50: $ 21,683,907 | O50: $ 21,683,907 | P50: $ 21,683,907 | Q50: $ 24,093,230 | R50: $ 24,093,230 | S50: =SUM(S37:S49) -> $ 233,704,327 | T50: $ 26,502,553 | U50: =SUM(U38:U49) -> 102%
B52: Subpresupuesto de ventas | G52: Subpresupuesto de cobranzas
B53: Período 4 | C53: Cantidad | D53: Importe Neto | E53: IVA DF | F53: Total | G53: Enero | H53: Febrero | I53: Marzo | J53: Abril | K53: Mayo | L53: Junio | M53: Julio | N53: Agosto | O53: Septiembre | P53: Octubre | Q53: Noviembre | R53: Diciembre | S53: Total | T53: Diferido
B54: Diferido período 3 | G54: =T49 -> $ 26,502,553 | S54: =SUM(G54:R54) -> $ 26,502,553
B55: Enero | C55: =C67*U55 -> 1,230 | D55: =C55*'Datos ajustados'!$F$4*(1-'Datos ajustados'!$F$5) -> $ 18,398,466 | E55: =D55*'Hoja de datos'!$C$13 -> $ 3,863,678 | F55: =SUM(D55:E55) -> $ 22,262,144 | H55: =F55 -> $ 22,262,144 | S55: $ 22,262,144 | U55: 6%
B56: Febrero | C56: =C67*U56 -> 1,435 | D56: =C56*'Datos ajustados'!$F$4*(1-'Datos ajustados'!$F$5) -> $ 21,464,877 | E56: =D56*'Hoja de datos'!$C$13 -> $ 4,507,624 | F56: $ 25,972,502 | I56: =F56 -> $ 25,972,502 | S56: $ 25,972,502 | U56: 7%
B57: Marzo | C57: =C67*U57 -> 1,435 | D57: =C57*'Datos ajustados'!$F$4*(1-'Datos ajustados'!$F$5) -> $ 21,464,877 | E57: =D57*'Hoja de datos'!$C$13 -> $ 4,507,624 | F57: $ 25,972,502 | J57: =F57 -> $ 25,972,502 | S57: $ 25,972,502 | U57: 7%
B58: Abril | C58: =C67*U58 -> 1,640 | D58: =C58*'Datos ajustados'!$F$4*(1-'Datos ajustados'!$F$5) -> $ 24,531,288 | E58: =D58*'Hoja de datos'!$C$13 -> $ 5,151,571 | F58: $ 29,682,859 | K58: =F58 -> $ 29,682,859 | S58: $ 29,682,859 | U58: 8%
B59: Mayo | C59: =C67*U59 -> 1,640 | D59: =C59*'Datos ajustados'!$F$4*(1-'Datos ajustados'!$F$5) -> $ 24,531,288 | E59: =D59*'Hoja de datos'!$C$13 -> $ 5,151,571 | F59: $ 29,682,859 | L59: =F59 -> $ 29,682,859 | S59: $ 29,682,859 | U59: 8%
B60: Junio | C60: =C67*U60 -> 1,640 | D60: =C60*'Datos ajustados'!$F$4*(1-'Datos ajustados'!$F$5) -> $ 24,531,288 | E60: =D60*'Hoja de datos'!$C$13 -> $ 5,151,571 | F60: $ 29,682,859 | M60: =F60 -> $ 29,682,859 | S60: $ 29,682,859 | U60: 8%
B61: Julio | C61: =C67*U61 -> 1,845 | D61: =C61*'Datos ajustados'!$F$4*(1-'Datos ajustados'!$F$5) -> $ 27,597,699 | E61: =D61*'Hoja de datos'!$C$13 -> $ 5,795,517 | F61: $ 33,393,216 | N61: =F61 -> $ 33,393,216 | S61: $ 33,393,216 | U61: 9%
B62: Agosto | C62: =C67*U62 -> 1,845 | D62: =C62*'Datos ajustados'!$F$4*(1-'Datos ajustados'!$F$5) -> $ 27,597,699 | E62: =D62*'Hoja de datos'!$C$13 -> $ 5,795,517 | F62: $ 33,393,216 | O62: =F62 -> $ 33,393,216 | S62: $ 33,393,216 | U62: 9%
B63: Septiembre | C63: =C67*U63 -> 1,845 | D63: =C63*'Datos ajustados'!$F$4*(1-'Datos ajustados'!$F$5) -> $ 27,597,699 | E63: =D63*'Hoja de datos'!$C$13 -> $ 5,795,517 | F63: $ 33,393,216 | P63: =F63 -> $ 33,393,216 | S63: $ 33,393,216 | U63: 9%
B64: Octubre | C64: =C67*U64 -> 2,050 | D64: =C64*'Datos ajustados'!$F$4*(1-'Datos ajustados'!$F$5) -> $ 30,664,110 | E64: =D64*'Hoja de datos'!$C$13 -> $ 6,439,463 | F64: $ 37,103,574 | Q64: =F64 -> $ 37,103,574 | S64: $ 37,103,574 | U64: 10%
B65: Noviembre | C65: =C67*U65 -> 2,050 | D65: =C65*'Datos ajustados'!$F$4*(1-'Datos ajustados'!$F$5) -> $ 30,664,110 | E65: =D65*'Hoja de datos'!$C$13 -> $ 6,439,463 | F65: $ 37,103,574 | R65: =F65 -> $ 37,103,574 | S65: $ 37,103,574 | U65: 10%
B66: Diciembre | C66: =C67*U66 -> 2,255 | D66: =C66*'Datos ajustados'!$F$4*(1-'Datos ajustados'!$F$5) -> $ 33,730,521 | E66: =D66*'Hoja de datos'!$C$13 -> $ 7,083,410 | F66: $ 40,813,931 | S66: 0 | T66: =F66 -> $ 40,813,931 | U66: 11%
B67: Total | C67: ='Datos ajustados'!F10 -> 20,497 | D67: =SUM(D55:D66) -> $ 312,773,926 | E67: $ 65,682,524 | F67: $ 378,456,451 | G67: =SUM(G54:G66) -> $ 26,502,553 | H67: =SUM(H55:H66) -> $ 22,262,144 | I67: $ 25,972,502 | J67: $ 25,972,502 | K67: $ 29,682,859 | L67: $ 29,682,859 | M67: $ 29,682,859 | N67: $ 33,393,216 | O67: $ 33,393,216 | P67: $ 33,393,216 | Q67: $ 37,103,574 | R67: $ 37,103,574 | S67: =SUM(S54:S66) -> $ 364,145,072 | T67: $ 40,813,931 | U67: =SUM(U55:U66) -> 102%
B69: Subpresupuesto de ventas | G69: Subpresupuesto de cobranzas
B70: Período 5 | C70: Cantidad | D70: Importe Neto | E70: IVA DF | F70: Total | G70: Enero | H70: Febrero | I70: Marzo | J70: Abril | K70: Mayo | L70: Junio | M70: Julio | N70: Agosto | O70: Septiembre | P70: Octubre | Q70: Noviembre | R70: Diciembre | S70: Total | T70: Diferido
B71: Diferido período 4 | G71: =T66 -> $ 40,813,931 | S71: =SUM(G71:R71) -> $ 40,813,931
B72: Enero | C72: =C84*U72 -> 1,804 | D72: =C72*'Datos ajustados'!$G$4*(1-'Datos ajustados'!$G$5) -> $ 26,984,417 | E72: =D72*'Hoja de datos'!$C$13 -> $ 5,666,728 | F72: =SUM(D72:E72) -> $ 32,651,145 | H72: =F72 -> $ 32,651,145 | S72: $ 32,651,145 | U72: 7%
B73: Febrero | C73: =C84*U73 -> 1,804 | D73: =C73*'Datos ajustados'!$G$4*(1-'Datos ajustados'!$G$5) -> $ 26,984,417 | E73: =D73*'Hoja de datos'!$C$13 -> $ 5,666,728 | F73: $ 32,651,145 | I73: =F73 -> $ 32,651,145 | S73: $ 32,651,145 | U73: 7%
B74: Marzo | C74: =C84*U74 -> 1,804 | D74: =C74*'Datos ajustados'!$G$4*(1-'Datos ajustados'!$G$5) -> $ 26,984,417 | E74: =D74*'Hoja de datos'!$C$13 -> $ 5,666,728 | F74: $ 32,651,145 | J74: =F74 -> $ 32,651,145 | S74: $ 32,651,145 | U74: 7%
B75: Abril | C75: =C84*U75 -> 2,061 | D75: =C75*'Datos ajustados'!$G$4*(1-'Datos ajustados'!$G$5) -> $ 30,839,334 | E75: =D75*'Hoja de datos'!$C$13 -> $ 6,476,260 | F75: $ 37,315,594 | K75: =F75 -> $ 37,315,594 | S75: $ 37,315,594 | U75: 8%
B76: Mayo | C76: =C84*U76 -> 2,061 | D76: =C76*'Datos ajustados'!$G$4*(1-'Datos ajustados'!$G$5) -> $ 30,839,334 | E76: =D76*'Hoja de datos'!$C$13 -> $ 6,476,260 | F76: $ 37,315,594 | L76: =F76 -> $ 37,315,594 | S76: $ 37,315,594 | U76: 8%
B77: Junio | C77: =C84*U77 -> 2,061 | D77: =C77*'Datos ajustados'!$G$4*(1-'Datos ajustados'!$G$5) -> $ 30,839,334 | E77: =D77*'Hoja de datos'!$C$13 -> $ 6,476,260 | F77: $ 37,315,594 | M77: =F77 -> $ 37,315,594 | S77: $ 37,315,594 | U77: 8%
B78: Julio | C78: =C84*U78 -> 2,061 | D78: =C78*'Datos ajustados'!$G$4*(1-'Datos ajustados'!$G$5) -> $ 30,839,334 | E78: =D78*'Hoja de datos'!$C$13 -> $ 6,476,260 | F78: $ 37,315,594 | N78: =F78 -> $ 37,315,594 | S78: $ 37,315,594 | U78: 8%
B79: Agosto | C79: =C84*U79 -> 2,319 | D79: =C79*'Datos ajustados'!$G$4*(1-'Datos ajustados'!$G$5) -> $ 34,694,251 | E79: =D79*'Hoja de datos'!$C$13 -> $ 7,285,793 | F79: $ 41,980,043 | O79: =F79 -> $ 41,980,043 | S79: $ 41,980,043 | U79: 9%
B80: Septiembre | C80: =C84*U80 -> 2,319 | D80: =C80*'Datos ajustados'!$G$4*(1-'Datos ajustados'!$G$5) -> $ 34,694,251 | E80: =D80*'Hoja de datos'!$C$13 -> $ 7,285,793 | F80: $ 41,980,043 | P80: =F80 -> $ 41,980,043 | S80: $ 41,980,043 | U80: 9%
B81: Octubre | C81: =C84*U81 -> 2,319 | D81: =C81*'Datos ajustados'!$G$4*(1-'Datos ajustados'!$G$5) -> $ 34,694,251 | E81: =D81*'Hoja de datos'!$C$13 -> $ 7,285,793 | F81: $ 41,980,043 | Q81: =F81 -> $ 41,980,043 | S81: $ 41,980,043 | U81: 9%
B82: Noviembre | C82: =C84*U82 -> 2,577 | D82: =C82*'Datos ajustados'!$G$4*(1-'Datos ajustados'!$G$5) -> $ 38,549,167 | E82: =D82*'Hoja de datos'!$C$13 -> $ 8,095,325 | F82: $ 46,644,493 | R82: =F82 -> $ 46,644,493 | S82: $ 46,644,493 | U82: 10%
B83: Diciembre | C83: =C84*U83 -> 2,577 | D83: =C83*'Datos ajustados'!$G$4*(1-'Datos ajustados'!$G$5) -> $ 38,549,167 | E83: =D83*'Hoja de datos'!$C$13 -> $ 8,095,325 | F83: $ 46,644,493 | S83: 0 | T83: =F83 -> $ 46,644,493 | U83: 10%
B84: Total | C84: ='Datos ajustados'!G10 -> 25,768 | D84: =SUM(D72:D83) -> $ 385,491,674 | E84: $ 80,953,251 | F84: $ 466,444,925 | G84: =SUM(G71:G83) -> $ 40,813,931 | H84: =SUM(H72:H83) -> $ 32,651,145 | I84: $ 32,651,145 | J84: $ 32,651,145 | K84: $ 37,315,594 | L84: $ 37,315,594 | M84: $ 37,315,594 | N84: $ 37,315,594 | O84: $ 41,980,043 | P84: $ 41,980,043 | Q84: $ 41,980,043 | R84: $ 46,644,493 | S84: =SUM(S71:S83) -> $ 460,614,363 | T84: $ 46,644,493 | U84: =SUM(U72:U83) -> 100%
B86: Subpresupuesto de ventas | G86: Subpresupuesto de cobranzas
B87: Período 6 | C87: Cantidad | D87: Importe Neto | E87: IVA DF | F87: Total | G87: Enero | H87: Febrero | I87: Marzo | J87: Abril | K87: Mayo | L87: Junio | M87: Julio | N87: Agosto | O87: Septiembre | P87: Octubre | Q87: Noviembre | R87: Diciembre | S87: Total | T87: Diferido
B88: Diferido período 5 | G88: =T83 -> $ 46,644,493 | S88: =SUM(G88:R88) -> $ 46,644,493
B89: Enero | C89: =C101*U89 -> 2,232 | D89: =C89*'Datos ajustados'!$H$4*(1-'Datos ajustados'!$H$5) -> $ 33,393,216 | E89: =D89*'Hoja de datos'!$C$13 -> $ 7,012,575 | F89: =SUM(D89:E89) -> $ 40,405,792 | H89: =F89 -> $ 40,405,792 | S89: $ 40,405,792 | U89: 7%
B90: Febrero | C90: =C101*U90 -> 2,232 | D90: =C90*'Datos ajustados'!$H$4*(1-'Datos ajustados'!$H$5) -> $ 33,393,216 | E90: =D90*'Hoja de datos'!$C$13 -> $ 7,012,575 | F90: $ 40,405,792 | I90: =F90 -> $ 40,405,792 | S90: $ 40,405,792 | U90: 7%
B91: Marzo | C91: =C101*U91 -> 2,232 | D91: =C91*'Datos ajustados'!$H$4*(1-'Datos ajustados'!$H$5) -> $ 33,393,216 | E91: =D91*'Hoja de datos'!$C$13 -> $ 7,012,575 | F91: $ 40,405,792 | J91: =F91 -> $ 40,405,792 | S91: $ 40,405,792 | U91: 7%
B92: Abril | C92: =C101*U92 -> 2,551 | D92: =C92*'Datos ajustados'!$H$4*(1-'Datos ajustados'!$H$5) -> $ 38,163,676 | E92: =D92*'Hoja de datos'!$C$13 -> $ 8,014,372 | F92: $ 46,178,048 | K92: =F92 -> $ 46,178,048 | S92: $ 46,178,048 | U92: 8%
B93: Mayo | C93: =C101*U93 -> 2,551 | D93: =C93*'Datos ajustados'!$H$4*(1-'Datos ajustados'!$H$5) -> $ 38,163,676 | E93: =D93*'Hoja de datos'!$C$13 -> $ 8,014,372 | F93: $ 46,178,048 | L93: =F93 -> $ 46,178,048 | S93: $ 46,178,048 | U93: 8%
B94: Junio | C94: =C101*U94 -> 2,551 | D94: =C94*'Datos ajustados'!$H$4*(1-'Datos ajustados'!$H$5) -> $ 38,163,676 | E94: =D94*'Hoja de datos'!$C$13 -> $ 8,014,372 | F94: $ 46,178,048 | M94: =F94 -> $ 46,178,048 | S94: $ 46,178,048 | U94: 8%
B95: Julio | C95: =C101*U95 -> 2,551 | D95: =C95*'Datos ajustados'!$H$4*(1-'Datos ajustados'!$H$5) -> $ 38,163,676 | E95: =D95*'Hoja de datos'!$C$13 -> $ 8,014,372 | F95: $ 46,178,048 | N95: =F95 -> $ 46,178,048 | S95: $ 46,178,048 | U95: 8%
B96: Agosto | C96: =C101*U96 -> 2,870 | D96: =C96*'Datos ajustados'!$H$4*(1-'Datos ajustados'!$H$5) -> $ 42,934,135 | E96: =D96*'Hoja de datos'!$C$13 -> $ 9,016,168 | F96: $ 51,950,304 | O96: =F96 -> $ 51,950,304 | S96: $ 51,950,304 | U96: 9%
B97: Septiembre | C97: =C101*U97 -> 2,870 | D97: =C97*'Datos ajustados'!$H$4*(1-'Datos ajustados'!$H$5) -> $ 42,934,135 | E97: =D97*'Hoja de datos'!$C$13 -> $ 9,016,168 | F97: $ 51,950,304 | P97: =F97 -> $ 51,950,304 | S97: $ 51,950,304 | U97: 9%
B98: Octubre | C98: =C101*U98 -> 2,870 | D98: =C98*'Datos ajustados'!$H$4*(1-'Datos ajustados'!$H$5) -> $ 42,934,135 | E98: =D98*'Hoja de datos'!$C$13 -> $ 9,016,168 | F98: $ 51,950,304 | Q98: =F98 -> $ 51,950,304 | S98: $ 51,950,304 | U98: 9%
B99: Noviembre | C99: =C101*U99 -> 3,189 | D99: =C99*'Datos ajustados'!$H$4*(1-'Datos ajustados'!$H$5) -> $ 47,704,595 | E99: =D99*'Hoja de datos'!$C$13 -> $ 10,017,965 | F99: $ 57,722,559 | R99: =F99 -> $ 57,722,559 | S99: $ 57,722,559 | U99: 10%
B100: Diciembre | C100: =C101*U100 -> 3,189 | D100: =C100*'Datos ajustados'!$H$4*(1-'Datos ajustados'!$H$5) -> $ 47,704,595 | E100: =D100*'Hoja de datos'!$C$13 -> $ 10,017,965 | F100: $ 57,722,559 | S100: 0 | T100: =F100 -> $ 57,722,559 | U100: 10%
B101: Total | C101: ='Datos ajustados'!H10 -> 31,888 | D101: =SUM(D89:D100) -> $ 477,045,946 | E101: $ 100,179,649 | F101: $ 577,225,595 | G101: =SUM(G88:G100) -> $ 46,644,493 | H101: =SUM(H89:H100) -> $ 40,405,792 | I101: $ 40,405,792 | J101: $ 40,405,792 | K101: $ 46,178,048 | L101: $ 46,178,048 | M101: $ 46,178,048 | N101: $ 46,178,048 | O101: $ 51,950,304 | P101: $ 51,950,304 | Q101: $ 51,950,304 | R101: $ 57,722,559 | S101: =SUM(S88:S100) -> $ 566,147,528 | T101: $ 57,722,559 | U101: =SUM(U89:U100) -> 100%
B103: Subpresupuesto de ventas | G103: Subpresupuesto de cobranzas
B104: Período 7 | C104: Cantidad | D104: Importe Neto | E104: IVA DF | F104: Total | G104: Enero | H104: Febrero | I104: Marzo | J104: Abril | K104: Mayo | L104: Junio | M104: Julio | N104: Agosto | O104: Septiembre | P104: Octubre | Q104: Noviembre | R104: Diciembre | S104: Total | T104: Diferido
B105: Diferido período 6 | G105: =T100 -> $ 57,722,559 | S105: =SUM(G105:R105) -> $ 57,722,559
B106: Enero | C106: =C118*U106 -> 2,728 | D106: =C106*'Datos ajustados'!$I$4*(1-'Datos ajustados'!$I$5) -> $ 40,813,931 | E106: =D106*'Hoja de datos'!$C$13 -> $ 8,570,925 | F106: =SUM(D106:E106) -> $ 49,384,856 | H106: =F106 -> $ 49,384,856 | S106: $ 49,384,856 | U106: 7%
B107: Febrero | C107: =C118*U107 -> 2,728 | D107: =C107*'Datos ajustados'!$I$4*(1-'Datos ajustados'!$I$5) -> $ 40,813,931 | E107: =D107*'Hoja de datos'!$C$13 -> $ 8,570,925 | F107: $ 49,384,856 | I107: =F107 -> $ 49,384,856 | S107: $ 49,384,856 | U107: 7%
B108: Marzo | C108: =C118*U108 -> 2,728 | D108: =C108*'Datos ajustados'!$I$4*(1-'Datos ajustados'!$I$5) -> $ 40,813,931 | E108: =D108*'Hoja de datos'!$C$13 -> $ 8,570,925 | F108: $ 49,384,856 | J108: =F108 -> $ 49,384,856 | S108: $ 49,384,856 | U108: 7%
B109: Abril | C109: =C118*U109 -> 3,118 | D109: =C109*'Datos ajustados'!$I$4*(1-'Datos ajustados'!$I$5) -> $ 46,644,493 | E109: =D109*'Hoja de datos'!$C$13 -> $ 9,795,343 | F109: $ 56,439,836 | K109: =F109 -> $ 56,439,836 | S109: $ 56,439,836 | U109: 8%
B110: Mayo | C110: =C118*U110 -> 3,118 | D110: =C110*'Datos ajustados'!$I$4*(1-'Datos ajustados'!$I$5) -> $ 46,644,493 | E110: =D110*'Hoja de datos'!$C$13 -> $ 9,795,343 | F110: $ 56,439,836 | L110: =F110 -> $ 56,439,836 | S110: $ 56,439,836 | U110: 8%
B111: Junio | C111: =C118*U111 -> 3,118 | D111: =C111*'Datos ajustados'!$I$4*(1-'Datos ajustados'!$I$5) -> $ 46,644,493 | E111: =D111*'Hoja de datos'!$C$13 -> $ 9,795,343 | F111: $ 56,439,836 | M111: =F111 -> $ 56,439,836 | S111: $ 56,439,836 | U111: 8%
B112: Julio | C112: =C118*U112 -> 3,118 | D112: =C112*'Datos ajustados'!$I$4*(1-'Datos ajustados'!$I$5) -> $ 46,644,493 | E112: =D112*'Hoja de datos'!$C$13 -> $ 9,795,343 | F112: $ 56,439,836 | N112: =F112 -> $ 56,439,836 | S112: $ 56,439,836 | U112: 8%
B113: Agosto | C113: =C118*U113 -> 3,508 | D113: =C113*'Datos ajustados'!$I$4*(1-'Datos ajustados'!$I$5) -> $ 52,475,054 | E113: =D113*'Hoja de datos'!$C$13 -> $ 11,019,761 | F113: $ 63,494,815 | O113: =F113 -> $ 63,494,815 | S113: $ 63,494,815 | U113: 9%
B114: Septiembre | C114: =C118*U114 -> 3,508 | D114: =C114*'Datos ajustados'!$I$4*(1-'Datos ajustados'!$I$5) -> $ 52,475,054 | E114: =D114*'Hoja de datos'!$C$13 -> $ 11,019,761 | F114: $ 63,494,815 | P114: =F114 -> $ 63,494,815 | S114: $ 63,494,815 | U114: 9%
B115: Octubre | C115: =C118*U115 -> 3,508 | D115: =C115*'Datos ajustados'!$I$4*(1-'Datos ajustados'!$I$5) -> $ 52,475,054 | E115: =D115*'Hoja de datos'!$C$13 -> $ 11,019,761 | F115: $ 63,494,815 | Q115: =F115 -> $ 63,494,815 | S115: $ 63,494,815 | U115: 9%
B116: Noviembre | C116: =C118*U116 -> 3,897 | D116: =C116*'Datos ajustados'!$I$4*(1-'Datos ajustados'!$I$5) -> $ 58,305,616 | E116: =D116*'Hoja de datos'!$C$13 -> $ 12,244,179 | F116: $ 70,549,795 | R116: =F116 -> $ 70,549,795 | S116: $ 70,549,795 | U116: 10%
B117: Diciembre | C117: =C118*U117 -> 3,897 | D117: =C117*'Datos ajustados'!$I$4*(1-'Datos ajustados'!$I$5) -> $ 58,305,616 | E117: =D117*'Hoja de datos'!$C$13 -> $ 12,244,179 | F117: $ 70,549,795 | S117: 0 | T117: =F117 -> $ 70,549,795 | U117: 10%
B118: Total | C118: ='Datos ajustados'!I10 -> 38,974 | D118: =SUM(D106:D117) -> $ 583,056,156 | E118: $ 122,441,793 | F118: $ 705,497,949 | G118: =SUM(G105:G117) -> $ 57,722,559 | H118: =SUM(H106:H117) -> $ 49,384,856 | I118: $ 49,384,856 | J118: $ 49,384,856 | K118: $ 56,439,836 | L118: $ 56,439,836 | M118: $ 56,439,836 | N118: $ 56,439,836 | O118: $ 63,494,815 | P118: $ 63,494,815 | Q118: $ 63,494,815 | R118: $ 70,549,795 | S118: =SUM(S105:S117) -> $ 692,670,714 | T118: $ 70,549,795 | U118: =SUM(U106:U117) -> 100%
B120: Subpresupuesto de ventas | G120: Subpresupuesto de cobranzas
B121: Período 8 | C121: Cantidad | D121: Importe Neto | E121: IVA DF | F121: Total | G121: Enero | H121: Febrero | I121: Marzo | J121: Abril | K121: Mayo | L121: Junio | M121: Julio | N121: Agosto | O121: Septiembre | P121: Octubre | Q121: Noviembre | R121: Diciembre | S121: Total | T121: Diferido
B122: Diferido período 7 | G122: =T117 -> $ 70,549,795 | S122: =SUM(G122:R122) -> $ 70,549,795
B123: Enero | C123: =C135*U123 -> 3,301 | D123: =C123*'Datos ajustados'!$J$4*(1-'Datos ajustados'!$J$5) -> $ 49,384,856 | E123: =D123*'Hoja de datos'!$C$13 -> $ 10,370,820 | F123: =SUM(D123:E123) -> $ 59,755,676 | H123: =F123 -> $ 59,755,676 | S123: $ 59,755,676 | U123: 7%
B124: Febrero | C124: =C135*U124 -> 3,301 | D124: =C124*'Datos ajustados'!$J$4*(1-'Datos ajustados'!$J$5) -> $ 49,384,856 | E124: =D124*'Hoja de datos'!$C$13 -> $ 10,370,820 | F124: $ 59,755,676 | I124: =F124 -> $ 59,755,676 | S124: $ 59,755,676 | U124: 7%
B125: Marzo | C125: =C135*U125 -> 3,301 | D125: =C125*'Datos ajustados'!$J$4*(1-'Datos ajustados'!$J$5) -> $ 49,384,856 | E125: =D125*'Hoja de datos'!$C$13 -> $ 10,370,820 | F125: $ 59,755,676 | J125: =F125 -> $ 59,755,676 | S125: $ 59,755,676 | U125: 7%
B126: Abril | C126: =C135*U126 -> 3,773 | D126: =C126*'Datos ajustados'!$J$4*(1-'Datos ajustados'!$J$5) -> $ 56,439,836 | E126: =D126*'Hoja de datos'!$C$13 -> $ 11,852,366 | F126: $ 68,292,201 | K126: =F126 -> $ 68,292,201 | S126: $ 68,292,201 | U126: 8%
B127: Mayo | C127: =C135*U127 -> 3,773 | D127: =C127*'Datos ajustados'!$J$4*(1-'Datos ajustados'!$J$5) -> $ 56,439,836 | E127: =D127*'Hoja de datos'!$C$13 -> $ 11,852,366 | F127: $ 68,292,201 | L127: =F127 -> $ 68,292,201 | S127: $ 68,292,201 | U127: 8%
B128: Junio | C128: =C135*U128 -> 3,773 | D128: =C128*'Datos ajustados'!$J$4*(1-'Datos ajustados'!$J$5) -> $ 56,439,836 | E128: =D128*'Hoja de datos'!$C$13 -> $ 11,852,366 | F128: $ 68,292,201 | M128: =F128 -> $ 68,292,201 | S128: $ 68,292,201 | U128: 8%
B129: Julio | C129: =C135*U129 -> 3,773 | D129: =C129*'Datos ajustados'!$J$4*(1-'Datos ajustados'!$J$5) -> $ 56,439,836 | E129: =D129*'Hoja de datos'!$C$13 -> $ 11,852,366 | F129: $ 68,292,201 | N129: =F129 -> $ 68,292,201 | S129: $ 68,292,201 | U129: 8%
B130: Agosto | C130: =C135*U130 -> 4,244 | D130: =C130*'Datos ajustados'!$J$4*(1-'Datos ajustados'!$J$5) -> $ 63,494,815 | E130: =D130*'Hoja de datos'!$C$13 -> $ 13,333,911 | F130: $ 76,828,727 | O130: =F130 -> $ 76,828,727 | S130: $ 76,828,727 | U130: 9%
B131: Septiembre | C131: =C135*U131 -> 4,244 | D131: =C131*'Datos ajustados'!$J$4*(1-'Datos ajustados'!$J$5) -> $ 63,494,815 | E131: =D131*'Hoja de datos'!$C$13 -> $ 13,333,911 | F131: $ 76,828,727 | P131: =F131 -> $ 76,828,727 | S131: $ 76,828,727 | U131: 9%
B132: Octubre | C132: =C135*U132 -> 4,244 | D132: =C132*'Datos ajustados'!$J$4*(1-'Datos ajustados'!$J$5) -> $ 63,494,815 | E132: =D132*'Hoja de datos'!$C$13 -> $ 13,333,911 | F132: $ 76,828,727 | Q132: =F132 -> $ 76,828,727 | S132: $ 76,828,727 | U132: 9%
B133: Noviembre | C133: =C135*U133 -> 4,716 | D133: =C133*'Datos ajustados'!$J$4*(1-'Datos ajustados'!$J$5) -> $ 70,549,795 | E133: =D133*'Hoja de datos'!$C$13 -> $ 14,815,457 | F133: $ 85,365,252 | R133: =F133 -> $ 85,365,252 | S133: $ 85,365,252 | U133: 10%
B134: Diciembre | C134: =C135*U134 -> 4,716 | D134: =C134*'Datos ajustados'!$J$4*(1-'Datos ajustados'!$J$5) -> $ 70,549,795 | E134: =D134*'Hoja de datos'!$C$13 -> $ 14,815,457 | F134: $ 85,365,252 | S134: 0 | T134: =F134 -> $ 85,365,252 | U134: 10%
B135: Total | C135: ='Datos ajustados'!J10 -> 47,159 | D135: =SUM(D123:D134) -> $ 705,497,949 | E135: $ 148,154,569 | F135: $ 853,652,518 | G135: =SUM(G122:G134) -> $ 70,549,795 | H135: =SUM(H123:H134) -> $ 59,755,676 | I135: $ 59,755,676 | J135: $ 59,755,676 | K135: $ 68,292,201 | L135: $ 68,292,201 | M135: $ 68,292,201 | N135: $ 68,292,201 | O135: $ 76,828,727 | P135: $ 76,828,727 | Q135: $ 76,828,727 | R135: $ 85,365,252 | S135: =SUM(S122:S134) -> $ 838,837,062 | T135: $ 85,365,252 | U135: =SUM(U123:U134) -> 100%
B137: Subpresupuesto de ventas | G137: Subpresupuesto de cobranzas
B138: Períodos | C138: Cantidad | D138: Importe Neto | E138: IVA DF | F138: Total | G138: Período 1 | H138: Período 2 | I138: Período 3 | J138: Período 4 | K138: Período 5 | L138: Período 6 | M138: Período 7 | N138: Período 8 | O138: Total | P138: Diferido
B139: Período 1 | C139: =C16 -> 3,300 | D139: $ 49,368,000 | E139: =D139*'Hoja de datos'!$C$13 -> $ 10,367,280 | F139: =D139+E139 -> $ 59,735,280 | G139: =S16 -> $ 52,567,046 | H139: $ 7,168,234 | O139: =SUM(G139:N139) -> $ 59,735,280
B140: Período 2 | C140: =C33 -> 7,260 | D140: $ 110,781,792 | E140: =D140*'Hoja de datos'!$C$13 -> $ 23,264,176 | F140: $ 134,045,968 | H140: =S33-S20 -> $ 119,590,031 | I140: =T33 -> $ 14,455,938 | O140: $ 134,045,968
B141: Período 3 | C141: =C50 -> 13,310 | D141: $ 203,099,952 | E141: =D141*'Hoja de datos'!$C$13 -> $ 42,650,990 | F141: $ 245,750,942 | I141: =S50-S37 -> $ 219,248,389 | J141: =T50 -> $ 26,502,553 | O141: $ 245,750,942
B142: Período 4 | C142: =C67 -> 20,497 | D142: $ 312,773,926 | E142: =D142*'Hoja de datos'!$C$13 -> $ 65,682,524 | F142: $ 378,456,451 | J142: =S67-S54 -> $ 337,642,520 | K142: =T67 -> $ 40,813,931 | O142: $ 378,456,451
B143: Período 5 | C143: =C84 -> 25,768 | D143: $ 385,491,674 | E143: =D143*'Hoja de datos'!$C$13 -> $ 80,953,251 | F143: $ 466,444,925 | K143: =S84-S71 -> $ 419,800,433 | L143: =T84 -> $ 46,644,493 | O143: $ 466,444,925
B144: Período 6 | C144: =C101 -> 31,888 | D144: $ 477,045,946 | E144: =D144*'Hoja de datos'!$C$13 -> $ 100,179,649 | F144: $ 577,225,595 | L144: =S101-S88 -> $ 519,503,035 | M144: =T101 -> $ 57,722,559 | O144: $ 577,225,595
B145: Período 7 | C145: =C118 -> 38,974 | D145: $ 583,056,156 | E145: =D145*'Hoja de datos'!$C$13 -> $ 122,441,793 | F145: $ 705,497,949 | M145: =S118-S105 -> $ 634,948,154 | N145: =T118 -> $ 70,549,795 | O145: $ 705,497,949
B146: Período 8 | C146: =C135 -> 47,159 | D146: $ 705,497,949 | E146: =D146*'Hoja de datos'!$C$13 -> $ 148,154,569 | F146: $ 853,652,518 | N146: =S135-S122 -> $ 768,287,267 | O146: $ 768,287,267 | P146: =T135 -> $ 85,365,252
B147: Total | C147: =SUM(C139:C146) -> 188,157 | D147: $ 2,827,115,395 | E147: $ 593,694,233 | F147: $ 3,420,809,628 | G147: $ 52,567,046 | H147: $ 126,758,264 | I147: $ 233,704,327 | J147: $ 364,145,072 | K147: $ 460,614,363 | L147: $ 566,147,528 | M147: $ 692,670,714 | N147: $ 838,837,062 | O147: $ 3,335,444,376 | P147: $ 85,365,252

Sheet Subp. Compras y Pagos
B2: Subpresupuesto de compras | G2: Subpresupuesto de pagos
B3: Período 1 | C3: Cantidad | D3: Importe Neto | E3: IVA CF | F3: Total | G3: Enero | H3: Febrero | I3: Marzo | J3: Abril | K3: Mayo | L3: Junio | M3: Julio | N3: Agosto | O3: Septiembre | P3: Octubre | Q3: Noviembre | R3: Diciembre | S3: Total | T3: Diferido
B4: Enero | C4: ='Subp. Ventas y Cobros'!C4 -> 66 | D4: =C4*'Datos ajustados'!$C$6 -> $ 409,200 | E4: =D4*'Hoja de datos'!$C$13 -> $ 85,932 | F4: =SUM(D4:E4) -> $ 495,132 | H4: =F4 -> $ 495,132 | S4: =SUM(G4:R4) -> $ 495,132
B5: Febrero | C5: ='Subp. Ventas y Cobros'!C5 -> 99 | D5: =C5*'Datos ajustados'!$C$6 -> $ 613,800 | E5: =D5*'Hoja de datos'!$C$13 -> $ 128,898 | F5: $ 742,698 | I5: =F5 -> $ 742,698 | S5: $ 742,698
B6: Marzo | C6: ='Subp. Ventas y Cobros'!C6 -> 165 | D6: =C6*'Datos ajustados'!$C$6 -> $ 1,023,000 | E6: =D6*'Hoja de datos'!$C$13 -> $ 214,830 | F6: $ 1,237,830 | J6: =F6 -> $ 1,237,830 | S6: $ 1,237,830
B7: Abril | C7: ='Subp. Ventas y Cobros'!C7 -> 264 | D7: =C7*'Datos ajustados'!$C$6 -> $ 1,636,800 | E7: =D7*'Hoja de datos'!$C$13 -> $ 343,728 | F7: $ 1,980,528 | K7: =F7 -> $ 1,980,528 | S7: $ 1,980,528
B8: Mayo | C8: ='Subp. Ventas y Cobros'!C8 -> 297 | D8: =C8*'Datos ajustados'!$C$6 -> $ 1,841,400 | E8: =D8*'Hoja de datos'!$C$13 -> $ 386,694 | F8: $ 2,228,094 | L8: =F8 -> $ 2,228,094 | S8: $ 2,228,094
B9: Junio | C9: ='Subp. Ventas y Cobros'!C9 -> 297 | D9: =C9*'Datos ajustados'!$C$6 -> $ 1,841,400 | E9: =D9*'Hoja de datos'!$C$13 -> $ 386,694 | F9: $ 2,228,094 | M9: =F9 -> $ 2,228,094 | S9: $ 2,228,094
B10: Julio | C10: ='Subp. Ventas y Cobros'!C10 -> 297 | D10: =C10*'Datos ajustados'!$C$6 -> $ 1,841,400 | E10: =D10*'Hoja de datos'!$C$13 -> $ 386,694 | F10: $ 2,228,094 | N10: =F10 -> $ 2,228,094 | S10: $ 2,228,094
B11: Agosto | C11: ='Subp. Ventas y Cobros'!C11 -> 330 | D11: =C11*'Datos ajustados'!$C$6 -> $ 2,046,000 | E11: =D11*'Hoja de datos'!$C$13 -> $ 429,660 | F11: $ 2,475,660 | O11: =F11 -> $ 2,475,660 | S11: $ 2,475,660
B12: Septiembre | C12: ='Subp. Ventas y Cobros'!C12 -> 330 | D12: =C12*'Datos ajustados'!$C$6 -> $ 2,046,000 | E12: =D12*'Hoja de datos'!$C$13 -> $ 429,660 | F12: $ 2,475,660 | P12: =F12 -> $ 2,475,660 | S12: $ 2,475,660
B13: Octubre | C13: ='Subp. Ventas y Cobros'!C13 -> 363 | D13: =C13*'Datos ajustados'!$C$6 -> $ 2,250,600 | E13: =D13*'Hoja de datos'!$C$13 -> $ 472,626 | F13: $ 2,723,226 | Q13: =F13 -> $ 2,723,226 | S13: $ 2,723,226
B14: Noviembre | C14: ='Subp. Ventas y Cobros'!C14 -> 396 | D14: =C14*'Datos ajustados'!$C$6 -> $ 2,455,200 | E14: =D14*'Hoja de datos'!$C$13 -> $ 515,592 | F14: $ 2,970,792 | R14: =F14 -> $ 2,970,792 | S14: $ 2,970,792
B15: Diciembre | C15: ='Subp. Ventas y Cobros'!C15 -> 396 | D15: =C15*'Datos ajustados'!$C$6 -> $ 2,455,200 | E15: =D15*'Hoja de datos'!$C$13 -> $ 515,592 | F15: $ 2,970,792 | S15: 0 | T15: =F15 -> $ 2,970,792
B16: Total | C16: ='Datos ajustados'!C10 -> 3,300 | D16: =SUM(D4:D15) -> $ 20,460,000 | E16: $ 4,296,600 | F16: $ 24,756,600 | G16: 0 | H16: $ 495,132 | I16: $ 742,698 | J16: $ 1,237,830 | K16: $ 1,980,528 | L16: $ 2,228,094 | M16: $ 2,228,094 | N16: $ 2,228,094 | O16: $ 2,475,660 | P16: $ 2,475,660 | Q16: $ 2,723,226 | R16: $ 2,970,792 | S16: $ 21,785,808 | T16: $ 2,970,792
B18: Subpresupuesto de compras | G18: Subpresupuesto de pagos
B19: Período 2 | C19: Cantidad | D19: Importe Neto | E19: IVA CF | F19: Total | G19: Enero | H19: Febrero | I19: Marzo | J19: Abril | K19: Mayo | L19: Junio | M19: Julio | N19: Agosto | O19: Septiembre | P19: Octubre | Q19: Noviembre | R19: Diciembre | S19: Total | T19: Diferido
B20: Diferido período 1 | G20: =T15 -> $ 2,970,792 | S20: =SUM(G20:R20) -> $ 2,970,792
B21: Enero | C21: ='Subp. Ventas y Cobros'!C21 -> 436 | D21: =C21*'Datos ajustados'!$D$6 -> $ 2,700,720 | E21: =D21*'Hoja de datos'!$C$13 -> $ 567,151 | F21: =SUM(D21:E21) -> $ 3,267,871 | H21: =F21 -> $ 3,267,871 | S21: $ 3,267,871
B22: Febrero | C22: ='Subp. Ventas y Cobros'!C22 -> 508 | D22: =C22*'Datos ajustados'!$D$6 -> $ 3,150,840 | E22: =D22*'Hoja de datos'!$C$13 -> $ 661,676 | F22: $ 3,812,516 | I22: =F22 -> $ 3,812,516 | S22: $ 3,812,516
B23: Marzo | C23: ='Subp. Ventas y Cobros'!C23 -> 508 | D23: =C23*'Datos ajustados'!$D$6 -> $ 3,150,840 | E23: =D23*'Hoja de datos'!$C$13 -> $ 661,676 | F23: $ 3,812,516 | J23: =F23 -> $ 3,812,516 | S23: $ 3,812,516
B24: Abril | C24: ='Subp. Ventas y Cobros'!C24 -> 581 | D24: =C24*'Datos ajustados'!$D$6 -> $ 3,600,960 | E24: =D24*'Hoja de datos'!$C$13 -> $ 756,202 | F24: $ 4,357,162 | K24: =F24 -> $ 4,357,162 | S24: $ 4,357,162
B25: Mayo | C25: ='Subp. Ventas y Cobros'!C25 -> 581 | D25: =C25*'Datos ajustados'!$D$6 -> $ 3,600,960 | E25: =D25*'Hoja de datos'!$C$13 -> $ 756,202 | F25: $ 4,357,162 | L25: =F25 -> $ 4,357,162 | S25: $ 4,357,162
B26: Junio | C26: ='Subp. Ventas y Cobros'!C26 -> 581 | D26: =C26*'Datos ajustados'!$D$6 -> $ 3,600,960 | E26: =D26*'Hoja de datos'!$C$13 -> $ 756,202 | F26: $ 4,357,162 | M26: =F26 -> $ 4,357,162 | S26: $ 4,357,162
B27: Julio | C27: ='Subp. Ventas y Cobros'!C27 -> 653 | D27: =C27*'Datos ajustados'!$D$6 -> $ 4,051,080 | E27: =D27*'Hoja de datos'!$C$13 -> $ 850,727 | F27: $ 4,901,807 | N27: =F27 -> $ 4,901,807 | S27: $ 4,901,807
B28: Agosto | C28: ='Subp. Ventas y Cobros'!C28 -> 653 | D28: =C28*'Datos ajustados'!$D$6 -> $ 4,051,080 | E28: =D28*'Hoja de datos'!$C$13 -> $ 850,727 | F28: $ 4,901,807 | O28: =F28 -> $ 4,901,807 | S28: $ 4,901,807
B29: Septiembre | C29: ='Subp. Ventas y Cobros'!C29 -> 653 | D29: =C29*'Datos ajustados'!$D$6 -> $ 4,051,080 | E29: =D29*'Hoja de datos'!$C$13 -> $ 850,727 | F29: $ 4,901,807 | P29: =F29 -> $ 4,901,807 | S29: $ 4,901,807
B30: Octubre | C30: ='Subp. Ventas y Cobros'!C30 -> 726 | D30: =C30*'Datos ajustados'!$D$6 -> $ 4,501,200 | E30: =D30*'Hoja de datos'!$C$13 -> $ 945,252 | F30: $ 5,446,452 | Q30: =F30 -> $ 5,446,452 | S30: $ 5,446,452
B31: Noviembre | C31: ='Subp. Ventas y Cobros'!C31 -> 726 | D31: =C31*'Datos ajustados'!$D$6 -> $ 4,501,200 | E31: =D31*'Hoja de datos'!$C$13 -> $ 945,252 | F31: $ 5,446,452 | R31: =F31 -> $ 5,446,452 | S31: $ 5,446,452
B32: Diciembre | C32: ='Subp. Ventas y Cobros'!C32 -> 799 | D32: =C32*'Datos ajustados'!$D$6 -> $ 4,951,320 | E32: =D32*'Hoja de datos'!$C$13 -> $ 1,039,777 | F32: $ 5,991,097 | S32: 0 | T32: =F32 -> $ 5,991,097
B33: Total | C33: ='Datos ajustados'!D10 -> 7,260 | D33: =SUM(D21:D32) -> $ 45,912,240 | E33: $ 9,641,570 | F33: $ 55,553,810 | G33: =SUM(G20:G32) -> $ 2,970,792 | H33: =SUM(H21:H32) -> $ 3,267,871 | I33: $ 3,812,516 | J33: $ 3,812,516 | K33: $ 4,357,162 | L33: $ 4,357,162 | M33: $ 4,357,162 | N33: $ 4,901,807 | O33: $ 4,901,807 | P33: $ 4,901,807 | Q33: $ 5,446,452 | R33: $ 5,446,452 | S33: =SUM(S20:S32) -> $ 52,533,505 | T33: $ 5,991,097
B35: Subpresupuesto de compras | G35: Subpresupuesto de pagos
B36: Período 3 | C36: Cantidad | D36: Importe Neto | E36: IVA CF | F36: Total | G36: Enero | H36: Febrero | I36: Marzo | J36: Abril | K36: Mayo | L36: Junio | M36: Julio | N36: Agosto | O36: Septiembre | P36: Octubre | Q36: Noviembre | R36: Diciembre | S36: Total | T36: Diferido
B37: Diferido período 2 | G37: =T32 -> $ 5,991,097 | S37: =SUM(G37:R37) -> $ 5,991,097
B38: Enero | C38: ='Subp. Ventas y Cobros'!C38 -> 799 | D38: =C38*'Datos ajustados'!$E$6 -> $ 4,951,320 | E38: =D38*'Hoja de datos'!$C$13 -> $ 1,039,777 | F38: =SUM(D38:E38) -> $ 5,991,097 | H38: =F38 -> $ 5,991,097 | S38: $ 5,991,097
B39: Febrero | C39: ='Subp. Ventas y Cobros'!C39 -> 932 | D39: =C39*'Datos ajustados'!$E$6 -> $ 5,776,540 | E39: =D39*'Hoja de datos'!$C$13 -> $ 1,213,073 | F39: $ 6,989,613 | I39: =F39 -> $ 6,989,613 | S39: $ 6,989,613
B40: Marzo | C40: ='Subp. Ventas y Cobros'!C40 -> 932 | D40: =C40*'Datos ajustados'!$E$6 -> $ 5,776,540 | E40: =D40*'Hoja de datos'!$C$13 -> $ 1,213,073 | F40: $ 6,989,613 | J40: =F40 -> $ 6,989,613 | S40: $ 6,989,613
B41: Abril | C41: ='Subp. Ventas y Cobros'!C41 -> 1,065 | D41: =C41*'Datos ajustados'!$E$6 -> $ 6,601,760 | E41: =D41*'Hoja de datos'!$C$13 -> $ 1,386,370 | F41: $ 7,988,130 | K41: =F41 -> $ 7,988,130 | S41: $ 7,988,130
B42: Mayo | C42: ='Subp. Ventas y Cobros'!C42 -> 1,065 | D42: =C42*'Datos ajustados'!$E$6 -> $ 6,601,760 | E42: =D42*'Hoja de datos'!$C$13 -> $ 1,386,370 | F42: $ 7,988,130 | L42: =F42 -> $ 7,988,130 | S42: $ 7,988,130
B43: Junio | C43: ='Subp. Ventas y Cobros'!C43 -> 1,065 | D43: =C43*'Datos ajustados'!$E$6 -> $ 6,601,760 | E43: =D43*'Hoja de datos'!$C$13 -> $ 1,386,370 | F43: $ 7,988,130 | M43: =F43 -> $ 7,988,130 | S43: $ 7,988,130
B44: Julio | C44: ='Subp. Ventas y Cobros'!C44 -> 1,198 | D44: =C44*'Datos ajustados'!$E$6 -> $ 7,426,980 | E44: =D44*'Hoja de datos'!$C$13 -> $ 1,559,666 | F44: $ 8,986,646 | N44: =F44 -> $ 8,986,646 | S44: $ 8,986,646
B45: Agosto | C45: ='Subp. Ventas y Cobros'!C45 -> 1,198 | D45: =C45*'Datos ajustados'!$E$6 -> $ 7,426,980 | E45: =D45*'Hoja de datos'!$C$13 -> $ 1,559,666 | F45: $ 8,986,646 | O45: =F45 -> $ 8,986,646 | S45: $ 8,986,646
B46: Septiembre | C46: ='Subp. Ventas y Cobros'!C46 -> 1,198 | D46: =C46*'Datos ajustados'!$E$6 -> $ 7,426,980 | E46: =D46*'Hoja de datos'!$C$13 -> $ 1,559,666 | F46: $ 8,986,646 | P46: =F46 -> $ 8,986,646 | S46: $ 8,986,646
B47: Octubre | C47: ='Subp. Ventas y Cobros'!C47 -> 1,331 | D47: =C47*'Datos ajustados'!$E$6 -> $ 8,252,200 | E47: =D47*'Hoja de datos'!$C$13 -> $ 1,732,962 | F47: $ 9,985,162 | Q47: =F47 -> $ 9,985,162 | S47: $ 9,985,162
B48: Noviembre | C48: ='Subp. Ventas y Cobros'!C48 -> 1,331 | D48: =C48*'Datos ajustados'!$E$6 -> $ 8,252,200 | E48: =D48*'Hoja de datos'!$C$13 -> $ 1,732,962 | F48: $ 9,985,162 | R48: =F48 -> $ 9,985,162 | S48: $ 9,985,162
B49: Diciembre | C49: ='Subp. Ventas y Cobros'!C49 -> 1,464 | D49: =C49*'Datos ajustados'!$E$6 -> $ 9,077,420 | E49: =D49*'Hoja de datos'!$C$13 -> $ 1,906,258 | F49: $ 10,983,678 | S49: 0 | T49: =F49 -> $ 10,983,678
B50: Total | C50: ='Datos ajustados'!E10 -> 13,310 | D50: =SUM(D38:D49) -> $ 84,172,440 | E50: $ 17,676,212 | F50: $ 101,848,652 | G50: =SUM(G37:G49) -> $ 5,991,097 | H50: =SUM(H38:H49) -> $ 5,991,097 | I50: $ 6,989,613 | J50: $ 6,989,613 | K50: $ 7,988,130 | L50: $ 7,988,130 | M50: $ 7,988,130 | N50: $ 8,986,646 | O50: $ 8,986,646 | P50: $ 8,986,646 | Q50: $ 9,985,162 | R50: $ 9,985,162 | S50: =SUM(S37:S49) -> $ 96,856,071 | T50: $ 10,983,678
B52: Subpresupuesto de compras | G52: Subpresupuesto de pagos
B53: Período 4 | C53: Cantidad | D53: Importe Neto | E53: IVA CF | F53: Total | G53: Enero | H53: Febrero | I53: Marzo | J53: Abril | K53: Mayo | L53: Junio | M53: Julio | N53: Agosto | O53: Septiembre | P53: Octubre | Q53: Noviembre | R53: Diciembre | S53: Total | T53: Diferido
B54: Diferido período 3 | G54: =T49 -> $ 10,983,678 | S54: =SUM(G54:R54) -> $ 10,983,678
B55: Enero | C55: ='Subp. Ventas y Cobros'!C55 -> 1,230 | D55: =C55*'Datos ajustados'!$F$6 -> $ 7,625,033 | E55: =D55*'Hoja de datos'!$C$13 -> $ 1,601,257 | F55: =SUM(D55:E55) -> $ 9,226,290 | H55: =F55 -> $ 9,226,290 | S55: $ 9,226,290
B56: Febrero | C56: ='Subp. Ventas y Cobros'!C56 -> 1,435 | D56: =C56*'Datos ajustados'!$F$6 -> $ 8,895,872 | E56: =D56*'Hoja de datos'!$C$13 -> $ 1,868,133 | F56: $ 10,764,005 | I56: =F56 -> $ 10,764,005 | S56: $ 10,764,005
B57: Marzo | C57: ='Subp. Ventas y Cobros'!C57 -> 1,435 | D57: =C57*'Datos ajustados'!$F$6 -> $ 8,895,872 | E57: =D57*'Hoja de datos'!$C$13 -> $ 1,868,133 | F57: $ 10,764,005 | J57: =F57 -> $ 10,764,005 | S57: $ 10,764,005
B58: Abril | C58: ='Subp. Ventas y Cobros'!C58 -> 1,640 | D58: =C58*'Datos ajustados'!$F$6 -> $ 10,166,710 | E58: =D58*'Hoja de datos'!$C$13 -> $ 2,135,009 | F58: $ 12,301,720 | K58: =F58 -> $ 12,301,720 | S58: $ 12,301,720
B59: Mayo | C59: ='Subp. Ventas y Cobros'!C59 -> 1,640 | D59: =C59*'Datos ajustados'!$F$6 -> $ 10,166,710 | E59: =D59*'Hoja de datos'!$C$13 -> $ 2,135,009 | F59: $ 12,301,720 | L59: =F59 -> $ 12,301,720 | S59: $ 12,301,720
B60: Junio | C60: ='Subp. Ventas y Cobros'!C60 -> 1,640 | D60: =C60*'Datos ajustados'!$F$6 -> $ 10,166,710 | E60: =D60*'Hoja de datos'!$C$13 -> $ 2,135,009 | F60: $ 12,301,720 | M60: =F60 -> $ 12,301,720 | S60: $ 12,301,720
B61: Julio | C61: ='Subp. Ventas y Cobros'!C61 -> 1,845 | D61: =C61*'Datos ajustados'!$F$6 -> $ 11,437,549 | E61: =D61*'Hoja de datos'!$C$13 -> $ 2,401,885 | F61: $ 13,839,435 | N61: =F61 -> $ 13,839,435 | S61: $ 13,839,435
B62: Agosto | C62: ='Subp. Ventas y Cobros'!C62 -> 1,845 | D62: =C62*'Datos ajustados'!$F$6 -> $ 11,437,549 | E62: =D62*'Hoja de datos'!$C$13 -> $ 2,401,885 | F62: $ 13,839,435 | O62: =F62 -> $ 13,839,435 | S62: $ 13,839,435
B63: Septiembre | C63: ='Subp. Ventas y Cobros'!C63 -> 1,845 | D63: =C63*'Datos ajustados'!$F$6 -> $ 11,437,549 | E63: =D63*'Hoja de datos'!$C$13 -> $ 2,401,885 | F63: $ 13,839,435 | P63: =F63 -> $ 13,839,435 | S63: $ 13,839,435
B64: Octubre | C64: ='Subp. Ventas y Cobros'!C64 -> 2,050 | D64: =C64*'Datos ajustados'!$F$6 -> $ 12,708,388 | E64: =D64*'Hoja de datos'!$C$13 -> $ 2,668,761 | F64: $ 15,377,149 | Q64: =F64 -> $ 15,377,149 | S64: $ 15,377,149
B65: Noviembre | C65: ='Subp. Ventas y Cobros'!C65 -> 2,050 | D65: =C65*'Datos ajustados'!$F$6 -> $ 12,708,388 | E65: =D65*'Hoja de datos'!$C$13 -> $ 2,668,761 | F65: $ 15,377,149 | R65: =F65 -> $ 15,377,149 | S65: $ 15,377,149
B66: Diciembre | C66: ='Subp. Ventas y Cobros'!C66 -> 2,255 | D66: =C66*'Datos ajustados'!$F$6 -> $ 13,979,227 | E66: =D66*'Hoja de datos'!$C$13 -> $ 2,935,638 | F66: $ 16,914,864 | S66: 0 | T66: =F66 -> $ 16,914,864
B67: Total | C67: ='Datos ajustados'!F10 -> 20,497 | D67: =SUM(D55:D66) -> $ 129,625,558 | E67: $ 27,221,367 | F67: $ 156,846,925 | G67: =SUM(G54:G66) -> $ 10,983,678 | H67: =SUM(H55:H66) -> $ 9,226,290 | I67: $ 10,764,005 | J67: $ 10,764,005 | K67: $ 12,301,720 | L67: $ 12,301,720 | M67: $ 12,301,720 | N67: $ 13,839,435 | O67: $ 13,839,435 | P67: $ 13,839,435 | Q67: $ 15,377,149 | R67: $ 15,377,149 | S67: =SUM(S54:S66) -> $ 150,915,738 | T67: $ 16,914,864
B69: Subpresupuesto de compras | G69: Subpresupuesto de pagos
B70: Período 5 | C70: Cantidad | D70: Importe Neto | E70: IVA CF | F70: Total | G70: Enero | H70: Febrero | I70: Marzo | J70: Abril | K70: Mayo | L70: Junio | M70: Julio | N70: Agosto | O70: Septiembre | P70: Octubre | Q70: Noviembre | R70: Diciembre | S70: Total | T70: Diferido
B71: Diferido período 4 | G71: =T66 -> $ 16,914,864 | S71: =SUM(G71:R71) -> $ 16,914,864
B72: Enero | C72: ='Subp. Ventas y Cobros'!C72 -> 1,804 | D72: =C72*'Datos ajustados'!$G$6 -> $ 11,183,381 | E72: =D72*'Hoja de datos'!$C$13 -> $ 2,348,510 | F72: =SUM(D72:E72) -> $ 13,531,892 | H72: =F72 -> $ 13,531,892 | S72: $ 13,531,892
B73: Febrero | C73: ='Subp. Ventas y Cobros'!C73 -> 1,804 | D73: =C73*'Datos ajustados'!$G$6 -> $ 11,183,381 | E73: =D73*'Hoja de datos'!$C$13 -> $ 2,348,510 | F73: $ 13,531,892 | I73: =F73 -> $ 13,531,892 | S73: $ 13,531,892
B74: Marzo | C74: ='Subp. Ventas y Cobros'!C74 -> 1,804 | D74: =C74*'Datos ajustados'!$G$6 -> $ 11,183,381 | E74: =D74*'Hoja de datos'!$C$13 -> $ 2,348,510 | F74: $ 13,531,892 | J74: =F74 -> $ 13,531,892 | S74: $ 13,531,892
B75: Abril | C75: ='Subp. Ventas y Cobros'!C75 -> 2,061 | D75: =C75*'Datos ajustados'!$G$6 -> $ 12,781,007 | E75: =D75*'Hoja de datos'!$C$13 -> $ 2,684,012 | F75: $ 15,465,019 | K75: =F75 -> $ 15,465,019 | S75: $ 15,465,019
B76: Mayo | C76: ='Subp. Ventas y Cobros'!C76 -> 2,061 | D76: =C76*'Datos ajustados'!$G$6 -> $ 12,781,007 | E76: =D76*'Hoja de datos'!$C$13 -> $ 2,684,012 | F76: $ 15,465,019 | L76: =F76 -> $ 15,465,019 | S76: $ 15,465,019
B77: Junio | C77: ='Subp. Ventas y Cobros'!C77 -> 2,061 | D77: =C77*'Datos ajustados'!$G$6 -> $ 12,781,007 | E77: =D77*'Hoja de datos'!$C$13 -> $ 2,684,012 | F77: $ 15,465,019 | M77: =F77 -> $ 15,465,019 | S77: $ 15,465,019
B78: Julio | C78: ='Subp. Ventas y Cobros'!C78 -> 2,061 | D78: =C78*'Datos ajustados'!$G$6 -> $ 12,781,007 | E78: =D78*'Hoja de datos'!$C$13 -> $ 2,684,012 | F78: $ 15,465,019 | N78: =F78 -> $ 15,465,019 | S78: $ 15,465,019
B79: Agosto | C79: ='Subp. Ventas y Cobros'!C79 -> 2,319 | D79: =C79*'Datos ajustados'!$G$6 -> $ 14,378,633 | E79: =D79*'Hoja de datos'!$C$13 -> $ 3,019,513 | F79: $ 17,398,146 | O79: =F79 -> $ 17,398,146 | S79: $ 17,398,146
B80: Septiembre | C80: ='Subp. Ventas y Cobros'!C80 -> 2,319 | D80: =C80*'Datos ajustados'!$G$6 -> $ 14,378,633 | E80: =D80*'Hoja de datos'!$C$13 -> $ 3,019,513 | F80: $ 17,398,146 | P80: =F80 -> $ 17,398,146 | S80: $ 17,398,146
B81: Octubre | C81: ='Subp. Ventas y Cobros'!C81 -> 2,319 | D81: =C81*'Datos ajustados'!$G$6 -> $ 14,378,633 | E81: =D81*'Hoja de datos'!$C$13 -> $ 3,019,513 | F81: $ 17,398,146 | Q81: =F81 -> $ 17,398,146 | S81: $ 17,398,146
B82: Noviembre | C82: ='Subp. Ventas y Cobros'!C82 -> 2,577 | D82: =C82*'Datos ajustados'!$G$6 -> $ 15,976,259 | E82: =D82*'Hoja de datos'!$C$13 -> $ 3,355,014 | F82: $ 19,331,274 | R82: =F82 -> $ 19,331,274 | S82: $ 19,331,274
B83: Diciembre | C83: ='Subp. Ventas y Cobros'!C83 -> 2,577 | D83: =C83*'Datos ajustados'!$G$6 -> $ 15,976,259 | E83: =D83*'Hoja de datos'!$C$13 -> $ 3,355,014 | F83: $ 19,331,274 | S83: 0 | T83: =F83 -> $ 19,331,274
B84: Total | C84: ='Datos ajustados'!G10 -> 25,768 | D84: =SUM(D72:D83) -> $ 159,762,592 | E84: $ 33,550,144 | F84: $ 193,312,736 | G84: =SUM(G71:G83) -> $ 16,914,864 | H84: =SUM(H72:H83) -> $ 13,531,892 | I84: $ 13,531,892 | J84: $ 13,531,892 | K84: $ 15,465,019 | L84: $ 15,465,019 | M84: $ 15,465,019 | N84: $ 15,465,019 | O84: $ 17,398,146 | P84: $ 17,398,146 | Q84: $ 17,398,146 | R84: $ 19,331,274 | S84: =SUM(S71:S83) -> $ 190,896,327 | T84: $ 19,331,274
B86: Subpresupuesto de compras | G86: Subpresupuesto de pagos
B87: Período 6 | C87: Cantidad | D87: Importe Neto | E87: IVA CF | F87: Total | G87: Enero | H87: Febrero | I87: Marzo | J87: Abril | K87: Mayo | L87: Junio | M87: Julio | N87: Agosto | O87: Septiembre | P87: Octubre | Q87: Noviembre | R87: Diciembre | S87: Total | T87: Diferido
B88: Diferido período 5 | G88: =T83 -> $ 19,331,274 | S88: =SUM(G88:R88) -> $ 19,331,274
B89: Enero | C89: ='Subp. Ventas y Cobros'!C89 -> 2,232 | D89: =C89*'Datos ajustados'!$H$6 -> $ 13,839,435 | E89: =D89*'Hoja de datos'!$C$13 -> $ 2,906,281 | F89: =SUM(D89:E89) -> $ 16,745,716 | H89: =F89 -> $ 16,745,716 | S89: $ 16,745,716
B90: Febrero | C90: ='Subp. Ventas y Cobros'!C90 -> 2,232 | D90: =C90*'Datos ajustados'!$H$6 -> $ 13,839,435 | E90: =D90*'Hoja de datos'!$C$13 -> $ 2,906,281 | F90: $ 16,745,716 | I90: =F90 -> $ 16,745,716 | S90: $ 16,745,716
B91: Marzo | C91: ='Subp. Ventas y Cobros'!C91 -> 2,232 | D91: =C91*'Datos ajustados'!$H$6 -> $ 13,839,435 | E91: =D91*'Hoja de datos'!$C$13 -> $ 2,906,281 | F91: $ 16,745,716 | J91: =F91 -> $ 16,745,716 | S91: $ 16,745,716
B92: Abril | C92: ='Subp. Ventas y Cobros'!C92 -> 2,551 | D92: =C92*'Datos ajustados'!$H$6 -> $ 15,816,497 | E92: =D92*'Hoja de datos'!$C$13 -> $ 3,321,464 | F92: $ 19,137,961 | K92: =F92 -> $ 19,137,961 | S92: $ 19,137,961
B93: Mayo | C93: ='Subp. Ventas y Cobros'!C93 -> 2,551 | D93: =C93*'Datos ajustados'!$H$6 -> $ 15,816,497 | E93: =D93*'Hoja de datos'!$C$13 -> $ 3,321,464 | F93: $ 19,137,961 | L93: =F93 -> $ 19,137,961 | S93: $ 19,137,961
B94: Junio | C94: ='Subp. Ventas y Cobros'!C94 -> 2,551 | D94: =C94*'Datos ajustados'!$H$6 -> $ 15,816,497 | E94: =D94*'Hoja de datos'!$C$13 -> $ 3,321,464 | F94: $ 19,137,961 | M94: =F94 -> $ 19,137,961 | S94: $ 19,137,961
B95: Julio | C95: ='Subp. Ventas y Cobros'!C95 -> 2,551 | D95: =C95*'Datos ajustados'!$H$6 -> $ 15,816,497 | E95: =D95*'Hoja de datos'!$C$13 -> $ 3,321,464 | F95: $ 19,137,961 | N95: =F95 -> $ 19,137,961 | S95: $ 19,137,961
B96: Agosto | C96: ='Subp. Ventas y Cobros'!C96 -> 2,870 | D96: =C96*'Datos ajustados'!$H$6 -> $ 17,793,559 | E96: =D96*'Hoja de datos'!$C$13 -> $ 3,736,647 | F96: $ 21,530,206 | O96: =F96 -> $ 21,530,206 | S96: $ 21,530,206
B97: Septiembre | C97: ='Subp. Ventas y Cobros'!C97 -> 2,870 | D97: =C97*'Datos ajustados'!$H$6 -> $ 17,793,559 | E97: =D97*'Hoja de datos'!$C$13 -> $ 3,736,647 | F97: $ 21,530,206 | P97: =F97 -> $ 21,530,206 | S97: $ 21,530,206
B98: Octubre | C98: ='Subp. Ventas y Cobros'!C98 -> 2,870 | D98: =C98*'Datos ajustados'!$H$6 -> $ 17,793,559 | E98: =D98*'Hoja de datos'!$C$13 -> $ 3,736,647 | F98: $ 21,530,206 | Q98: =F98 -> $ 21,530,206 | S98: $ 21,530,206
B99: Noviembre | C99: ='Subp. Ventas y Cobros'!C99 -> 3,189 | D99: =C99*'Datos ajustados'!$H$6 -> $ 19,770,621 | E99: =D99*'Hoja de datos'!$C$13 -> $ 4,151,830 | F99: $ 23,922,451 | R99: =F99 -> $ 23,922,451 | S99: $ 23,922,451
B100: Diciembre | C100: ='Subp. Ventas y Cobros'!C100 -> 3,189 | D100: =C100*'Datos ajustados'!$H$6 -> $ 19,770,621 | E100: =D100*'Hoja de datos'!$C$13 -> $ 4,151,830 | F100: $ 23,922,451 | S100: 0 | T100: =F100 -> $ 23,922,451
B101: Total | C101: ='Datos ajustados'!H10 -> 31,888 | D101: =SUM(D89:D100) -> $ 197,706,208 | E101: $ 41,518,304 | F101: $ 239,224,511 | G101: =SUM(G88:G100) -> $ 19,331,274 | H101: =SUM(H89:H100) -> $ 16,745,716 | I101: $ 16,745,716 | J101: $ 16,745,716 | K101: $ 19,137,961 | L101: $ 19,137,961 | M101: $ 19,137,961 | N101: $ 19,137,961 | O101: $ 21,530,206 | P101: $ 21,530,206 | Q101: $ 21,530,206 | R101: $ 23,922,451 | S101: =SUM(S88:S100) -> $ 234,633,334 | T101: $ 23,922,451
B103: Subpresupuesto de compras | G103: Subpresupuesto de pagos
B104: Período 7 | C104: Cantidad | D104: Importe Neto | E104: IVA CF | F104: Total | G104: Enero | H104: Febrero | I104: Marzo | J104: Abril | K104: Mayo | L104: Junio | M104: Julio | N104: Agosto | O104: Septiembre | P104: Octubre | Q104: Noviembre | R104: Diciembre | S104: Total | T104: Diferido
B105: Diferido período 6 | G105: =T100 -> $ 23,922,451 | S105: =SUM(G105:R105) -> $ 23,922,451
B106: Enero | C106: ='Subp. Ventas y Cobros'!C106 -> 2,728 | D106: =C106*'Datos ajustados'!$I$6 -> $ 16,914,864 | E106: =D106*'Hoja de datos'!$C$13 -> $ 3,552,122 | F106: =SUM(D106:E106) -> $ 20,466,986 | H106: =F106 -> $ 20,466,986 | S106: $ 20,466,986
B107: Febrero | C107: ='Subp. Ventas y Cobros'!C107 -> 2,728 | D107: =C107*'Datos ajustados'!$I$6 -> $ 16,914,864 | E107: =D107*'Hoja de datos'!$C$13 -> $ 3,552,122 | F107: $ 20,466,986 | I107: =F107 -> $ 20,466,986 | S107: $ 20,466,986
B108: Marzo | C108: ='Subp. Ventas y Cobros'!C108 -> 2,728 | D108: =C108*'Datos ajustados'!$I$6 -> $ 16,914,864 | E108: =D108*'Hoja de datos'!$C$13 -> $ 3,552,122 | F108: $ 20,466,986 | J108: =F108 -> $ 20,466,986 | S108: $ 20,466,986
B109: Abril | C109: ='Subp. Ventas y Cobros'!C109 -> 3,118 | D109: =C109*'Datos ajustados'!$I$6 -> $ 19,331,274 | E109: =D109*'Hoja de datos'!$C$13 -> $ 4,059,567 | F109: $ 23,390,841 | K109: =F109 -> $ 23,390,841 | S109: $ 23,390,841
B110: Mayo | C110: ='Subp. Ventas y Cobros'!C110 -> 3,118 | D110: =C110*'Datos ajustados'!$I$6 -> $ 19,331,274 | E110: =D110*'Hoja de datos'!$C$13 -> $ 4,059,567 | F110: $ 23,390,841 | L110: =F110 -> $ 23,390,841 | S110: $ 23,390,841
B111: Junio | C111: ='Subp. Ventas y Cobros'!C111 -> 3,118 | D111: =C111*'Datos ajustados'!$I$6 -> $ 19,331,274 | E111: =D111*'Hoja de datos'!$C$13 -> $ 4,059,567 | F111: $ 23,390,841 | M111: =F111 -> $ 23,390,841 | S111: $ 23,390,841
B112: Julio | C112: ='Subp. Ventas y Cobros'!C112 -> 3,118 | D112: =C112*'Datos ajustados'!$I$6 -> $ 19,331,274 | E112: =D112*'Hoja de datos'!$C$13 -> $ 4,059,567 | F112: $ 23,390,841 | N112: =F112 -> $ 23,390,841 | S112: $ 23,390,841
B113: Agosto | C113: ='Subp. Ventas y Cobros'!C113 -> 3,508 | D113: =C113*'Datos ajustados'!$I$6 -> $ 21,747,683 | E113: =D113*'Hoja de datos'!$C$13 -> $ 4,567,013 | F113: $ 26,314,696 | O113: =F113 -> $ 26,314,696 | S113: $ 26,314,696
B114: Septiembre | C114: ='Subp. Ventas y Cobros'!C114 -> 3,508 | D114: =C114*'Datos ajustados'!$I$6 -> $ 21,747,683 | E114: =D114*'Hoja de datos'!$C$13 -> $ 4,567,013 | F114: $ 26,314,696 | P114: =F114 -> $ 26,314,696 | S114: $ 26,314,696
B115: Octubre | C115: ='Subp. Ventas y Cobros'!C115 -> 3,508 | D115: =C115*'Datos ajustados'!$I$6 -> $ 21,747,683 | E115: =D115*'Hoja de datos'!$C$13 -> $ 4,567,013 | F115: $ 26,314,696 | Q115: =F115 -> $ 26,314,696 | S115: $ 26,314,696
B116: Noviembre | C116: ='Subp. Ventas y Cobros'!C116 -> 3,897 | D116: =C116*'Datos ajustados'!$I$6 -> $ 24,164,092 | E116: =D116*'Hoja de datos'!$C$13 -> $ 5,074,459 | F116: $ 29,238,551 | R116: =F116 -> $ 29,238,551 | S116: $ 29,238,551
B117: Diciembre | C117: ='Subp. Ventas y Cobros'!C117 -> 3,897 | D117: =C117*'Datos ajustados'!$I$6 -> $ 24,164,092 | E117: =D117*'Hoja de datos'!$C$13 -> $ 5,074,459 | F117: $ 29,238,551 | S117: 0 | T117: =F117 -> $ 29,238,551
B118: Total | C118: ='Datos ajustados'!I10 -> 38,974 | D118: =SUM(D106:D117) -> $ 241,640,920 | E118: $ 50,744,593 | F118: $ 292,385,514 | G118: =SUM(G105:G117) -> $ 23,922,451 | H118: =SUM(H106:H117) -> $ 20,466,986 | I118: $ 20,466,986 | J118: $ 20,466,986 | K118: $ 23,390,841 | L118: $ 23,390,841 | M118: $ 23,390,841 | N118: $ 23,390,841 | O118: $ 26,314,696 | P118: $ 26,314,696 | Q118: $ 26,314,696 | R118: $ 29,238,551 | S118: =SUM(S105:S117) -> $ 287,069,413 | T118: $ 29,238,551
B120: Subpresupuesto de compras | G120: Subpresupuesto de pagos
B121: Período 8 | C121: Cantidad | D121: Importe Neto | E121: IVA CF | F121: Total | G121: Enero | H121: Febrero | I121: Marzo | J121: Abril | K121: Mayo | L121: Junio | M121: Julio | N121: Agosto | O121: Septiembre | P121: Octubre | Q121: Noviembre | R121: Diciembre | S121: Total | T121: Diferido
B122: Diferido período 7 | G122: =T117 -> $ 29,238,551 | S122: =SUM(G122:R122) -> $ 29,238,551
B123: Enero | C123: ='Subp. Ventas y Cobros'!C123 -> 3,301 | D123: =C123*'Datos ajustados'!$J$6 -> $ 20,466,986 | E123: =D123*'Hoja de datos'!$C$13 -> $ 4,298,067 | F123: =SUM(D123:E123) -> $ 24,765,053 | H123: =F123 -> $ 24,765,053 | S123: $ 24,765,053
B124: Febrero | C124: ='Subp. Ventas y Cobros'!C124 -> 3,301 | D124: =C124*'Datos ajustados'!$J$6 -> $ 20,466,986 | E124: =D124*'Hoja de datos'!$C$13 -> $ 4,298,067 | F124: $ 24,765,053 | I124: =F124 -> $ 24,765,053 | S124: $ 24,765,053
B125: Marzo | C125: ='Subp. Ventas y Cobros'!C125 -> 3,301 | D125: =C125*'Datos ajustados'!$J$6 -> $ 20,466,986 | E125: =D125*'Hoja de datos'!$C$13 -> $ 4,298,067 | F125: $ 24,765,053 | J125: =F125 -> $ 24,765,053 | S125: $ 24,765,053
B126: Abril | C126: ='Subp. Ventas y Cobros'!C126 -> 3,773 | D126: =C126*'Datos ajustados'!$J$6 -> $ 23,390,841 | E126: =D126*'Hoja de datos'!$C$13 -> $ 4,912,077 | F126: $ 28,302,918 | K126: =F126 -> $ 28,302,918 | S126: $ 28,302,918
B127: Mayo | C127: ='Subp. Ventas y Cobros'!C127 -> 3,773 | D127: =C127*'Datos ajustados'!$J$6 -> $ 23,390,841 | E127: =D127*'Hoja de datos'!$C$13 -> $ 4,912,077 | F127: $ 28,302,918 | L127: =F127 -> $ 28,302,918 | S127: $ 28,302,918
B128: Junio | C128: ='Subp. Ventas y Cobros'!C128 -> 3,773 | D128: =C128*'Datos ajustados'!$J$6 -> $ 23,390,841 | E128: =D128*'Hoja de datos'!$C$13 -> $ 4,912,077 | F128: $ 28,302,918 | M128: =F128 -> $ 28,302,918 | S128: $ 28,302,918
B129: Julio | C129: ='Subp. Ventas y Cobros'!C129 -> 3,773 | D129: =C129*'Datos ajustados'!$J$6 -> $ 23,390,841 | E129: =D129*'Hoja de datos'!$C$13 -> $ 4,912,077 | F129: $ 28,302,918 | N129: =F129 -> $ 28,302,918 | S129: $ 28,302,918
B130: Agosto | C130: ='Subp. Ventas y Cobros'!C130 -> 4,244 | D130: =C130*'Datos ajustados'!$J$6 -> $ 26,314,696 | E130: =D130*'Hoja de datos'!$C$13 -> $ 5,526,086 | F130: $ 31,840,782 | O130: =F130 -> $ 31,840,782 | S130: $ 31,840,782
B131: Septiembre | C131: ='Subp. Ventas y Cobros'!C131 -> 4,244 | D131: =C131*'Datos ajustados'!$J$6 -> $ 26,314,696 | E131: =D131*'Hoja de datos'!$C$13 -> $ 5,526,086 | F131: $ 31,840,782 | P131: =F131 -> $ 31,840,782 | S131: $ 31,840,782
B132: Octubre | C132: ='Subp. Ventas y Cobros'!C132 -> 4,244 | D132: =C132*'Datos ajustados'!$J$6 -> $ 26,314,696 | E132: =D132*'Hoja de datos'!$C$13 -> $ 5,526,086 | F132: $ 31,840,782 | Q132: =F132 -> $ 31,840,782 | S132: $ 31,840,782
B133: Noviembre | C133: ='Subp. Ventas y Cobros'!C133 -> 4,716 | D133: =C133*'Datos ajustados'!$J$6 -> $ 29,238,551 | E133: =D133*'Hoja de datos'!$C$13 -> $ 6,140,096 | F133: $ 35,378,647 | R133: =F133 -> $ 35,378,647 | S133: $ 35,378,647
B134: Diciembre | C134: ='Subp. Ventas y Cobros'!C134 -> 4,716 | D134: =C134*'Datos ajustados'!$J$6 -> $ 29,238,551 | E134: =D134*'Hoja de datos'!$C$13 -> $ 6,140,096 | F134: $ 35,378,647 | S134: 0 | T134: =F134 -> $ 35,378,647
B135: Total | C135: ='Datos ajustados'!J10 -> 47,159 | D135: =SUM(D123:D134) -> $ 292,385,514 | E135: $ 61,400,958 | F135: $ 353,786,472 | G135: =SUM(G122:G134) -> $ 29,238,551 | H135: =SUM(H123:H134) -> $ 24,765,053 | I135: $ 24,765,053 | J135: $ 24,765,053 | K135: $ 28,302,918 | L135: $ 28,302,918 | M135: $ 28,302,918 | N135: $ 28,302,918 | O135: $ 31,840,782 | P135: $ 31,840,782 | Q135: $ 31,840,782 | R135: $ 35,378,647 | S135: =SUM(S122:S134) -> $ 347,646,376 | T135: $ 35,378,647
B137: Subpresupuesto de compras | G137: Subpresupuesto de pagos
B138: Períodos | C138: Cantidad | D138: Importe Neto | E138: IVA CF | F138: Total | G138: Período 1 | H138: Período 2 | I138: Período 3 | J138: Período 4 | K138: Período 5 | L138: Período 6 | M138: Período 7 | N138: Período 8 | O138: Total | P138: Diferido
B139: Período 1 | C139: =C16 -> 3,300 | D139: $ 20,460,000 | E139: =D139*'Hoja de datos'!$C$13 -> $ 4,296,600 | F139: =D139+E139 -> $ 24,756,600 | G139: =S16 -> $ 21,785,808 | H139: $ 2,970,792 | O139: =SUM(G139:N139) -> $ 24,756,600
B140: Período 2 | C140: =C33 -> 7,260 | D140: $ 45,912,240 | E140: =D140*'Hoja de datos'!$C$13 -> $ 9,641,570 | F140: $ 55,553,810 | H140: =S33-S20 -> $ 49,562,713 | I140: =T33 -> $ 5,991,097 | O140: $ 55,553,810
B141: Período 3 | C141: =C50 -> 13,310 | D141: $ 84,172,440 | E141: =D141*'Hoja de datos'!$C$13 -> $ 17,676,212 | F141: $ 101,848,652 | I141: =S50-S37 -> $ 90,864,974 | J141: =T50 -> $ 10,983,678 | O141: $ 101,848,652
B142: Período 4 | C142: =C67 -> 20,497 | D142: $ 129,625,558 | E142: =D142*'Hoja de datos'!$C$13 -> $ 27,221,367 | F142: $ 156,846,925 | J142: =S67-S54 -> $ 139,932,060 | K142: =T67 -> $ 16,914,864 | O142: $ 156,846,925
B143: Período 5 | C143: =C84 -> 25,768 | D143: $ 159,762,592 | E143: =D143*'Hoja de datos'!$C$13 -> $ 33,550,144 | F143: $ 193,312,736 | K143: =S84-S71 -> $ 173,981,463 | L143: =T84 -> $ 19,331,274 | O143: $ 193,312,736
B144: Período 6 | C144: =C101 -> 31,888 | D144: $ 197,706,208 | E144: =D144*'Hoja de datos'!$C$13 -> $ 41,518,304 | F144: $ 239,224,511 | L144: =S101-S88 -> $ 215,302,060 | M144: =T101 -> $ 23,922,451 | O144: $ 239,224,511
B145: Período 7 | C145: =C118 -> 38,974 | D145: $ 241,640,920 | E145: =D145*'Hoja de datos'!$C$13 -> $ 50,744,593 | F145: $ 292,385,514 | M145: =S118-S105 -> $ 263,146,962 | N145: =T118 -> $ 29,238,551 | O145: $ 292,385,514
B146: Período 8 | C146: =C135 -> 47,159 | D146: $ 292,385,514 | E146: =D146*'Hoja de datos'!$C$13 -> $ 61,400,958 | F146: $ 353,786,472 | N146: =S135-S122 -> $ 318,407,824 | O146: $ 318,407,824 | P146: =T135 -> $ 35,378,647
B147: Total | C147: =SUM(C139:C146) -> 188,157 | D147: $ 1,171,665,471 | E147: $ 246,049,749 | F147: $ 1,417,715,220 | G147: $ 21,785,808 | H147: $ 52,533,505 | I147: $ 96,856,071 | J147: $ 150,915,738 | K147: $ 190,896,327 | L147: $ 234,633,334 | M147: $ 287,069,413 | N147: $ 347,646,376 | O147: $ 1,382,336,573 | P147: $ 35,378,647

Sheet Subp. IVA e IIBB
B2: Subpresupuesto de IVA | J2: Subpresupuesto de Ingresos Brutos
B3: Período 1 | C3: Débito Fiscal | D3: Crédito Fiscal | E3: Saldo técnico | F3: Saldo a favor | G3: IVA a pagar | H3: Mes de Pago | J3: Período 1 | K3: Ventas | L3: IIBB a pagar | M3: Mes de pago
B4: Enero | C4: ='Subp. Ventas y Cobros'!E4 -> $ 207,346 | D4: ='Subp. Compras y Pagos'!E4 -> $ 85,932 | E4: =C4-D4 -> $ 121,414 | F4: =IF(E4>0,"No posee",E4) -> No posee | G4: =IF(E4>0,E4,"-") -> $ 121,414 | H4: =IF(E4>0,B5,"-") -> Febrero | J4: Enero | K4: ='Subp. Ventas y Cobros'!D4 -> $ 987,360 | L4: =K4*'Hoja de datos'!$C$14 -> $ 29,621 | M4: Febrero
B5: Febrero | C5: ='Subp. Ventas y Cobros'!E5 -> $ 311,018 | D5: ='Subp. Compras y Pagos'!E5 -> $ 128,898 | E5: $ 182,120 | F5: No posee | G5: $ 182,120 | H5: Marzo | J5: Febrero | K5: ='Subp. Ventas y Cobros'!D5 -> $ 1,481,040 | L5: =K5*'Hoja de datos'!$C$14 -> $ 44,431 | M5: Marzo
B6: Marzo | C6: ='Subp. Ventas y Cobros'!E6 -> $ 518,364 | D6: ='Subp. Compras y Pagos'!E6 -> $ 214,830 | E6: $ 303,534 | F6: No posee | G6: $ 303,534 | H6: Abril | J6: Marzo | K6: ='Subp. Ventas y Cobros'!D6 -> $ 2,468,400 | L6: =K6*'Hoja de datos'!$C$14 -> $ 74,052 | M6: Abril
B7: Abril | C7: ='Subp. Ventas y Cobros'!E7 -> $ 829,382 | D7: ='Subp. Compras y Pagos'!E7 -> $ 343,728 | E7: $ 485,654 | F7: No posee | G7: $ 485,654 | H7: Mayo | J7: Abril | K7: ='Subp. Ventas y Cobros'!D7 -> $ 3,949,440 | L7: =K7*'Hoja de datos'!$C$14 -> $ 118,483 | M7: Mayo
B8: Mayo | C8: ='Subp. Ventas y Cobros'!E8 -> $ 933,055 | D8: ='Subp. Compras y Pagos'!E8 -> $ 386,694 | E8: $ 546,361 | F8: No posee | G8: $ 546,361 | H8: Junio | J8: Mayo | K8: ='Subp. Ventas y Cobros'!D8 -> $ 4,443,120 | L8: =K8*'Hoja de datos'!$C$14 -> $ 133,294 | M8: Junio
B9: Junio | C9: ='Subp. Ventas y Cobros'!E9 -> $ 933,055 | D9: ='Subp. Compras y Pagos'!E9 -> $ 386,694 | E9: $ 546,361 | F9: No posee | G9: $ 546,361 | H9: Julio | J9: Junio | K9: ='Subp. Ventas y Cobros'!D9 -> $ 4,443,120 | L9: =K9*'Hoja de datos'!$C$14 -> $ 133,294 | M9: Julio
B10: Julio | C10: ='Subp. Ventas y Cobros'!E10 -> $ 933,055 | D10: ='Subp. Compras y Pagos'!E10 -> $ 386,694 | E10: $ 546,361 | F10: No posee | G10: $ 546,361 | H10: Agosto | J10: Julio | K10: ='Subp. Ventas y Cobros'!D10 -> $ 4,443,120 | L10: =K10*'Hoja de datos'!$C$14 -> $ 133,294 | M10: Agosto
B11: Agosto | C11: ='Subp. Ventas y Cobros'!E11 -> $ 1,036,728 | D11: ='Subp. Compras y Pagos'!E11 -> $ 429,660 | E11: $ 607,068 | F11: No posee | G11: $ 607,068 | H11: Septiembre | J11: Agosto | K11: ='Subp. Ventas y Cobros'!D11 -> $ 4,936,800 | L11: =K11*'Hoja de datos'!$C$14 -> $ 148,104 | M11: Septiembre
B12: Septiembre | C12: ='Subp. Ventas y Cobros'!E12 -> $ 1,036,728 | D12: ='Subp. Compras y Pagos'!E12 -> $ 429,660 | E12: $ 607,068 | F12: No posee | G12: $ 607,068 | H12: Octubre | J12: Septiembre | K12: ='Subp. Ventas y Cobros'!D12 -> $ 4,936,800 | L12: =K12*'Hoja de datos'!$C$14 -> $ 148,104 | M12: Octubre
B13: Octubre | C13: ='Subp. Ventas y Cobros'!E13 -> $ 1,140,401 | D13: ='Subp. Compras y Pagos'!E13 -> $ 472,626 | E13: $ 667,775 | F13: No posee | G13: $ 667,775 | H13: Noviembre | J13: Octubre | K13: ='Subp. Ventas y Cobros'!D13 -> $ 5,430,480 | L13: =K13*'Hoja de datos'!$C$14 -> $ 162,914 | M13: Noviembre
B14: Noviembre | C14: ='Subp. Ventas y Cobros'!E14 -> $ 1,244,074 | D14: ='Subp. Compras y Pagos'!E14 -> $ 515,592 | E14: $ 728,482 | F14: No posee | G14: $ 728,482 | H14: Diciembre | J14: Noviembre | K14: ='Subp. Ventas y Cobros'!D14 -> $ 5,924,160 | L14: =K14*'Hoja de datos'!$C$14 -> $ 177,725 | M14: Diciembre
B15: Diciembre | C15: ='Subp. Ventas y Cobros'!E15 -> $ 1,244,074 | D15: ='Subp. Compras y Pagos'!E15 -> $ 515,592 | E15: $ 728,482 | F15: No posee | G15: $ 728,482 | H15: =IF(E15>0,"Enero Año 2","-") -> Enero Año 2 | J15: Diciembre | K15: ='Subp. Ventas y Cobros'!D15 -> $ 5,924,160 | L15: =K15*'Hoja de datos'!$C$14 -> $ 177,725 | M15: Enero Año 2
B16: Total | C16: =SUM(C4:C15) -> $ 10,367,280 | D16: $ 4,296,600 | E16: $ 6,070,680 | J16: Total | K16: =SUM(K4:K15) -> $ 49,368,000 | L16: $ 1,481,040
B18: Subpresupuesto de IVA | J18: Subpresupuesto de Ingresos Brutos
B19: Período 2 | C19: Débito Fiscal | D19: Crédito Fiscal | E19: Saldo técnico | F19: Saldo a favor | G19: IVA a Pagar | H19: Mes de Pago | J19: Período 2 | K19: Ventas | L19: IIBB a pagar | M19: Mes de pago
B20: Enero | C20: ='Subp. Ventas y Cobros'!E21 -> $ 1,368,481 | D20: ='Subp. Compras y Pagos'!E21 -> $ 567,151 | E20: =C20-D20 -> $ 801,330 | F20: =IF(E20>0,"No posee",E20) -> No posee | G20: =IF(E20>0,E20,"-") -> $ 801,330 | H20: =IF(E20>0,B21,"-") -> Febrero | J20: Enero | K20: ='Subp. Ventas y Cobros'!D21 -> $ 6,516,576 | L20: =K20*'Hoja de datos'!$C$14 -> $ 195,497 | M20: Febrero
B21: Febrero | C21: ='Subp. Ventas y Cobros'!E22 -> $ 1,596,561 | D21: ='Subp. Compras y Pagos'!E22 -> $ 661,676 | E21: $ 934,885 | F21: No posee | G21: $ 934,885 | H21: Marzo | J21: Febrero | K21: ='Subp. Ventas y Cobros'!D22 -> $ 7,602,672 | L21: =K21*'Hoja de datos'!$C$14 -> $ 228,080 | M21: Marzo
B22: Marzo | C22: ='Subp. Ventas y Cobros'!E23 -> $ 1,596,561 | D22: ='Subp. Compras y Pagos'!E23 -> $ 661,676 | E22: $ 934,885 | F22: No posee | G22: $ 934,885 | H22: Abril | J22: Marzo | K22: ='Subp. Ventas y Cobros'!D23 -> $ 7,602,672 | L22: =K22*'Hoja de datos'!$C$14 -> $ 228,080 | M22: Abril
B23: Abril | C23: ='Subp. Ventas y Cobros'!E24 -> $ 1,824,641 | D23: ='Subp. Compras y Pagos'!E24 -> $ 756,202 | E23: $ 1,068,440 | F23: No posee | G23: $ 1,068,440 | H23: Mayo | J23: Abril | K23: ='Subp. Ventas y Cobros'!D24 -> $ 8,688,768 | L23: =K23*'Hoja de datos'!$C$14 -> $ 260,663 | M23: Mayo
B24: Mayo | C24: ='Subp. Ventas y Cobros'!E25 -> $ 1,824,641 | D24: ='Subp. Compras y Pagos'!E25 -> $ 756,202 | E24: $ 1,068,440 | F24: No posee | G24: $ 1,068,440 | H24: Junio | J24: Mayo | K24: ='Subp. Ventas y Cobros'!D25 -> $ 8,688,768 | L24: =K24*'Hoja de datos'!$C$14 -> $ 260,663 | M24: Junio
B25: Junio | C25: ='Subp. Ventas y Cobros'!E26 -> $ 1,824,641 | D25: ='Subp. Compras y Pagos'!E26 -> $ 756,202 | E25: $ 1,068,440 | F25: No posee | G25: $ 1,068,440 | H25: Julio | J25: Junio | K25: ='Subp. Ventas y Cobros'!D26 -> $ 8,688,768 | L25: =K25*'Hoja de datos'!$C$14 -> $ 260,663 | M25: Julio
B26: Julio | C26: ='Subp. Ventas y Cobros'!E27 -> $ 2,052,721 | D26: ='Subp. Compras y Pagos'!E27 -> $ 850,727 | E26: $ 1,201,995 | F26: No posee | G26: $ 1,201,995 | H26: Agosto | J26: Julio | K26: ='Subp. Ventas y Cobros'!D27 -> $ 9,774,864 | L26: =K26*'Hoja de datos'!$C$14 -> $ 293,246 | M26: Agosto
B27: Agosto | C27: ='Subp. Ventas y Cobros'!E28 -> $ 2,052,721 | D27: ='Subp. Compras y Pagos'!E28 -> $ 850,727 | E27: $ 1,201,995 | F27: No posee | G27: $ 1,201,995 | H27: Septiembre | J27: Agosto | K27: ='Subp. Ventas y Cobros'!D28 -> $ 9,774,864 | L27: =K27*'Hoja de datos'!$C$14 -> $ 293,246 | M27: Septiembre
B28: Septiembre | C28: ='Subp. Ventas y Cobros'!E29 -> $ 2,052,721 | D28: ='Subp. Compras y Pagos'!E29 -> $ 850,727 | E28: $ 1,201,995 | F28: No posee | G28: $ 1,201,995 | H28: Octubre | J28: Septiembre | K28: ='Subp. Ventas y Cobros'!D29 -> $ 9,774,864 | L28: =K28*'Hoja de datos'!$C$14 -> $ 293,246 | M28: Octubre
B29: Octubre | C29: ='Subp. Ventas y Cobros'!E30 -> $ 2,280,802 | D29: ='Subp. Compras y Pagos'!E30 -> $ 945,252 | E29: $ 1,335,550 | F29: No posee | G29: $ 1,335,550 | H29: Noviembre | J29: Octubre | K29: ='Subp. Ventas y Cobros'!D30 -> $ 10,860,960 | L29: =K29*'Hoja de datos'!$C$14 -> $ 325,829 | M29: Noviembre
B30: Noviembre | C30: ='Subp. Ventas y Cobros'!E31 -> $ 2,280,802 | D30: ='Subp. Compras y Pagos'!E31 -> $ 945,252 | E30: $ 1,335,550 | F30: No posee | G30: $ 1,335,550 | H30: Diciembre | J30: Noviembre | K30: ='Subp. Ventas y Cobros'!D31 -> $ 10,860,960 | L30: =K30*'Hoja de datos'!$C$14 -> $ 325,829 | M30: Diciembre
B31: Diciembre | C31: ='Subp. Ventas y Cobros'!E32 -> $ 2,508,882 | D31: ='Subp. Compras y Pagos'!E32 -> $ 1,039,777 | E31: $ 1,469,105 | F31: No posee | G31: $ 1,469,105 | H31: =IF(E31>0,"Enero Año 3","-") -> Enero Año 3 | J31: Diciembre | K31: ='Subp. Ventas y Cobros'!D32 -> $ 11,947,056 | L31: =K31*'Hoja de datos'!$C$14 -> $ 358,412 | M31: Enero Año 3
B32: Total | C32: =SUM(C20:C31) -> $ 23,264,176 | D32: $ 9,641,570 | E32: $ 13,622,606 | J32: Total | K32: =SUM(K20:K31) -> $ 110,781,792 | L32: $ 3,323,454
B34: Subpresupuesto de IVA | J34: Subpresupuesto de Ingresos Brutos
B35: Período 3 | C35: Débito Fiscal | D35: Crédito Fiscal | E35: Saldo técnico | F35: Saldo a favor | G35: IVA a Pagar | H35: Mes de Pago | J35: Período 3 | K35: Ventas | L35: IIBB a pagar | M35: Mes de pago
B36: Enero | C36: ='Subp. Ventas y Cobros'!E38 -> $ 2,508,882 | D36: ='Subp. Compras y Pagos'!E38 -> $ 1,039,777 | E36: =C36-D36 -> $ 1,469,105 | F36: =IF(E36>0,"No posee",E36) -> No posee | G36: =IF(E36>0,E36,"-") -> $ 1,469,105 | H36: =IF(E36>0,B37,"-") -> Febrero | J36: Enero | K36: ='Subp. Ventas y Cobros'!D38 -> $ 11,947,056 | L36: =K36*'Hoja de datos'!$C$14 -> $ 358,412 | M36: Febrero
B37: Febrero | C37: ='Subp. Ventas y Cobros'!E39 -> $ 2,927,029 | D37: ='Subp. Compras y Pagos'!E39 -> $ 1,213,073 | E37: $ 1,713,955 | F37: No posee | G37: $ 1,713,955 | H37: Marzo | J37: Febrero | K37: ='Subp. Ventas y Cobros'!D39 -> $ 13,938,232 | L37: =K37*'Hoja de datos'!$C$14 -> $ 418,147 | M37: Marzo
B38: Marzo | C38: ='Subp. Ventas y Cobros'!E40 -> $ 2,927,029 | D38: ='Subp. Compras y Pagos'!E40 -> $ 1,213,073 | E38: $ 1,713,955 | F38: No posee | G38: $ 1,713,955 | H38: Abril | J38: Marzo | K38: ='Subp. Ventas y Cobros'!D40 -> $ 13,938,232 | L38: =K38*'Hoja de datos'!$C$14 -> $ 418,147 | M38: Abril
B39: Abril | C39: ='Subp. Ventas y Cobros'!E41 -> $ 3,345,176 | D39: ='Subp. Compras y Pagos'!E41 -> $ 1,386,370 | E39: $ 1,958,806 | F39: No posee | G39: $ 1,958,806 | H39: Mayo | J39: Abril | K39: ='Subp. Ventas y Cobros'!D41 -> $ 15,929,408 | L39: =K39*'Hoja de datos'!$C$14 -> $ 477,882 | M39: Mayo
B40: Mayo | C40: ='Subp. Ventas y Cobros'!E42 -> $ 3,345,176 | D40: ='Subp. Compras y Pagos'!E42 -> $ 1,386,370 | E40: $ 1,958,806 | F40: No posee | G40: $ 1,958,806 | H40: Junio | J40: Mayo | K40: ='Subp. Ventas y Cobros'!D42 -> $ 15,929,408 | L40: =K40*'Hoja de datos'!$C$14 -> $ 477,882 | M40: Junio
B41: Junio | C41: ='Subp. Ventas y Cobros'!E43 -> $ 3,345,176 | D41: ='Subp. Compras y Pagos'!E43 -> $ 1,386,370 | E41: $ 1,958,806 | F41: No posee | G41: $ 1,958,806 | H41: Julio | J41: Junio | K41: ='Subp. Ventas y Cobros'!D43 -> $ 15,929,408 | L41: =K41*'Hoja de datos'!$C$14 -> $ 477,882 | M41: Julio
B42: Julio | C42: ='Subp. Ventas y Cobros'!E44 -> $ 3,763,323 | D42: ='Subp. Compras y Pagos'!E44 -> $ 1,559,666 | E42: $ 2,203,657 | F42: No posee | G42: $ 2,203,657 | H42: Agosto | J42: Julio | K42: ='Subp. Ventas y Cobros'!D44 -> $ 17,920,584 | L42: =K42*'Hoja de datos'!$C$14 -> $ 537,618 | M42: Agosto
B43: Agosto | C43: ='Subp. Ventas y Cobros'!E45 -> $ 3,763,323 | D43: ='Subp. Compras y Pagos'!E45 -> $ 1,559,666 | E43: $ 2,203,657 | F43: No posee | G43: $ 2,203,657 | H43: Septiembre | J43: Agosto | K43: ='Subp. Ventas y Cobros'!D45 -> $ 17,920,584 | L43: =K43*'Hoja de datos'!$C$14 -> $ 537,618 | M43: Septiembre
B44: Septiembre | C44: ='Subp. Ventas y Cobros'!E46 -> $ 3,763,323 | D44: ='Subp. Compras y Pagos'!E46 -> $ 1,559,666 | E44: $ 2,203,657 | F44: No posee | G44: $ 2,203,657 | H44: Octubre | J44: Septiembre | K44: ='Subp. Ventas y Cobros'!D46 -> $ 17,920,584 | L44: =K44*'Hoja de datos'!$C$14 -> $ 537,618 | M44: Octubre
B45: Octubre | C45: ='Subp. Ventas y Cobros'!E47 -> $ 4,181,470 | D45: ='Subp. Compras y Pagos'!E47 -> $ 1,732,962 | E45: $ 2,448,508 | F45: No posee | G45: $ 2,448,508 | H45: Noviembre | J45: Octubre | K45: ='Subp. Ventas y Cobros'!D47 -> $ 19,911,760 | L45: =K45*'Hoja de datos'!$C$14 -> $ 597,353 | M45: Noviembre
B46: Noviembre | C46: ='Subp. Ventas y Cobros'!E48 -> $ 4,181,470 | D46: ='Subp. Compras y Pagos'!E48 -> $ 1,732,962 | E46: $ 2,448,508 | F46: No posee | G46: $ 2,448,508 | H46: Diciembre | J46: Noviembre | K46: ='Subp. Ventas y Cobros'!D48 -> $ 19,911,760 | L46: =K46*'Hoja de datos'!$C$14 -> $ 597,353 | M46: Diciembre
B47: Diciembre | C47: ='Subp. Ventas y Cobros'!E49 -> $ 4,599,617 | D47: ='Subp. Compras y Pagos'!E49 -> $ 1,906,258 | E47: $ 2,693,358 | F47: No posee | G47: $ 2,693,358 | H47: =IF(E47>0,"Enero Año 4","-") -> Enero Año 4 | J47: Diciembre | K47: ='Subp. Ventas y Cobros'!D49 -> $ 21,902,936 | L47: =K47*'Hoja de datos'!$C$14 -> $ 657,088 | M47: Enero Año 4
B48: Total | C48: =SUM(C36:C47) -> $ 42,650,990 | D48: $ 17,676,212 | E48: $ 24,974,778 | J48: Total | K48: =SUM(K36:K47) -> $ 203,099,952 | L48: $ 6,092,999
B50: Subpresupuesto de IVA | J50: Subpresupuesto de Ingresos Brutos
B51: Período 4 | C51: Débito Fiscal | D51: Crédito Fiscal | E51: Saldo técnico | F51: Saldo a favor | G51: IVA a Pagar | H51: Mes de Pago | J51: Período 4 | K51: Ventas | L51: IIBB a pagar | M51: Mes de pago
B52: Enero | C52: ='Subp. Ventas y Cobros'!E55 -> $ 3,863,678 | D52: ='Subp. Compras y Pagos'!E55 -> $ 1,601,257 | E52: =C52-D52 -> $ 2,262,421 | F52: =IF(E52>0,"No posee",E52) -> No posee | G52: =IF(E52>0,E52,"-") -> $ 2,262,421 | H52: =IF(E52>0,B53,"-") -> Febrero | J52: Enero | K52: ='Subp. Ventas y Cobros'!D55 -> $ 18,398,466 | L52: =K52*'Hoja de datos'!$C$14 -> $ 551,954 | M52: Febrero
B53: Febrero | C53: ='Subp. Ventas y Cobros'!E56 -> $ 4,507,624 | D53: ='Subp. Compras y Pagos'!E56 -> $ 1,868,133 | E53: $ 2,639,491 | F53: No posee | G53: $ 2,639,491 | H53: Marzo | J53: Febrero | K53: ='Subp. Ventas y Cobros'!D56 -> $ 21,464,877 | L53: =K53*'Hoja de datos'!$C$14 -> $ 643,946 | M53: Marzo
B54: Marzo | C54: ='Subp. Ventas y Cobros'!E57 -> $ 4,507,624 | D54: ='Subp. Compras y Pagos'!E57 -> $ 1,868,133 | E54: $ 2,639,491 | F54: No posee | G54: $ 2,639,491 | H54: Abril | J54: Marzo | K54: ='Subp. Ventas y Cobros'!D57 -> $ 21,464,877 | L54: =K54*'Hoja de datos'!$C$14 -> $ 643,946 | M54: Abril
B55: Abril | C55: ='Subp. Ventas y Cobros'!E58 -> $ 5,151,571 | D55: ='Subp. Compras y Pagos'!E58 -> $ 2,135,009 | E55: $ 3,016,561 | F55: No posee | G55: $ 3,016,561 | H55: Mayo | J55: Abril | K55: ='Subp. Ventas y Cobros'!D58 -> $ 24,531,288 | L55: =K55*'Hoja de datos'!$C$14 -> $ 735,939 | M55: Mayo
B56: Mayo | C56: ='Subp. Ventas y Cobros'!E59 -> $ 5,151,571 | D56: ='Subp. Compras y Pagos'!E59 -> $ 2,135,009 | E56: $ 3,016,561 | F56: No posee | G56: $ 3,016,561 | H56: Junio | J56: Mayo | K56: ='Subp. Ventas y Cobros'!D59 -> $ 24,531,288 | L56: =K56*'Hoja de datos'!$C$14 -> $ 735,939 | M56: Junio
B57: Junio | C57: ='Subp. Ventas y Cobros'!E60 -> $ 5,151,571 | D57: ='Subp. Compras y Pagos'!E60 -> $ 2,135,009 | E57: $ 3,016,561 | F57: No posee | G57: $ 3,016,561 | H57: Julio | J57: Junio | K57: ='Subp. Ventas y Cobros'!D60 -> $ 24,531,288 | L57: =K57*'Hoja de datos'!$C$14 -> $ 735,939 | M57: Julio
B58: Julio | C58: ='Subp. Ventas y Cobros'!E61 -> $ 5,795,517 | D58: ='Subp. Compras y Pagos'!E61 -> $ 2,401,885 | E58: $ 3,393,632 | F58: No posee | G58: $ 3,393,632 | H58: Agosto | J58: Julio | K58: ='Subp. Ventas y Cobros'!D61 -> $ 27,597,699 | L58: =K58*'Hoja de datos'!$C$14 -> $ 827,931 | M58: Agosto
B59: Agosto | C59: ='Subp. Ventas y Cobros'!E62 -> $ 5,795,517 | D59: ='Subp. Compras y Pagos'!E62 -> $ 2,401,885 | E59: $ 3,393,632 | F59: No posee | G59: $ 3,393,632 | H59: Septiembre | J59: Agosto | K59: ='Subp. Ventas y Cobros'!D62 -> $ 27,597,699 | L59: =K59*'Hoja de datos'!$C$14 -> $ 827,931 | M59: Septiembre
B60: Septiembre | C60: ='Subp. Ventas y Cobros'!E63 -> $ 5,795,517 | D60: ='Subp. Compras y Pagos'!E63 -> $ 2,401,885 | E60: $ 3,393,632 | F60: No posee | G60: $ 3,393,632 | H60: Octubre | J60: Septiembre | K60: ='Subp. Ventas y Cobros'!D63 -> $ 27,597,699 | L60: =K60*'Hoja de datos'!$C$14 -> $ 827,931 | M60: Octubre
B61: Octubre | C61: ='Subp. Ventas y Cobros'!E64 -> $ 6,439,463 | D61: ='Subp. Compras y Pagos'!E64 -> $ 2,668,761 | E61: $ 3,770,702 | F61: No posee | G61: $ 3,770,702 | H61: Noviembre | J61: Octubre | K61: ='Subp. Ventas y Cobros'!D64 -> $ 30,664,110 | L61: =K61*'Hoja de datos'!$C$14 -> $ 919,923 | M61: Noviembre
B62: Noviembre | C62: ='Subp. Ventas y Cobros'!E65 -> $ 6,439,463 | D62: ='Subp. Compras y Pagos'!E65 -> $ 2,668,761 | E62: $ 3,770,702 | F62: No posee | G62: $ 3,770,702 | H62: Diciembre | J62: Noviembre | K62: ='Subp. Ventas y Cobros'!D65 -> $ 30,664,110 | L62: =K62*'Hoja de datos'!$C$14 -> $ 919,923 | M62: Diciembre
B63: Diciembre | C63: ='Subp. Ventas y Cobros'!E66 -> $ 7,083,410 | D63: ='Subp. Compras y Pagos'!E66 -> $ 2,935,638 | E63: $ 4,147,772 | F63: No posee | G63: $ 4,147,772 | H63: =IF(E63>0,"Enero Año 5","-") -> Enero Año 5 | J63: Diciembre | K63: ='Subp. Ventas y Cobros'!D66 -> $ 33,730,521 | L63: =K63*'Hoja de datos'!$C$14 -> $ 1,011,916 | M63: Enero Año 5
B64: Total | C64: =SUM(C52:C63) -> $ 65,682,524 | D64: $ 27,221,367 | E64: $ 38,461,157 | J64: Total | K64: =SUM(K52:K63) -> $ 312,773,926 | L64: $ 9,383,218
B66: Subpresupuesto de IVA | J66: Subpresupuesto de Ingresos Brutos
B67: Período 5 | C67: Débito Fiscal | D67: Crédito Fiscal | E67: Saldo técnico | F67: Saldo a favor | G67: IVA a Pagar | H67: Mes de Pago | J67: Período 5 | K67: Ventas | L67: IIBB a pagar | M67: Mes de pago
B68: Enero | C68: ='Subp. Ventas y Cobros'!E72 -> $ 5,666,728 | D68: ='Subp. Compras y Pagos'!E72 -> $ 2,348,510 | E68: =C68-D68 -> $ 3,318,217 | F68: =IF(E68>0,"No posee",E68) -> No posee | G68: =IF(E68>0,E68,"-") -> $ 3,318,217 | H68: =IF(E68>0,B69,"-") -> Febrero | J68: Enero | K68: ='Subp. Ventas y Cobros'!D72 -> $ 26,984,417 | L68: =K68*'Hoja de datos'!$C$14 -> $ 809,533 | M68: Febrero
B69: Febrero | C69: ='Subp. Ventas y Cobros'!E73 -> $ 5,666,728 | D69: ='Subp. Compras y Pagos'!E73 -> $ 2,348,510 | E69: $ 3,318,217 | F69: No posee | G69: $ 3,318,217 | H69: Marzo | J69: Febrero | K69: ='Subp. Ventas y Cobros'!D73 -> $ 26,984,417 | L69: =K69*'Hoja de datos'!$C$14 -> $ 809,533 | M69: Marzo
B70: Marzo | C70: ='Subp. Ventas y Cobros'!E74 -> $ 5,666,728 | D70: ='Subp. Compras y Pagos'!E74 -> $ 2,348,510 | E70: $ 3,318,217 | F70: No posee | G70: $ 3,318,217 | H70: Abril | J70: Marzo | K70: ='Subp. Ventas y Cobros'!D74 -> $ 26,984,417 | L70: =K70*'Hoja de datos'!$C$14 -> $ 809,533 | M70: Abril
B71: Abril | C71: ='Subp. Ventas y Cobros'!E75 -> $ 6,476,260 | D71: ='Subp. Compras y Pagos'!E75 -> $ 2,684,012 | E71: $ 3,792,249 | F71: No posee | G71: $ 3,792,249 | H71: Mayo | J71: Abril | K71: ='Subp. Ventas y Cobros'!D75 -> $ 30,839,334 | L71: =K71*'Hoja de datos'!$C$14 -> $ 925,180 | M71: Mayo
B72: Mayo | C72: ='Subp. Ventas y Cobros'!E76 -> $ 6,476,260 | D72: ='Subp. Compras y Pagos'!E76 -> $ 2,684,012 | E72: $ 3,792,249 | F72: No posee | G72: $ 3,792,249 | H72: Junio | J72: Mayo | K72: ='Subp. Ventas y Cobros'!D76 -> $ 30,839,334 | L72: =K72*'Hoja de datos'!$C$14 -> $ 925,180 | M72: Junio
B73: Junio | C73: ='Subp. Ventas y Cobros'!E77 -> $ 6,476,260 | D73: ='Subp. Compras y Pagos'!E77 -> $ 2,684,012 | E73: $ 3,792,249 | F73: No posee | G73: $ 3,792,249 | H73: Julio | J73: Junio | K73: ='Subp. Ventas y Cobros'!D77 -> $ 30,839,334 | L73: =K73*'Hoja de datos'!$C$14 -> $ 925,180 | M73: Julio
B74: Julio | C74: ='Subp. Ventas y Cobros'!E78 -> $ 6,476,260 | D74: ='Subp. Compras y Pagos'!E78 -> $ 2,684,012 | E74: $ 3,792,249 | F74: No posee | G74: $ 3,792,249 | H74: Agosto | J74: Julio | K74: ='Subp. Ventas y Cobros'!D78 -> $ 30,839,334 | L74: =K74*'Hoja de datos'!$C$14 -> $ 925,180 | M74: Agosto
B75: Agosto | C75: ='Subp. Ventas y Cobros'!E79 -> $ 7,285,793 | D75: ='Subp. Compras y Pagos'!E79 -> $ 3,019,513 | E75: $ 4,266,280 | F75: No posee | G75: $ 4,266,280 | H75: Septiembre | J75: Agosto | K75: ='Subp. Ventas y Cobros'!D79 -> $ 34,694,251 | L75: =K75*'Hoja de datos'!$C$14 -> $ 1,040,828 | M75: Septiembre
B76: Septiembre | C76: ='Subp. Ventas y Cobros'!E80 -> $ 7,285,793 | D76: ='Subp. Compras y Pagos'!E80 -> $ 3,019,513 | E76: $ 4,266,280 | F76: No posee | G76: $ 4,266,280 | H76: Octubre | J76: Septiembre | K76: ='Subp. Ventas y Cobros'!D80 -> $ 34,694,251 | L76: =K76*'Hoja de datos'!$C$14 -> $ 1,040,828 | M76: Octubre
B77: Octubre | C77: ='Subp. Ventas y Cobros'!E81 -> $ 7,285,793 | D77: ='Subp. Compras y Pagos'!E81 -> $ 3,019,513 | E77: $ 4,266,280 | F77: No posee | G77: $ 4,266,280 | H77: Noviembre | J77: Octubre | K77: ='Subp. Ventas y Cobros'!D81 -> $ 34,694,251 | L77: =K77*'Hoja de datos'!$C$14 -> $ 1,040,828 | M77: Noviembre
B78: Noviembre | C78: ='Subp. Ventas y Cobros'!E82 -> $ 8,095,325 | D78: ='Subp. Compras y Pagos'!E82 -> $ 3,355,014 | E78: $ 4,740,311 | F78: No posee | G78: $ 4,740,311 | H78: Diciembre | J78: Noviembre | K78: ='Subp. Ventas y Cobros'!D82 -> $ 38,549,167 | L78: =K78*'Hoja de datos'!$C$14 -> $ 1,156,475 | M78: Diciembre
B79: Diciembre | C79: ='Subp. Ventas y Cobros'!E83 -> $ 8,095,325 | D79: ='Subp. Compras y Pagos'!E83 -> $ 3,355,014 | E79: $ 4,740,311 | F79: No posee | G79: $ 4,740,311 | H79: =IF(E79>0,"Enero Año 6","-") -> Enero Año 6 | J79: Diciembre | K79: ='Subp. Ventas y Cobros'!D83 -> $ 38,549,167 | L79: =K79*'Hoja de datos'!$C$14 -> $ 1,156,475 | M79: Enero Año 6
B80: Total | C80: =SUM(C68:C79) -> $ 80,953,251 | D80: $ 33,550,144 | E80: $ 47,403,107 | J80: Total | K80: =SUM(K68:K79) -> $ 385,491,674 | L80: $ 11,564,750
B82: Subpresupuesto de IVA | J82: Subpresupuesto de Ingresos Brutos
B83: Período 6 | C83: Débito Fiscal | D83: Crédito Fiscal | E83: Saldo técnico | F83: Saldo a favor | G83: IVA a Pagar | H83: Mes de Pago | J83: Período 6 | K83: Ventas | L83: IIBB a pagar | M83: Mes de pago
B84: Enero | C84: ='Subp. Ventas y Cobros'!E89 -> $ 7,012,575 | D84: ='Subp. Compras y Pagos'!E89 -> $ 2,906,281 | E84: =C84-D84 -> $ 4,106,294 | F84: =IF(E84>0,"No posee",E84) -> No posee | G84: =IF(E84>0,E84,"-") -> $ 4,106,294 | H84: =IF(E84>0,B85,"-") -> Febrero | J84: Enero | K84: ='Subp. Ventas y Cobros'!D89 -> $ 33,393,216 | L84: =K84*'Hoja de datos'!$C$14 -> $ 1,001,796 | M84: Febrero
B85: Febrero | C85: ='Subp. Ventas y Cobros'!E90 -> $ 7,012,575 | D85: ='Subp. Compras y Pagos'!E90 -> $ 2,906,281 | E85: $ 4,106,294 | F85: No posee | G85: $ 4,106,294 | H85: Marzo | J85: Febrero | K85: ='Subp. Ventas y Cobros'!D90 -> $ 33,393,216 | L85: =K85*'Hoja de datos'!$C$14 -> $ 1,001,796 | M85: Marzo
B86: Marzo | C86: ='Subp. Ventas y Cobros'!E91 -> $ 7,012,575 | D86: ='Subp. Compras y Pagos'!E91 -> $ 2,906,281 | E86: $ 4,106,294 | F86: No posee | G86: $ 4,106,294 | H86: Abril | J86: Marzo | K86: ='Subp. Ventas y Cobros'!D91 -> $ 33,393,216 | L86: =K86*'Hoja de datos'!$C$14 -> $ 1,001,796 | M86: Abril
B87: Abril | C87: ='Subp. Ventas y Cobros'!E92 -> $ 8,014,372 | D87: ='Subp. Compras y Pagos'!E92 -> $ 3,321,464 | E87: $ 4,692,908 | F87: No posee | G87: $ 4,692,908 | H87: Mayo | J87: Abril | K87: ='Subp. Ventas y Cobros'!D92 -> $ 38,163,676 | L87: =K87*'Hoja de datos'!$C$14 -> $ 1,144,910 | M87: Mayo
B88: Mayo | C88: ='Subp. Ventas y Cobros'!E93 -> $ 8,014,372 | D88: ='Subp. Compras y Pagos'!E93 -> $ 3,321,464 | E88: $ 4,692,908 | F88: No posee | G88: $ 4,692,908 | H88: Junio | J88: Mayo | K88: ='Subp. Ventas y Cobros'!D93 -> $ 38,163,676 | L88: =K88*'Hoja de datos'!$C$14 -> $ 1,144,910 | M88: Junio
B89: Junio | C89: ='Subp. Ventas y Cobros'!E94 -> $ 8,014,372 | D89: ='Subp. Compras y Pagos'!E94 -> $ 3,321,464 | E89: $ 4,692,908 | F89: No posee | G89: $ 4,692,908 | H89: Julio | J89: Junio | K89: ='Subp. Ventas y Cobros'!D94 -> $ 38,163,676 | L89: =K89*'Hoja de datos'!$C$14 -> $ 1,144,910 | M89: Julio
B90: Julio | C90: ='Subp. Ventas y Cobros'!E95 -> $ 8,014,372 | D90: ='Subp. Compras y Pagos'!E95 -> $ 3,321,464 | E90: $ 4,692,908 | F90: No posee | G90: $ 4,692,908 | H90: Agosto | J90: Julio | K90: ='Subp. Ventas y Cobros'!D95 -> $ 38,163,676 | L90: =K90*'Hoja de datos'!$C$14 -> $ 1,144,910 | M90: Agosto
B91: Agosto | C91: ='Subp. Ventas y Cobros'!E96 -> $ 9,016,168 | D91: ='Subp. Compras y Pagos'!E96 -> $ 3,736,647 | E91: $ 5,279,521 | F91: No posee | G91: $ 5,279,521 | H91: Septiembre | J91: Agosto | K91: ='Subp. Ventas y Cobros'!D96 -> $ 42,934,135 | L91: =K91*'Hoja de datos'!$C$14 -> $ 1,288,024 | M91: Septiembre
B92: Septiembre | C92: ='Subp. Ventas y Cobros'!E97 -> $ 9,016,168 | D92: ='Subp. Compras y Pagos'!E97 -> $ 3,736,647 | E92: $ 5,279,521 | F92: No posee | G92: $ 5,279,521 | H92: Octubre | J92: Septiembre | K92: ='Subp. Ventas y Cobros'!D97 -> $ 42,934,135 | L92: =K92*'Hoja de datos'!$C$14 -> $ 1,288,024 | M92: Octubre
B93: Octubre | C93: ='Subp. Ventas y Cobros'!E98 -> $ 9,016,168 | D93: ='Subp. Compras y Pagos'!E98 -> $ 3,736,647 | E93: $ 5,279,521 | F93: No posee | G93: $ 5,279,521 | H93: Noviembre | J93: Octubre | K93: ='Subp. Ventas y Cobros'!D98 -> $ 42,934,135 | L93: =K93*'Hoja de datos'!$C$14 -> $ 1,288,024 | M93: Noviembre
B94: Noviembre | C94: ='Subp. Ventas y Cobros'!E99 -> $ 10,017,965 | D94: ='Subp. Compras y Pagos'!E99 -> $ 4,151,830 | E94: $ 5,866,135 | F94: No posee | G94: $ 5,866,135 | H94: Diciembre | J94: Noviembre | K94: ='Subp. Ventas y Cobros'!D99 -> $ 47,704,595 | L94: =K94*'Hoja de datos'!$C$14 -> $ 1,431,138 | M94: Diciembre
B95: Diciembre | C95: ='Subp. Ventas y Cobros'!E100 -> $ 10,017,965 | D95: ='Subp. Compras y Pagos'!E100 -> $ 4,151,830 | E95: $ 5,866,135 | F95: No posee | G95: $ 5,866,135 | H95: =IF(E95>0,"Enero Año 7","-") -> Enero Año 7 | J95: Diciembre | K95: ='Subp. Ventas y Cobros'!D100 -> $ 47,704,595 | L95: =K95*'Hoja de datos'!$C$14 -> $ 1,431,138 | M95: Enero Año 7
B96: Total | C96: =SUM(C84:C95) -> $ 100,179,649 | D96: $ 41,518,304 | E96: $ 58,661,345 | J96: Total | K96: =SUM(K84:K95) -> $ 477,045,946 | L96: $ 14,311,378
B98: Subpresupuesto de IVA | J98: Subpresupuesto de Ingresos Brutos
B99: Período 7 | C99: Débito Fiscal | D99: Crédito Fiscal | E99: Saldo técnico | F99: Saldo a favor | G99: IVA a Pagar | H99: Mes de Pago | J99: Período 7 | K99: Ventas | L99: IIBB a pagar | M99: Mes de pago
B100: Enero | C100: ='Subp. Ventas y Cobros'!E106 -> $ 8,570,925 | D100: ='Subp. Compras y Pagos'!E106 -> $ 3,552,122 | E100: =C100-D100 -> $ 5,018,804 | F100: =IF(E100>0,"No posee",E100) -> No posee | G100: =IF(E100>0,E100,"-") -> $ 5,018,804 | H100: =IF(E100>0,B101,"-") -> Febrero | J100: Enero | K100: ='Subp. Ventas y Cobros'!D106 -> $ 40,813,931 | L100: =K100*'Hoja de datos'!$C$14 -> $ 1,224,418 | M100: Febrero
B101: Febrero | C101: ='Subp. Ventas y Cobros'!E107 -> $ 8,570,925 | D101: ='Subp. Compras y Pagos'!E107 -> $ 3,552,122 | E101: $ 5,018,804 | F101: No posee | G101: $ 5,018,804 | H101: Marzo | J101: Febrero | K101: ='Subp. Ventas y Cobros'!D107 -> $ 40,813,931 | L101: =K101*'Hoja de datos'!$C$14 -> $ 1,224,418 | M101: Marzo
B102: Marzo | C102: ='Subp. Ventas y Cobros'!E108 -> $ 8,570,925 | D102: ='Subp. Compras y Pagos'!E108 -> $ 3,552,122 | E102: $ 5,018,804 | F102: No posee | G102: $ 5,018,804 | H102: Abril | J102: Marzo | K102: ='Subp. Ventas y Cobros'!D108 -> $ 40,813,931 | L102: =K102*'Hoja de datos'!$C$14 -> $ 1,224,418 | M102: Abril
B103: Abril | C103: ='Subp. Ventas y Cobros'!E109 -> $ 9,795,343 | D103: ='Subp. Compras y Pagos'!E109 -> $ 4,059,567 | E103: $ 5,735,776 | F103: No posee | G103: $ 5,735,776 | H103: Mayo | J103: Abril | K103: ='Subp. Ventas y Cobros'!D109 -> $ 46,644,493 | L103: =K103*'Hoja de datos'!$C$14 -> $ 1,399,335 | M103: Mayo
B104: Mayo | C104: ='Subp. Ventas y Cobros'!E110 -> $ 9,795,343 | D104: ='Subp. Compras y Pagos'!E110 -> $ 4,059,567 | E104: $ 5,735,776 | F104: No posee | G104: $ 5,735,776 | H104: Junio | J104: Mayo | K104: ='Subp. Ventas y Cobros'!D110 -> $ 46,644,493 | L104: =K104*'Hoja de datos'!$C$14 -> $ 1,399,335 | M104: Junio
B105: Junio | C105: ='Subp. Ventas y Cobros'!E111 -> $ 9,795,343 | D105: ='Subp. Compras y Pagos'!E111 -> $ 4,059,567 | E105: $ 5,735,776 | F105: No posee | G105: $ 5,735,776 | H105: Julio | J105: Junio | K105: ='Subp. Ventas y Cobros'!D111 -> $ 46,644,493 | L105: =K105*'Hoja de datos'!$C$14 -> $ 1,399,335 | M105: Julio
B106: Julio | C106: ='Subp. Ventas y Cobros'!E112 -> $ 9,795,343 | D106: ='Subp. Compras y Pagos'!E112 -> $ 4,059,567 | E106: $ 5,735,776 | F106: No posee | G106: $ 5,735,776 | H106: Agosto | J106: Julio | K106: ='Subp. Ventas y Cobros'!D112 -> $ 46,644,493 | L106: =K106*'Hoja de datos'!$C$14 -> $ 1,399,335 | M106: Agosto
B107: Agosto | C107: ='Subp. Ventas y Cobros'!E113 -> $ 11,019,761 | D107: ='Subp. Compras y Pagos'!E113 -> $ 4,567,013 | E107: $ 6,452,748 | F107: No posee | G107: $ 6,452,748 | H107: Septiembre | J107: Agosto | K107: ='Subp. Ventas y Cobros'!D113 -> $ 52,475,054 | L107: =K107*'Hoja de datos'!$C$14 -> $ 1,574,252 | M107: Septiembre
B108: Septiembre | C108: ='Subp. Ventas y Cobros'!E114 -> $ 11,019,761 | D108: ='Subp. Compras y Pagos'!E114 -> $ 4,567,013 | E108: $ 6,452,748 | F108: No posee | G108: $ 6,452,748 | H108: Octubre | J108: Septiembre | K108: ='Subp. Ventas y Cobros'!D114 -> $ 52,475,054 | L108: =K108*'Hoja de datos'!$C$14 -> $ 1,574,252 | M108: Octubre
B109: Octubre | C109: ='Subp. Ventas y Cobros'!E115 -> $ 11,019,761 | D109: ='Subp. Compras y Pagos'!E115 -> $ 4,567,013 | E109: $ 6,452,748 | F109: No posee | G109: $ 6,452,748 | H109: Noviembre | J109: Octubre | K109: ='Subp. Ventas y Cobros'!D115 -> $ 52,475,054 | L109: =K109*'Hoja de datos'!$C$14 -> $ 1,574,252 | M109: Noviembre
B110: Noviembre | C110: ='Subp. Ventas y Cobros'!E116 -> $ 12,244,179 | D110: ='Subp. Compras y Pagos'!E116 -> $ 5,074,459 | E110: $ 7,169,720 | F110: No posee | G110: $ 7,169,720 | H110: Diciembre | J110: Noviembre | K110: ='Subp. Ventas y Cobros'!D116 -> $ 58,305,616 | L110: =K110*'Hoja de datos'!$C$14 -> $ 1,749,168 | M110: Diciembre
B111: Diciembre | C111: ='Subp. Ventas y Cobros'!E117 -> $ 12,244,179 | D111: ='Subp. Compras y Pagos'!E117 -> $ 5,074,459 | E111: $ 7,169,720 | F111: No posee | G111: $ 7,169,720 | H111: =IF(E111>0,"Enero Año 8","-") -> Enero Año 8 | J111: Diciembre | K111: ='Subp. Ventas y Cobros'!D117 -> $ 58,305,616 | L111: =K111*'Hoja de datos'!$C$14 -> $ 1,749,168 | M111: Enero Año 8
B112: Total | C112: =SUM(C100:C111) -> $ 122,441,793 | D112: $ 50,744,593 | E112: $ 71,697,200 | J112: Total | K112: =SUM(K100:K111) -> $ 583,056,156 | L112: $ 17,491,685
B114: Subpresupuesto de IVA | J114: Subpresupuesto de Ingresos Brutos
B115: Período 8 | C115: Débito Fiscal | D115: Crédito Fiscal | E115: Saldo técnico | F115: Saldo a favor | G115: IVA a Pagar | H115: Mes de Pago | J115: Período 8 | K115: Ventas | L115: IIBB a pagar | M115: Mes de pago
B116: Enero | C116: ='Subp. Ventas y Cobros'!E123 -> $ 10,370,820 | D116: ='Subp. Compras y Pagos'!E123 -> $ 4,298,067 | E116: =C116-D116 -> $ 6,072,753 | F116: =IF(E116>0,"No posee",E116) -> No posee | G116: =IF(E116>0,E116,"-") -> $ 6,072,753 | H116: =IF(E116>0,B117,"-") -> Febrero | J116: Enero | K116: ='Subp. Ventas y Cobros'!D123 -> $ 49,384,856 | L116: =K116*'Hoja de datos'!$C$14 -> $ 1,481,546 | M116: Febrero
B117: Febrero | C117: ='Subp. Ventas y Cobros'!E124 -> $ 10,370,820 | D117: ='Subp. Compras y Pagos'!E124 -> $ 4,298,067 | E117: $ 6,072,753 | F117: No posee | G117: $ 6,072,753 | H117: Marzo | J117: Febrero | K117: ='Subp. Ventas y Cobros'!D124 -> $ 49,384,856 | L117: =K117*'Hoja de datos'!$C$14 -> $ 1,481,546 | M117: Marzo
B118: Marzo | C118: ='Subp. Ventas y Cobros'!E125 -> $ 10,370,820 | D118: ='Subp. Compras y Pagos'!E125 -> $ 4,298,067 | E118: $ 6,072,753 | F118: No posee | G118: $ 6,072,753 | H118: Abril | J118: Marzo | K118: ='Subp. Ventas y Cobros'!D125 -> $ 49,384,856 | L118: =K118*'Hoja de datos'!$C$14 -> $ 1,481,546 | M118: Abril
B119: Abril | C119: ='Subp. Ventas y Cobros'!E126 -> $ 11,852,366 | D119: ='Subp. Compras y Pagos'!E126 -> $ 4,912,077 | E119: $ 6,940,289 | F119: No posee | G119: $ 6,940,289 | H119: Mayo | J119: Abril | K119: ='Subp. Ventas y Cobros'!D126 -> $ 56,439,836 | L119: =K119*'Hoja de datos'!$C$14 -> $ 1,693,195 | M119: Mayo
B120: Mayo | C120: ='Subp. Ventas y Cobros'!E127 -> $ 11,852,366 | D120: ='Subp. Compras y Pagos'!E127 -> $ 4,912,077 | E120: $ 6,940,289 | F120: No posee | G120: $ 6,940,289 | H120: Junio | J120: Mayo | K120: ='Subp. Ventas y Cobros'!D127 -> $ 56,439,836 | L120: =K120*'Hoja de datos'!$C$14 -> $ 1,693,195 | M120: Junio
B121: Junio | C121: ='Subp. Ventas y Cobros'!E128 -> $ 11,852,366 | D121: ='Subp. Compras y Pagos'!E128 -> $ 4,912,077 | E121: $ 6,940,289 | F121: No posee | G121: $ 6,940,289 | H121: Julio | J121: Junio | K121: ='Subp. Ventas y Cobros'!D128 -> $ 56,439,836 | L121: =K121*'Hoja de datos'!$C$14 -> $ 1,693,195 | M121: Julio
B122: Julio | C122: ='Subp. Ventas y Cobros'!E129 -> $ 11,852,366 | D122: ='Subp. Compras y Pagos'!E129 -> $ 4,912,077 | E122: $ 6,940,289 | F122: No posee | G122: $ 6,940,289 | H122: Agosto | J122: Julio | K122: ='Subp. Ventas y Cobros'!D129 -> $ 56,439,836 | L122: =K122*'Hoja de datos'!$C$14 -> $ 1,693,195 | M122: Agosto
B123: Agosto | C123: ='Subp. Ventas y Cobros'!E130 -> $ 13,333,911 | D123: ='Subp. Compras y Pagos'!E130 -> $ 5,526,086 | E123: $ 7,807,825 | F123: No posee | G123: $ 7,807,825 | H123: Septiembre | J123: Agosto | K123: ='Subp. Ventas y Cobros'!D130 -> $ 63,494,815 | L123: =K123*'Hoja de datos'!$C$14 -> $ 1,904,844 | M123: Septiembre
B124: Septiembre | C124: ='Subp. Ventas y Cobros'!E131 -> $ 13,333,911 | D124: ='Subp. Compras y Pagos'!E131 -> $ 5,526,086 | E124: $ 7,807,825 | F124: No posee | G124: $ 7,807,825 | H124: Octubre | J124: Septiembre | K124: ='Subp. Ventas y Cobros'!D131 -> $ 63,494,815 | L124: =K124*'Hoja de datos'!$C$14 -> $ 1,904,844 | M124: Octubre
B125: Octubre | C125: ='Subp. Ventas y Cobros'!E132 -> $ 13,333,911 | D125: ='Subp. Compras y Pagos'!E132 -> $ 5,526,086 | E125: $ 7,807,825 | F125: No posee | G125: $ 7,807,825 | H125: Noviembre | J125: Octubre | K125: ='Subp. Ventas y Cobros'!D132 -> $ 63,494,815 | L125: =K125*'Hoja de datos'!$C$14 -> $ 1,904,844 | M125: Noviembre
B126: Noviembre | C126: ='Subp. Ventas y Cobros'!E133 -> $ 14,815,457 | D126: ='Subp. Compras y Pagos'!E133 -> $ 6,140,096 | E126: $ 8,675,361 | F126: No posee | G126: $ 8,675,361 | H126: Diciembre | J126: Noviembre | K126: ='Subp. Ventas y Cobros'!D133 -> $ 70,549,795 | L126: =K126*'Hoja de datos'!$C$14 -> $ 2,116,494 | M126: Diciembre
B127: Diciembre | C127: ='Subp. Ventas y Cobros'!E134 -> $ 14,815,457 | D127: ='Subp. Compras y Pagos'!E134 -> $ 6,140,096 | E127: $ 8,675,361 | F127: No posee | G127: $ 8,675,361 | H127: =IF(E127>0,"Enero Año 9","-") -> Enero Año 9 | J127: Diciembre | K127: ='Subp. Ventas y Cobros'!D134 -> $ 70,549,795 | L127: =K127*'Hoja de datos'!$C$14 -> $ 2,116,494 | M127: Enero Año 9
B128: Total | C128: =SUM(C116:C127) -> $ 148,154,569 | D128: $ 61,400,958 | E128: $ 86,753,611 | J128: Total | K128: =SUM(K116:K127) -> $ 705,497,949 | L128: $ 21,164,938
B130: Subpresupuesto IVA anualizado | J130: Subpresupuesto de Ingresos Brutos anualizado
B131: Período | C131: Débito Fiscal | D131: Crédito Fiscal | E131: Saldo técnico | F131: Pago anual | J131: Período | K131: Ventas | L131: IIBB | M131: Pago anual
B132: Período 1 | C132: ='Subp. Ventas y Cobros'!E139 -> $ 10,367,280 | D132: ='Subp. Compras y Pagos'!E139 -> $ 4,296,600 | E132: =C132-D132 -> $ 6,070,680 | F132: =SUM(G4:G14) -> $ 5,342,198 | J132: Período 1 | K132: =K16 -> $ 49,368,000 | L132: ='Subp. Ventas y Cobros'!D139*'Hoja de datos'!$C$14 -> $ 1,481,040 | M132: =SUM(L4:L14) -> $ 1,303,315
B133: Período 2 | C133: ='Subp. Ventas y Cobros'!E140 -> $ 23,264,176 | D133: ='Subp. Compras y Pagos'!E140 -> $ 9,641,570 | E133: $ 13,622,606 | F133: =SUM(G15,G20:G30) -> $ 12,881,983 | J133: Período 2 | K133: =K32 -> $ 110,781,792 | L133: ='Subp. Ventas y Cobros'!D140*'Hoja de datos'!$C$14 -> $ 3,323,454 | M133: =L15+L20+L21+L22+L23+L24+L25+L26+L27+L28+L29+L30 -> $ 3,142,767
B134: Período 3 | C134: ='Subp. Ventas y Cobros'!E141 -> $ 42,650,990 | D134: ='Subp. Compras y Pagos'!E141 -> $ 17,676,212 | E134: $ 24,974,778 | F134: =SUM(G31,G36:G46) -> $ 23,750,524 | J134: Período 3 | K134: =K48 -> $ 203,099,952 | L134: ='Subp. Ventas y Cobros'!D141*'Hoja de datos'!$C$14 -> $ 6,092,999 | M134: =L31+L36+L37+L38+L39+L40+L41+L42+L43+L44+L45+L46 -> $ 5,794,322
B135: Período 4 | C135: ='Subp. Ventas y Cobros'!E142 -> $ 65,682,524 | D135: ='Subp. Compras y Pagos'!E142 -> $ 27,221,367 | E135: $ 38,461,157 | F135: =SUM(G47,G52:G62) -> $ 37,006,744 | J135: Período 4 | K135: =K64 -> $ 312,773,926 | L135: ='Subp. Ventas y Cobros'!D142*'Hoja de datos'!$C$14 -> $ 9,383,218 | M135: =L47+L52+L53+L54+L55+L56+L57+L58+L59+L60+L61+L62 -> $ 9,028,390
B136: Período 5 | C136: ='Subp. Ventas y Cobros'!E143 -> $ 80,953,251 | D136: ='Subp. Compras y Pagos'!E143 -> $ 33,550,144 | E136: $ 47,403,107 | F136: =SUM(G63,G68:G78) -> $ 46,810,568 | J136: Período 5 | K136: =K80 -> $ 385,491,674 | L136: ='Subp. Ventas y Cobros'!D143*'Hoja de datos'!$C$14 -> $ 11,564,750 | M136: =L63+L68+L69+L70+L71+L72+L73+L74+L75+L76+L77+L78 -> $ 11,420,191
B137: Período 6 | C137: ='Subp. Ventas y Cobros'!E144 -> $ 100,179,649 | D137: ='Subp. Compras y Pagos'!E144 -> $ 41,518,304 | E137: $ 58,661,345 | F137: =SUM(G79,G84:G94) -> $ 57,535,521 | J137: Período 6 | K137: =K96 -> $ 477,045,946 | L137: ='Subp. Ventas y Cobros'!D144*'Hoja de datos'!$C$14 -> $ 14,311,378 | M137: =L79+L84+L85+L86+L87+L88+L89+L90+L91+L92+L93+L94 -> $ 14,036,716
B138: Período 7 | C138: ='Subp. Ventas y Cobros'!E145 -> $ 122,441,793 | D138: ='Subp. Compras y Pagos'!E145 -> $ 50,744,593 | E138: $ 71,697,200 | F138: =SUM(G95,G100:G110) -> $ 70,393,614 | J138: Período 7 | K138: =K112 -> $ 583,056,156 | L138: ='Subp. Ventas y Cobros'!D145*'Hoja de datos'!$C$14 -> $ 17,491,685 | M138: =L95+L100+L101+L102+L103+L104+L105+L106+L107+L108+L109+L110 -> $ 17,173,654
B139: Período 8 | C139: ='Subp. Ventas y Cobros'!E146 -> $ 148,154,569 | D139: ='Subp. Compras y Pagos'!E146 -> $ 61,400,958 | E139: $ 86,753,611 | F139: =SUM(G111,G116:G126) -> $ 85,247,970 | J139: Período 8 | K139: =K128 -> $ 705,497,949 | L139: ='Subp. Ventas y Cobros'!D146*'Hoja de datos'!$C$14 -> $ 21,164,938 | M139: =L111+L116+L117+L118+L119+L120+L121+L122+L123+L124+L125+L126 -> $ 20,797,613
B140: Total | C140: =SUM(C132:C139) -> $ 593,694,233 | D140: $ 246,049,749 | E140: $ 347,644,484 | F140: $ 338,969,123 | J140: Total | K140: =SUM(K132:K139) -> $ 2,827,115,395 | L140: $ 84,813,462 | M140: $ 82,696,968

Sheet Subp. Inventarios
B2: Subpresupuesto de inventario
B3: Período 1 | C3: Inventario inicial | D3: Utilidades compradas | E3: Unidades vendidas | F3: Inventario final | G3: Inventario ($)
B4: Enero | C4: 0 | D4: ='Subp. Compras y Pagos'!C4 -> 66 | E4: ='Subp. Ventas y Cobros'!C4 -> 66 | F4: 0 | G4: =F4*'Datos ajustados'!$C$6 -> 0
B5: Febrero | C5: 0 | D5: ='Subp. Compras y Pagos'!C5 -> 99 | E5: ='Subp. Ventas y Cobros'!C5 -> 99 | F5: 0 | G5: =F5*'Datos ajustados'!$C$6 -> 0
B6: Marzo | C6: 0 | D6: ='Subp. Compras y Pagos'!C6 -> 165 | E6: ='Subp. Ventas y Cobros'!C6 -> 165 | F6: 0 | G6: =F6*'Datos ajustados'!$C$6 -> 0
B7: Abril | C7: 0 | D7: ='Subp. Compras y Pagos'!C7 -> 264 | E7: ='Subp. Ventas y Cobros'!C7 -> 264 | F7: 0 | G7: =F7*'Datos ajustados'!$C$6 -> 0
B8: Mayo | C8: 0 | D8: ='Subp. Compras y Pagos'!C8 -> 297 | E8: ='Subp. Ventas y Cobros'!C8 -> 297 | F8: 0 | G8: =F8*'Datos ajustados'!$C$6 -> 0
B9: Junio | C9: 0 | D9: ='Subp. Compras y Pagos'!C9 -> 297 | E9: ='Subp. Ventas y Cobros'!C9 -> 297 | F9: 0 | G9: =F9*'Datos ajustados'!$C$6 -> 0
B10: Julio | C10: 0 | D10: ='Subp. Compras y Pagos'!C10 -> 297 | E10: ='Subp. Ventas y Cobros'!C10 -> 297 | F10: 0 | G10: =F10*'Datos ajustados'!$C$6 -> 0
B11: Agosto | C11: 0 | D11: ='Subp. Compras y Pagos'!C11 -> 330 | E11: ='Subp. Ventas y Cobros'!C11 -> 330 | F11: 0 | G11: =F11*'Datos ajustados'!$C$6 -> 0
B12: Septiembre | C12: 0 | D12: ='Subp. Compras y Pagos'!C12 -> 330 | E12: ='Subp. Ventas y Cobros'!C12 -> 330 | F12: 0 | G12: =F12*'Datos ajustados'!$C$6 -> 0
B13: Octubre | C13: 0 | D13: ='Subp. Compras y Pagos'!C13 -> 363 | E13: ='Subp. Ventas y Cobros'!C13 -> 363 | F13: 0 | G13: =F13*'Datos ajustados'!$C$6 -> 0
B14: Noviembre | C14: 0 | D14: ='Subp. Compras y Pagos'!C14 -> 396 | E14: ='Subp. Ventas y Cobros'!C14 -> 396 | F14: 0 | G14: =F14*'Datos ajustados'!$C$6 -> 0
B15: Diciembre | C15: 0 | D15: ='Subp. Compras y Pagos'!C15 -> 396 | E15: ='Subp. Ventas y Cobros'!C15 -> 396 | F15: 0 | G15: =F15*'Datos ajustados'!$C$6 -> 0
B17: Subpresupuesto de inventario
B18: Período 2 | C18: Inventario inicial | D18: Utilidades compradas | E18: Unidades vendidas | F18: Inventario final | G18: Inventario ($)
B19: Enero | C19: 0 | D19: ='Subp. Compras y Pagos'!C21 -> 436 | E19: ='Subp. Ventas y Cobros'!C21 -> 436 | F19: 0 | G19: =F19*'Datos ajustados'!$D$6 -> 0
B20: Febrero | C20: 0 | D20: ='Subp. Compras y Pagos'!C22 -> 508 | E20: ='Subp. Ventas y Cobros'!C22 -> 508 | F20: 0 | G20: =F20*'Datos ajustados'!$D$6 -> 0
B21: Marzo | C21: 0 | D21: ='Subp. Compras y Pagos'!C23 -> 508 | E21: ='Subp. Ventas y Cobros'!C23 -> 508 | F21: 0 | G21: =F21*'Datos ajustados'!$D$6 -> 0
B22: Abril | C22: 0 | D22: ='Subp. Compras y Pagos'!C24 -> 581 | E22: ='Subp. Ventas y Cobros'!C24 -> 581 | F22: 0 | G22: =F22*'Datos ajustados'!$D$6 -> 0
B23: Mayo | C23: 0 | D23: ='Subp. Compras y Pagos'!C25 -> 581 | E23: ='Subp. Ventas y Cobros'!C25 -> 581 | F23: 0 | G23: =F23*'Datos ajustados'!$D$6 -> 0
B24: Junio | C24: 0 | D24: ='Subp. Compras y Pagos'!C26 -> 581 | E24: ='Subp. Ventas y Cobros'!C26 -> 581 | F24: 0 | G24: =F24*'Datos ajustados'!$D$6 -> 0
B25: Julio | C25: 0 | D25: ='Subp. Compras y Pagos'!C27 -> 653 | E25: ='Subp. Ventas y Cobros'!C27 -> 653 | F25: 0 | G25: =F25*'Datos ajustados'!$D$6 -> 0
B26: Agosto | C26: 0 | D26: ='Subp. Compras y Pagos'!C28 -> 653 | E26: ='Subp. Ventas y Cobros'!C28 -> 653 | F26: 0 | G26: =F26*'Datos ajustados'!$D$6 -> 0
B27: Septiembre | C27: 0 | D27: ='Subp. Compras y Pagos'!C29 -> 653 | E27: ='Subp. Ventas y Cobros'!C29 -> 653 | F27: 0 | G27: =F27*'Datos ajustados'!$D$6 -> 0
B28: Octubre | C28: 0 | D28: ='Subp. Compras y Pagos'!C30 -> 726 | E28: ='Subp. Ventas y Cobros'!C30 -> 726 | F28: 0 | G28: =F28*'Datos ajustados'!$D$6 -> 0
B29: Noviembre | C29: 0 | D29: ='Subp. Compras y Pagos'!C31 -> 726 | E29: ='Subp. Ventas y Cobros'!C31 -> 726 | F29: 0 | G29: =F29*'Datos ajustados'!$D$6 -> 0
B30: Diciembre | C30: 0 | D30: ='Subp. Compras y Pagos'!C32 -> 799 | E30: ='Subp. Ventas y Cobros'!C32 -> 799 | F30: 0 | G30: =F30*'Datos ajustados'!$D$6 -> 0
B32: Subpresupuesto de inventario
B33: Período 3 | C33: Inventario inicial | D33: Utilidades compradas | E33: Unidades vendidas | F33: Inventario final | G33: Inventario ($)
B34: Enero | C34: 0 | D34: ='Subp. Compras y Pagos'!C38 -> 799 | E34: ='Subp. Ventas y Cobros'!C38 -> 799 | F34: 0 | G34: =F34*'Datos ajustados'!$E$6 -> 0
B35: Febrero | C35: 0 | D35: ='Subp. Compras y Pagos'!C39 -> 932 | E35: ='Subp. Ventas y Cobros'!C39 -> 932 | F35: 0 | G35: =F35*'Datos ajustados'!$E$6 -> 0
B36: Marzo | C36: 0 | D36: ='Subp. Compras y Pagos'!C40 -> 932 | E36: ='Subp. Ventas y Cobros'!C40 -> 932 | F36: 0 | G36: =F36*'Datos ajustados'!$E$6 -> 0
B37: Abril | C37: 0 | D37: ='Subp. Compras y Pagos'!C41 -> 1,065 | E37: ='Subp. Ventas y Cobros'!C41 -> 1,065 | F37: 0 | G37: =F37*'Datos ajustados'!$E$6 -> 0
B38: Mayo | C38: 0 | D38: ='Subp. Compras y Pagos'!C42 -> 1,065 | E38: ='Subp. Ventas y Cobros'!C42 -> 1,065 | F38: 0 | G38: =F38*'Datos ajustados'!$E$6 -> 0
B39: Junio | C39: 0 | D39: ='Subp. Compras y Pagos'!C43 -> 1,065 | E39: ='Subp. Ventas y Cobros'!C43 -> 1,065 | F39: 0 | G39: =F39*'Datos ajustados'!$E$6 -> 0
B40: Julio | C40: 0 | D40: ='Subp. Compras y Pagos'!C44 -> 1,198 | E40: ='Subp. Ventas y Cobros'!C44 -> 1,198 | F40: 0 | G40: =F40*'Datos ajustados'!$E$6 -> 0
B41: Agosto | C41: 0 | D41: ='Subp. Compras y Pagos'!C45 -> 1,198 | E41: ='Subp. Ventas y Cobros'!C45 -> 1,198 | F41: 0 | G41: =F41*'Datos ajustados'!$E$6 -> 0
B42: Septiembre | C42: 0 | D42: ='Subp. Compras y Pagos'!C46 -> 1,198 | E42: ='Subp. Ventas y Cobros'!C46 -> 1,198 | F42: 0 | G42: =F42*'Datos ajustados'!$E$6 -> 0
B43: Octubre | C43: 0 | D43: ='Subp. Compras y Pagos'!C47 -> 1,331 | E43: ='Subp. Ventas y Cobros'!C47 -> 1,331 | F43: 0 | G43: =F43*'Datos ajustados'!$E$6 -> 0
B44: Noviembre | C44: 0 | D44: ='Subp. Compras y Pagos'!C48 -> 1,331 | E44: ='Subp. Ventas y Cobros'!C48 -> 1,331 | F44: 0 | G44: =F44*'Datos ajustados'!$E$6 -> 0
B45: Diciembre | C45: 0 | D45: ='Subp. Compras y Pagos'!C49 -> 1,464 | E45: ='Subp. Ventas y Cobros'!C49 -> 1,464 | F45: 0 | G45: =F45*'Datos ajustados'!$E$6 -> 0
B47: Subpresupuesto de inventario
B48: Período 4 | C48: Inventario inicial | D48: Utilidades compradas | E48: Unidades vendidas | F48: Inventario final | G48: Inventario ($)
B49: Enero | C49: 0 | D49: ='Subp. Compras y Pagos'!C55 -> 1,230 | E49: ='Subp. Ventas y Cobros'!C55 -> 1,230 | F49: 0 | G49: =F49*'Datos ajustados'!$F$6 -> 0
B50: Febrero | C50: 0 | D50: ='Subp. Compras y Pagos'!C56 -> 1,435 | E50: ='Subp. Ventas y Cobros'!C56 -> 1,435 | F50: 0 | G50: =F50*'Datos ajustados'!$F$6 -> 0
B51: Marzo | C51: 0 | D51: ='Subp. Compras y Pagos'!C57 -> 1,435 | E51: ='Subp. Ventas y Cobros'!C57 -> 1,435 | F51: 0 | G51: =F51*'Datos ajustados'!$F$6 -> 0
B52: Abril | C52: 0 | D52: ='Subp. Compras y Pagos'!C58 -> 1,640 | E52: ='Subp. Ventas y Cobros'!C58 -> 1,640 | F52: 0 | G52: =F52*'Datos ajustados'!$F$6 -> 0
B53: Mayo | C53: 0 | D53: ='Subp. Compras y Pagos'!C59 -> 1,640 | E53: ='Subp. Ventas y Cobros'!C59 -> 1,640 | F53: 0 | G53: =F53*'Datos ajustados'!$F$6 -> 0
B54: Junio | C54: 0 | D54: ='Subp. Compras y Pagos'!C60 -> 1,640 | E54: ='Subp. Ventas y Cobros'!C60 -> 1,640 | F54: 0 | G54: =F54*'Datos ajustados'!$F$6 -> 0
B55: Julio | C55: 0 | D55: ='Subp. Compras y Pagos'!C61 -> 1,845 | E55: ='Subp. Ventas y Cobros'!C61 -> 1,845 | F55: 0 | G55: =F55*'Datos ajustados'!$F$6 -> 0
B56: Agosto | C56: 0 | D56: ='Subp. Compras y Pagos'!C62 -> 1,845 | E56: ='Subp. Ventas y Cobros'!C62 -> 1,845 | F56: 0 | G56: =F56*'Datos ajustados'!$F$6 -> 0
B57: Septiembre | C57: 0 | D57: ='Subp. Compras y Pagos'!C63 -> 1,845 | E57: ='Subp. Ventas y Cobros'!C63 -> 1,845 | F57: 0 | G57: =F57*'Datos ajustados'!$F$6 -> 0
B58: Octubre | C58: 0 | D58: ='Subp. Compras y Pagos'!C64 -> 2,050 | E58: ='Subp. Ventas y Cobros'!C64 -> 2,050 | F58: 0 | G58: =F58*'Datos ajustados'!$F$6 -> 0
B59: Noviembre | C59: 0 | D59: ='Subp. Compras y Pagos'!C65 -> 2,050 | E59: ='Subp. Ventas y Cobros'!C65 -> 2,050 | F59: 0 | G59: =F59*'Datos ajustados'!$F$6 -> 0
B60: Diciembre | C60: 0 | D60: ='Subp. Compras y Pagos'!C66 -> 2,255 | E60: ='Subp. Ventas y Cobros'!C66 -> 2,255 | F60: 0 | G60: =F60*'Datos ajustados'!$F$6 -> 0
B62: Subpresupuesto de inventario
B63: Período 5 | C63: Inventario inicial | D63: Utilidades compradas | E63: Unidades vendidas | F63: Inventario final | G63: Inventario ($)
B64: Enero | C64: 0 | D64: ='Subp. Compras y Pagos'!C72 -> 1,804 | E64: ='Subp. Ventas y Cobros'!C72 -> 1,804 | F64: 0 | G64: =F64*'Datos ajustados'!$G$6 -> 0
B65: Febrero | C65: 0 | D65: ='Subp. Compras y Pagos'!C73 -> 1,804 | E65: ='Subp. Ventas y Cobros'!C73 -> 1,804 | F65: 0 | G65: =F65*'Datos ajustados'!$G$6 -> 0
B66: Marzo | C66: 0 | D66: ='Subp. Compras y Pagos'!C74 -> 1,804 | E66: ='Subp. Ventas y Cobros'!C74 -> 1,804 | F66: 0 | G66: =F66*'Datos ajustados'!$G$6 -> 0
B67: Abril | C67: 0 | D67: ='Subp. Compras y Pagos'!C75 -> 2,061 | E67: ='Subp. Ventas y Cobros'!C75 -> 2,061 | F67: 0 | G67: =F67*'Datos ajustados'!$G$6 -> 0
B68: Mayo | C68: 0 | D68: ='Subp. Compras y Pagos'!C76 -> 2,061 | E68: ='Subp. Ventas y Cobros'!C76 -> 2,061 | F68: 0 | G68: =F68*'Datos ajustados'!$G$6 -> 0
B69: Junio | C69: 0 | D69: ='Subp. Compras y Pagos'!C77 -> 2,061 | E69: ='Subp. Ventas y Cobros'!C77 -> 2,061 | F69: 0 | G69: =F69*'Datos ajustados'!$G$6 -> 0
B70: Julio | C70: 0 | D70: ='Subp. Compras y Pagos'!C78 -> 2,061 | E70: ='Subp. Ventas y Cobros'!C78 -> 2,061 | F70: 0 | G70: =F70*'Datos ajustados'!$G$6 -> 0
B71: Agosto | C71: 0 | D71: ='Subp. Compras y Pagos'!C79 -> 2,319 | E71: ='Subp. Ventas y Cobros'!C79 -> 2,319 | F71: 0 | G71: =F71*'Datos ajustados'!$G$6 -> 0
B72: Septiembre | C72: 0 | D72: ='Subp. Compras y Pagos'!C80 -> 2,319 | E72: ='Subp. Ventas y Cobros'!C80 -> 2,319 | F72: 0 | G72: =F72*'Datos ajustados'!$G$6 -> 0
B73: Octubre | C73: 0 | D73: ='Subp. Compras y Pagos'!C81 -> 2,319 | E73: ='Subp. Ventas y Cobros'!C81 -> 2,319 | F73: 0 | G73: =F73*'Datos ajustados'!$G$6 -> 0
B74: Noviembre | C74: 0 | D74: ='Subp. Compras y Pagos'!C82 -> 2,577 | E74: ='Subp. Ventas y Cobros'!C82 -> 2,577 | F74: 0 | G74: =F74*'Datos ajustados'!$G$6 -> 0
B75: Diciembre | C75: 0 | D75: ='Subp. Compras y Pagos'!C83 -> 2,577 | E75: ='Subp. Ventas y Cobros'!C83 -> 2,577 | F75: 0 | G75: =F75*'Datos ajustados'!$G$6 -> 0
B77: Subpresupuesto de inventario
B78: Período 6 | C78: Inventario inicial | D78: Utilidades compradas | E78: Unidades vendidas | F78: Inventario final | G78: Inventario ($)
B79: Enero | C79: 0 | D79: ='Subp. Compras y Pagos'!C89 -> 2,232 | E79: ='Subp. Ventas y Cobros'!C89 -> 2,232 | F79: 0 | G79: =F79*'Datos ajustados'!$H$6 -> 0
B80: Febrero | C80: 0 | D80: ='Subp. Compras y Pagos'!C90 -> 2,232 | E80: ='Subp. Ventas y Cobros'!C90 -> 2,232 | F80: 0 | G80: =F80*'Datos ajustados'!$H$6 -> 0
B81: Marzo | C81: 0 | D81: ='Subp. Compras y Pagos'!C91 -> 2,232 | E81: ='Subp. Ventas y Cobros'!C91 -> 2,232 | F81: 0 | G81: =F81*'Datos ajustados'!$H$6 -> 0
B82: Abril | C82: 0 | D82: ='Subp. Compras y Pagos'!C92 -> 2,551 | E82: ='Subp. Ventas y Cobros'!C92 -> 2,551 | F82: 0 | G82: =F82*'Datos ajustados'!$H$6 -> 0
B83: Mayo | C83: 0 | D83: ='Subp. Compras y Pagos'!C93 -> 2,551 | E83: ='Subp. Ventas y Cobros'!C93 -> 2,551 | F83: 0 | G83: =F83*'Datos ajustados'!$H$6 -> 0
B84: Junio | C84: 0 | D84: ='Subp. Compras y Pagos'!C94 -> 2,551 | E84: ='Subp. Ventas y Cobros'!C94 -> 2,551 | F84: 0 | G84: =F84*'Datos ajustados'!$H$6 -> 0
B85: Julio | C85: 0 | D85: ='Subp. Compras y Pagos'!C95 -> 2,551 | E85: ='Subp. Ventas y Cobros'!C95 -> 2,551 | F85: 0 | G85: =F85*'Datos ajustados'!$H$6 -> 0
B86: Agosto | C86: 0 | D86: ='Subp. Compras y Pagos'!C96 -> 2,870 | E86: ='Subp. Ventas y Cobros'!C96 -> 2,870 | F86: 0 | G86: =F86*'Datos ajustados'!$H$6 -> 0
B87: Septiembre | C87: 0 | D87: ='Subp. Compras y Pagos'!C97 -> 2,870 | E87: ='Subp. Ventas y Cobros'!C97 -> 2,870 | F87: 0 | G87: =F87*'Datos ajustados'!$H$6 -> 0
B88: Octubre | C88: 0 | D88: ='Subp. Compras y Pagos'!C98 -> 2,870 | E88: ='Subp. Ventas y Cobros'!C98 -> 2,870 | F88: 0 | G88: =F88*'Datos ajustados'!$H$6 -> 0
B89: Noviembre | C89: 0 | D89: ='Subp. Compras y Pagos'!C99 -> 3,189 | E89: ='Subp. Ventas y Cobros'!C99 -> 3,189 | F89: 0 | G89: =F89*'Datos ajustados'!$H$6 -> 0
B90: Diciembre | C90: 0 | D90: ='Subp. Compras y Pagos'!C100 -> 3,189 | E90: ='Subp. Ventas y Cobros'!C100 -> 3,189 | F90: 0 | G90: =F90*'Datos ajustados'!$H$6 -> 0
B92: Subpresupuesto de inventario
B93: Período 7 | C93: Inventario inicial | D93: Utilidades compradas | E93: Unidades vendidas | F93: Inventario final | G93: Inventario ($)
B94: Enero | C94: 0 | D94: ='Subp. Compras y Pagos'!C106 -> 2,728 | E94: ='Subp. Ventas y Cobros'!C106 -> 2,728 | F94: 0 | G94: =F94*'Datos ajustados'!$I$6 -> 0
B95: Febrero | C95: 0 | D95: ='Subp. Compras y Pagos'!C107 -> 2,728 | E95: ='Subp. Ventas y Cobros'!C107 -> 2,728 | F95: 0 | G95: =F95*'Datos ajustados'!$I$6 -> 0
B96: Marzo | C96: 0 | D96: ='Subp. Compras y Pagos'!C108 -> 2,728 | E96: ='Subp. Ventas y Cobros'!C108 -> 2,728 | F96: 0 | G96: =F96*'Datos ajustados'!$I$6 -> 0
B97: Abril | C97: 0 | D97: ='Subp. Compras y Pagos'!C109 -> 3,118 | E97: ='Subp. Ventas y Cobros'!C109 -> 3,118 | F97: 0 | G97: =F97*'Datos ajustados'!$I$6 -> 0
B98: Mayo | C98: 0 | D98: ='Subp. Compras y Pagos'!C110 -> 3,118 | E98: ='Subp. Ventas y Cobros'!C110 -> 3,118 | F98: 0 | G98: =F98*'Datos ajustados'!$I$6 -> 0
B99: Junio | C99: 0 | D99: ='Subp. Compras y Pagos'!C111 -> 3,118 | E99: ='Subp. Ventas y Cobros'!C111 -> 3,118 | F99: 0 | G99: =F99*'Datos ajustados'!$I$6 -> 0
B100: Julio | C100: 0 | D100: ='Subp. Compras y Pagos'!C112 -> 3,118 | E100: ='Subp. Ventas y Cobros'!C112 -> 3,118 | F100: 0 | G100: =F100*'Datos ajustados'!$I$6 -> 0
B101: Agosto | C101: 0 | D101: ='Subp. Compras y Pagos'!C113 -> 3,508 | E101: ='Subp. Ventas y Cobros'!C113 -> 3,508 | F101: 0 | G101: =F101*'Datos ajustados'!$I$6 -> 0
B102: Septiembre | C102: 0 | D102: ='Subp. Compras y Pagos'!C114 -> 3,508 | E102: ='Subp. Ventas y Cobros'!C114 -> 3,508 | F102: 0 | G102: =F102*'Datos ajustados'!$I$6 -> 0
B103: Octubre | C103: 0 | D103: ='Subp. Compras y Pagos'!C115 -> 3,508 | E103: ='Subp. Ventas y Cobros'!C115 -> 3,508 | F103: 0 | G103: =F103*'Datos ajustados'!$I$6 -> 0
B104: Noviembre | C104: 0 | D104: ='Subp. Compras y Pagos'!C116 -> 3,897 | E104: ='Subp. Ventas y Cobros'!C116 -> 3,897 | F104: 0 | G104: =F104*'Datos ajustados'!$I$6 -> 0
B105: Diciembre | C105: 0 | D105: ='Subp. Compras y Pagos'!C117 -> 3,897 | E105: ='Subp. Ventas y Cobros'!C117 -> 3,897 | F105: 0 | G105: =F105*'Datos ajustados'!$I$6 -> 0
B107: Subpresupuesto de inventario
B108: Período 8 | C108: Inventario inicial | D108: Utilidades compradas | E108: Unidades vendidas | F108: Inventario final | G108: Inventario ($)
B109: Enero | C109: 0 | D109: ='Subp. Compras y Pagos'!C123 -> 3,301 | E109: ='Subp. Ventas y Cobros'!C123 -> 3,301 | F109: 0 | G109: =F109*'Datos ajustados'!$J$6 -> 0
B110: Febrero | C110: 0 | D110: ='Subp. Compras y Pagos'!C124 -> 3,301 | E110: ='Subp. Ventas y Cobros'!C124 -> 3,301 | F110: 0 | G110: =F110*'Datos ajustados'!$J$6 -> 0
B111: Marzo | C111: 0 | D111: ='Subp. Compras y Pagos'!C125 -> 3,301 | E111: ='Subp. Ventas y Cobros'!C125 -> 3,301 | F111: 0 | G111: =F111*'Datos ajustados'!$J$6 -> 0
B112: Abril | C112: 0 | D112: ='Subp. Compras y Pagos'!C126 -> 3,773 | E112: ='Subp. Ventas y Cobros'!C126 -> 3,773 | F112: 0 | G112: =F112*'Datos ajustados'!$J$6 -> 0
B113: Mayo | C113: 0 | D113: ='Subp. Compras y Pagos'!C127 -> 3,773 | E113: ='Subp. Ventas y Cobros'!C127 -> 3,773 | F113: 0 | G113: =F113*'Datos ajustados'!$J$6 -> 0
B114: Junio | C114: 0 | D114: ='Subp. Compras y Pagos'!C128 -> 3,773 | E114: ='Subp. Ventas y Cobros'!C128 -> 3,773 | F114: 0 | G114: =F114*'Datos ajustados'!$J$6 -> 0
B115: Julio | C115: 0 | D115: ='Subp. Compras y Pagos'!C129 -> 3,773 | E115: ='Subp. Ventas y Cobros'!C129 -> 3,773 | F115: 0 | G115: =F115*'Datos ajustados'!$J$6 -> 0
B116: Agosto | C116: 0 | D116: ='Subp. Compras y Pagos'!C130 -> 4,244 | E116: ='Subp. Ventas y Cobros'!C130 -> 4,244 | F116: 0 | G116: =F116*'Datos ajustados'!$J$6 -> 0
B117: Septiembre | C117: 0 | D117: ='Subp. Compras y Pagos'!C131 -> 4,244 | E117: ='Subp. Ventas y Cobros'!C131 -> 4,244 | F117: 0 | G117: =F117*'Datos ajustados'!$J$6 -> 0
B118: Octubre | C118: 0 | D118: ='Subp. Compras y Pagos'!C132 -> 4,244 | E118: ='Subp. Ventas y Cobros'!C132 -> 4,244 | F118: 0 | G118: =F118*'Datos ajustados'!$J$6 -> 0
B119: Noviembre | C119: 0 | D119: ='Subp. Compras y Pagos'!C133 -> 4,716 | E119: ='Subp. Ventas y Cobros'!C133 -> 4,716 | F119: 0 | G119: =F119*'Datos ajustados'!$J$6 -> 0
B120: Diciembre | C120: 0 | D120: ='Subp. Compras y Pagos'!C134 -> 4,716 | E120: ='Subp. Ventas y Cobros'!C134 -> 4,716 | F120: 0 | G120: =F120*'Datos ajustados'!$J$6 -> 0
B122: Subpresupuesto de inventario anualizado
B123: Período | C123: Inventario (Q) | D123: Inventario ($)
B124: Período 1 | C124: 0 | D124: =SUM(G4:G15) -> 0
B125: Período 2 | C125: 0 | D125: =SUM(G19:G30) -> 0
B126: Período 3 | C126: 0 | D126: =SUM(G34:G45) -> 0
B127: Período 4 | C127: 0 | D127: =SUM(G49:G60) -> 0
B128: Período 5 | C128: 0 | D128: =SUM(G64:G75) -> 0
B129: Período 6 | C129: 0 | D129: =SUM(G79:G90) -> 0
B130: Período 7 | C130: 0 | D130: =SUM(G94:G105) -> 0
B131: Período 8 | C131: 0 | D131: =SUM(G109:G120) -> 0

Sheet Subp. CMV
B2: Costo de mercadería vendida
B3: Período 1 | C3: Existencia Inicial | D3: Compras | E3: Existencia Final | F3: CMV
B4: Enero | C4: ='Subp. Inventarios'!C4*'Datos ajustados'!$C$6 -> 0 | D4: ='Subp. Compras y Pagos'!D4 -> $ 409,200 | E4: ='Subp. Inventarios'!F4 -> 0 | F4: =C4+D4-E4 -> $ 409,200
B5: Febrero | C5: ='Subp. Inventarios'!C5*'Datos ajustados'!$C$6 -> 0 | D5: ='Subp. Compras y Pagos'!D5 -> $ 613,800 | E5: ='Subp. Inventarios'!F5 -> 0 | F5: $ 613,800
B6: Marzo | C6: ='Subp. Inventarios'!C6*'Datos ajustados'!$C$6 -> 0 | D6: ='Subp. Compras y Pagos'!D6 -> $ 1,023,000 | E6: ='Subp. Inventarios'!F6 -> 0 | F6: $ 1,023,000
B7: Abril | C7: ='Subp. Inventarios'!C7*'Datos ajustados'!$C$6 -> 0 | D7: ='Subp. Compras y Pagos'!D7 -> $ 1,636,800 | E7: ='Subp. Inventarios'!F7 -> 0 | F7: $ 1,636,800
B8: Mayo | C8: ='Subp. Inventarios'!C8*'Datos ajustados'!$C$6 -> 0 | D8: ='Subp. Compras y Pagos'!D8 -> $ 1,841,400 | E8: ='Subp. Inventarios'!F8 -> 0 | F8: $ 1,841,400
B9: Junio | C9: ='Subp. Inventarios'!C9*'Datos ajustados'!$C$6 -> 0 | D9: ='Subp. Compras y Pagos'!D9 -> $ 1,841,400 | E9: ='Subp. Inventarios'!F9 -> 0 | F9: $ 1,841,400
B10: Julio | C10: ='Subp. Inventarios'!C10*'Datos ajustados'!$C$6 -> 0 | D10: ='Subp. Compras y Pagos'!D10 -> $ 1,841,400 | E10: ='Subp. Inventarios'!F10 -> 0 | F10: $ 1,841,400
B11: Agosto | C11: ='Subp. Inventarios'!C11*'Datos ajustados'!$C$6 -> 0 | D11: ='Subp. Compras y Pagos'!D11 -> $ 2,046,000 | E11: ='Subp. Inventarios'!F11 -> 0 | F11: $ 2,046,000
B12: Septiembre | C12: ='Subp. Inventarios'!C12*'Datos ajustados'!$C$6 -> 0 | D12: ='Subp. Compras y Pagos'!D12 -> $ 2,046,000 | E12: ='Subp. Inventarios'!F12 -> 0 | F12: $ 2,046,000
B13: Octubre | C13: ='Subp. Inventarios'!C13*'Datos ajustados'!$C$6 -> 0 | D13: ='Subp. Compras y Pagos'!D13 -> $ 2,250,600 | E13: ='Subp. Inventarios'!F13 -> 0 | F13: $ 2,250,600
B14: Noviembre | C14: ='Subp. Inventarios'!C14*'Datos ajustados'!$C$6 -> 0 | D14: ='Subp. Compras y Pagos'!D14 -> $ 2,455,200 | E14: ='Subp. Inventarios'!F14 -> 0 | F14: $ 2,455,200
B15: Diciembre | C15: ='Subp. Inventarios'!C15*'Datos ajustados'!$C$6 -> 0 | D15: ='Subp. Compras y Pagos'!D15 -> $ 2,455,200 | E15: ='Subp. Inventarios'!F15 -> 0 | F15: $ 2,455,200
B16: Período 1 | C16: =SUM(C4:C15) -> 0 | D16: $ 20,460,000 | E16: 0 | F16: $ 20,460,000
B18: Costo de mercadería vendida
B19: Período 2 | C19: Existencia Inicial | D19: Compras | E19: Existencia Final | F19: CMV
B20: Enero | C20: ='Subp. Inventarios'!C19*'Datos ajustados'!$D$6 -> 0 | D20: ='Subp. Compras y Pagos'!D21 -> $ 2,700,720 | E20: ='Subp. Inventarios'!F19 -> 0 | F20: =C20+D20-E20 -> $ 2,700,720
B21: Febrero | C21: ='Subp. Inventarios'!C20*'Datos ajustados'!$D$6 -> 0 | D21: ='Subp. Compras y Pagos'!D22 -> $ 3,150,840 | E21: ='Subp. Inventarios'!F20 -> 0 | F21: $ 3,150,840
B22: Marzo | C22: ='Subp. Inventarios'!C21*'Datos ajustados'!$D$6 -> 0 | D22: ='Subp. Compras y Pagos'!D23 -> $ 3,150,840 | E22: ='Subp. Inventarios'!F21 -> 0 | F22: $ 3,150,840
B23: Abril | C23: ='Subp. Inventarios'!C22*'Datos ajustados'!$D$6 -> 0 | D23: ='Subp. Compras y Pagos'!D24 -> $ 3,600,960 | E23: ='Subp. Inventarios'!F22 -> 0 | F23: $ 3,600,960
B24: Mayo | C24: ='Subp. Inventarios'!C23*'Datos ajustados'!$D$6 -> 0 | D24: ='Subp. Compras y Pagos'!D25 -> $ 3,600,960 | E24: ='Subp. Inventarios'!F23 -> 0 | F24: $ 3,600,960
B25: Junio | C25: ='Subp. Inventarios'!C24*'Datos ajustados'!$D$6 -> 0 | D25: ='Subp. Compras y Pagos'!D26 -> $ 3,600,960 | E25: ='Subp. Inventarios'!F24 -> 0 | F25: $ 3,600,960
B26: Julio | C26: ='Subp. Inventarios'!C25*'Datos ajustados'!$D$6 -> 0 | D26: ='Subp. Compras y Pagos'!D27 -> $ 4,051,080 | E26: ='Subp. Inventarios'!F25 -> 0 | F26: $ 4,051,080
B27: Agosto | C27: ='Subp. Inventarios'!C26*'Datos ajustados'!$D$6 -> 0 | D27: ='Subp. Compras y Pagos'!D28 -> $ 4,051,080 | E27: ='Subp. Inventarios'!F26 -> 0 | F27: $ 4,051,080
B28: Septiembre | C28: ='Subp. Inventarios'!C27*'Datos ajustados'!$D$6 -> 0 | D28: ='Subp. Compras y Pagos'!D29 -> $ 4,051,080 | E28: ='Subp. Inventarios'!F27 -> 0 | F28: $ 4,051,080
B29: Octubre | C29: ='Subp. Inventarios'!C28*'Datos ajustados'!$D$6 -> 0 | D29: ='Subp. Compras y Pagos'!D30 -> $ 4,501,200 | E29: ='Subp. Inventarios'!F28 -> 0 | F29: $ 4,501,200
B30: Noviembre | C30: ='Subp. Inventarios'!C29*'Datos ajustados'!$D$6 -> 0 | D30: ='Subp. Compras y Pagos'!D31 -> $ 4,501,200 | E30: ='Subp. Inventarios'!F29 -> 0 | F30: $ 4,501,200
B31: Diciembre | C31: ='Subp. Inventarios'!C30*'Datos ajustados'!$D$6 -> 0 | D31: ='Subp. Compras y Pagos'!D32 -> $ 4,951,320 | E31: ='Subp. Inventarios'!F30 -> 0 | F31: $ 4,951,320
B32: Período 2 | C32: =SUM(C20:C31) -> 0 | D32: $ 45,912,240 | E32: 0 | F32: $ 45,912,240
B34: Costo de mercadería vendida
B35: Período 3 | C35: Existencia Inicial | D35: Compras | E35: Existencia Final | F35: CMV
B36: Enero | C36: ='Subp. Inventarios'!C34*'Datos ajustados'!$E$6 -> 0 | D36: ='Subp. Compras y Pagos'!D38 -> $ 4,951,320 | E36: ='Subp. Inventarios'!F34 -> 0 | F36: =C36+D36-E36 -> $ 4,951,320
B37: Febrero | C37: ='Subp. Inventarios'!C35*'Datos ajustados'!$E$6 -> 0 | D37: ='Subp. Compras y Pagos'!D39 -> $ 5,776,540 | E37: ='Subp. Inventarios'!F35 -> 0 | F37: $ 5,776,540
B38: Marzo | C38: ='Subp. Inventarios'!C36*'Datos ajustados'!$E$6 -> 0 | D38: ='Subp. Compras y Pagos'!D40 -> $ 5,776,540 | E38: ='Subp. Inventarios'!F36 -> 0 | F38: $ 5,776,540
B39: Abril | C39: ='Subp. Inventarios'!C37*'Datos ajustados'!$E$6 -> 0 | D39: ='Subp. Compras y Pagos'!D41 -> $ 6,601,760 | E39: ='Subp. Inventarios'!F37 -> 0 | F39: $ 6,601,760
B40: Mayo | C40: ='Subp. Inventarios'!C38*'Datos ajustados'!$E$6 -> 0 | D40: ='Subp. Compras y Pagos'!D42 -> $ 6,601,760 | E40: ='Subp. Inventarios'!F38 -> 0 | F40: $ 6,601,760
B41: Junio | C41: ='Subp. Inventarios'!C39*'Datos ajustados'!$E$6 -> 0 | D41: ='Subp. Compras y Pagos'!D43 -> $ 6,601,760 | E41: ='Subp. Inventarios'!F39 -> 0 | F41: $ 6,601,760
B42: Julio | C42: ='Subp. Inventarios'!C40*'Datos ajustados'!$E$6 -> 0 | D42: ='Subp. Compras y Pagos'!D44 -> $ 7,426,980 | E42: ='Subp. Inventarios'!F40 -> 0 | F42: $ 7,426,980
B43: Agosto | C43: ='Subp. Inventarios'!C41*'Datos ajustados'!$E$6 -> 0 | D43: ='Subp. Compras y Pagos'!D45 -> $ 7,426,980 | E43: ='Subp. Inventarios'!F41 -> 0 | F43: $ 7,426,980
B44: Septiembre | C44: ='Subp. Inventarios'!C42*'Datos ajustados'!$E$6 -> 0 | D44: ='Subp. Compras y Pagos'!D46 -> $ 7,426,980 | E44: ='Subp. Inventarios'!F42 -> 0 | F44: $ 7,426,980
B45: Octubre | C45: ='Subp. Inventarios'!C43*'Datos ajustados'!$E$6 -> 0 | D45: ='Subp. Compras y Pagos'!D47 -> $ 8,252,200 | E45: ='Subp. Inventarios'!F43 -> 0 | F45: $ 8,252,200
B46: Noviembre | C46: ='Subp. Inventarios'!C44*'Datos ajustados'!$E$6 -> 0 | D46: ='Subp. Compras y Pagos'!D48 -> $ 8,252,200 | E46: ='Subp. Inventarios'!F44 -> 0 | F46: $ 8,252,200
B47: Diciembre | C47: ='Subp. Inventarios'!C45*'Datos ajustados'!$E$6 -> 0 | D47: ='Subp. Compras y Pagos'!D49 -> $ 9,077,420 | E47: ='Subp. Inventarios'!F45 -> 0 | F47: $ 9,077,420
B48: Período 3 | C48: =SUM(C36:C47) -> 0 | D48: $ 84,172,440 | E48: 0 | F48: $ 84,172,440
B50: Costo de mercadería vendida
B51: Período 4 | C51: Existencia Inicial | D51: Compras | E51: Existencia Final | F51: CMV
B52: Enero | C52: ='Subp. Inventarios'!C49*'Datos ajustados'!$F$6 -> 0 | D52: ='Subp. Compras y Pagos'!D55 -> $ 7,625,033 | E52: ='Subp. Inventarios'!F49 -> 0 | F52: =C52+D52-E52 -> $ 7,625,033
B53: Febrero | C53: ='Subp. Inventarios'!C50*'Datos ajustados'!$F$6 -> 0 | D53: ='Subp. Compras y Pagos'!D56 -> $ 8,895,872 | E53: ='Subp. Inventarios'!F50 -> 0 | F53: $ 8,895,872
B54: Marzo | C54: ='Subp. Inventarios'!C51*'Datos ajustados'!$F$6 -> 0 | D54: ='Subp. Compras y Pagos'!D57 -> $ 8,895,872 | E54: ='Subp. Inventarios'!F51 -> 0 | F54: $ 8,895,872
B55: Abril | C55: ='Subp. Inventarios'!C52*'Datos ajustados'!$F$6 -> 0 | D55: ='Subp. Compras y Pagos'!D58 -> $ 10,166,710 | E55: ='Subp. Inventarios'!F52 -> 0 | F55: $ 10,166,710
B56: Mayo | C56: ='Subp. Inventarios'!C53*'Datos ajustados'!$F$6 -> 0 | D56: ='Subp. Compras y Pagos'!D59 -> $ 10,166,710 | E56: ='Subp. Inventarios'!F53 -> 0 | F56: $ 10,166,710
B57: Junio | C57: ='Subp. Inventarios'!C54*'Datos ajustados'!$F$6 -> 0 | D57: ='Subp. Compras y Pagos'!D60 -> $ 10,166,710 | E57: ='Subp. Inventarios'!F54 -> 0 | F57: $ 10,166,710
B58: Julio | C58: ='Subp. Inventarios'!C55*'Datos ajustados'!$F$6 -> 0 | D58: ='Subp. Compras y Pagos'!D61 -> $ 11,437,549 | E58: ='Subp. Inventarios'!F55 -> 0 | F58: $ 11,437,549
B59: Agosto | C59: ='Subp. Inventarios'!C56*'Datos ajustados'!$F$6 -> 0 | D59: ='Subp. Compras y Pagos'!D62 -> $ 11,437,549 | E59: ='Subp. Inventarios'!F56 -> 0 | F59: $ 11,437,549
B60: Septiembre | C60: ='Subp. Inventarios'!C57*'Datos ajustados'!$F$6 -> 0 | D60: ='Subp. Compras y Pagos'!D63 -> $ 11,437,549 | E60: ='Subp. Inventarios'!F57 -> 0 | F60: $ 11,437,549
B61: Octubre | C61: ='Subp. Inventarios'!C58*'Datos ajustados'!$F$6 -> 0 | D61: ='Subp. Compras y Pagos'!D64 -> $ 12,708,388 | E61: ='Subp. Inventarios'!F58 -> 0 | F61: $ 12,708,388
B62: Noviembre | C62: ='Subp. Inventarios'!C59*'Datos ajustados'!$F$6 -> 0 | D62: ='Subp. Compras y Pagos'!D65 -> $ 12,708,388 | E62: ='Subp. Inventarios'!F59 -> 0 | F62: $ 12,708,388
B63: Diciembre | C63: ='Subp. Inventarios'!C60*'Datos ajustados'!$F$6 -> 0 | D63: ='Subp. Compras y Pagos'!D66 -> $ 13,979,227 | E63: ='Subp. Inventarios'!F60 -> 0 | F63: $ 13,979,227
B64: Período 4 | C64: =SUM(C52:C63) -> 0 | D64: $ 129,625,558 | E64: 0 | F64: $ 129,625,558
B66: Costo de mercadería vendida
B67: Período 5 | C67: Existencia Inicial | D67: Compras | E67: Existencia Final | F67: CMV
B68: Enero | C68: ='Subp. Inventarios'!C64*'Datos ajustados'!$G$6 -> 0 | D68: ='Subp. Compras y Pagos'!D72 -> $ 11,183,381 | E68: ='Subp. Inventarios'!F64 -> 0 | F68: =C68+D68-E68 -> $ 11,183,381
B69: Febrero | C69: ='Subp. Inventarios'!C65*'Datos ajustados'!$G$6 -> 0 | D69: ='Subp. Compras y Pagos'!D73 -> $ 11,183,381 | E69: ='Subp. Inventarios'!F65 -> 0 | F69: $ 11,183,381
B70: Marzo | C70: ='Subp. Inventarios'!C66*'Datos ajustados'!$G$6 -> 0 | D70: ='Subp. Compras y Pagos'!D74 -> $ 11,183,381 | E70: ='Subp. Inventarios'!F66 -> 0 | F70: $ 11,183,381
B71: Abril | C71: ='Subp. Inventarios'!C67*'Datos ajustados'!$G$6 -> 0 | D71: ='Subp. Compras y Pagos'!D75 -> $ 12,781,007 | E71: ='Subp. Inventarios'!F67 -> 0 | F71: $ 12,781,007
B72: Mayo | C72: ='Subp. Inventarios'!C68*'Datos ajustados'!$G$6 -> 0 | D72: ='Subp. Compras y Pagos'!D76 -> $ 12,781,007 | E72: ='Subp. Inventarios'!F68 -> 0 | F72: $ 12,781,007
B73: Junio | C73: ='Subp. Inventarios'!C69*'Datos ajustados'!$G$6 -> 0 | D73: ='Subp. Compras y Pagos'!D77 -> $ 12,781,007 | E73: ='Subp. Inventarios'!F69 -> 0 | F73: $ 12,781,007
B74: Julio | C74: ='Subp. Inventarios'!C70*'Datos ajustados'!$G$6 -> 0 | D74: ='Subp. Compras y Pagos'!D78 -> $ 12,781,007 | E74: ='Subp. Inventarios'!F70 -> 0 | F74: $ 12,781,007
B75: Agosto | C75: ='Subp. Inventarios'!C71*'Datos ajustados'!$G$6 -> 0 | D75: ='Subp. Compras y Pagos'!D79 -> $ 14,378,633 | E75: ='Subp. Inventarios'!F71 -> 0 | F75: $ 14,378,633
B76: Septiembre | C76: ='Subp. Inventarios'!C72*'Datos ajustados'!$G$6 -> 0 | D76: ='Subp. Compras y Pagos'!D80 -> $ 14,378,633 | E76: ='Subp. Inventarios'!F72 -> 0 | F76: $ 14,378,633
B77: Octubre | C77: ='Subp. Inventarios'!C73*'Datos ajustados'!$G$6 -> 0 | D77: ='Subp. Compras y Pagos'!D81 -> $ 14,378,633 | E77: ='Subp. Inventarios'!F73 -> 0 | F77: $ 14,378,633
B78: Noviembre | C78: ='Subp. Inventarios'!C74*'Datos ajustados'!$G$6 -> 0 | D78: ='Subp. Compras y Pagos'!D82 -> $ 15,976,259 | E78: ='Subp. Inventarios'!F74 -> 0 | F78: $ 15,976,259
B79: Diciembre | C79: ='Subp. Inventarios'!C75*'Datos ajustados'!$G$6 -> 0 | D79: ='Subp. Compras y Pagos'!D83 -> $ 15,976,259 | E79: ='Subp. Inventarios'!F75 -> 0 | F79: $ 15,976,259
B80: Período 5 | C80: =SUM(C68:C79) -> 0 | D80: $ 159,762,592 | E80: 0 | F80: $ 159,762,592
B82: Costo de mercadería vendida
B83: Período 6 | C83: Existencia Inicial | D83: Compras | E83: Existencia Final | F83: CMV
B84: Enero | C84: ='Subp. Inventarios'!C79*'Datos ajustados'!$H$6 -> 0 | D84: ='Subp. Compras y Pagos'!D89 -> $ 13,839,435 | E84: ='Subp. Inventarios'!F79 -> 0 | F84: =C84+D84-E84 -> $ 13,839,435
B85: Febrero | C85: ='Subp. Inventarios'!C80*'Datos ajustados'!$H$6 -> 0 | D85: ='Subp. Compras y Pagos'!D90 -> $ 13,839,435 | E85: ='Subp. Inventarios'!F80 -> 0 | F85: $ 13,839,435
B86: Marzo | C86: ='Subp. Inventarios'!C81*'Datos ajustados'!$H$6 -> 0 | D86: ='Subp. Compras y Pagos'!D91 -> $ 13,839,435 | E86: ='Subp. Inventarios'!F81 -> 0 | F86: $ 13,839,435
B87: Abril | C87: ='Subp. Inventarios'!C82*'Datos ajustados'!$H$6 -> 0 | D87: ='Subp. Compras y Pagos'!D92 -> $ 15,816,497 | E87: ='Subp. Inventarios'!F82 -> 0 | F87: $ 15,816,497
B88: Mayo | C88: ='Subp. Inventarios'!C83*'Datos ajustados'!$H$6 -> 0 | D88: ='Subp. Compras y Pagos'!D93 -> $ 15,816,497 | E88: ='Subp. Inventarios'!F83 -> 0 | F88: $ 15,816,497
B89: Junio | C89: ='Subp. Inventarios'!C84*'Datos ajustados'!$H$6 -> 0 | D89: ='Subp. Compras y Pagos'!D94 -> $ 15,816,497 | E89: ='Subp. Inventarios'!F84 -> 0 | F89: $ 15,816,497
B90: Julio | C90: ='Subp. Inventarios'!C85*'Datos ajustados'!$H$6 -> 0 | D90: ='Subp. Compras y Pagos'!D95 -> $ 15,816,497 | E90: ='Subp. Inventarios'!F85 -> 0 | F90: $ 15,816,497
B91: Agosto | C91: ='Subp. Inventarios'!C86*'Datos ajustados'!$H$6 -> 0 | D91: ='Subp. Compras y Pagos'!D96 -> $ 17,793,559 | E91: ='Subp. Inventarios'!F86 -> 0 | F91: $ 17,793,559
B92: Septiembre | C92: ='Subp. Inventarios'!C87*'Datos ajustados'!$H$6 -> 0 | D92: ='Subp. Compras y Pagos'!D97 -> $ 17,793,559 | E92: ='Subp. Inventarios'!F87 -> 0 | F92: $ 17,793,559
B93: Octubre | C93: ='Subp. Inventarios'!C88*'Datos ajustados'!$H$6 -> 0 | D93: ='Subp. Compras y Pagos'!D98 -> $ 17,793,559 | E93: ='Subp. Inventarios'!F88 -> 0 | F93: $ 17,793,559
B94: Noviembre | C94: ='Subp. Inventarios'!C89*'Datos ajustados'!$H$6 -> 0 | D94: ='Subp. Compras y Pagos'!D99 -> $ 19,770,621 | E94: ='Subp. Inventarios'!F89 -> 0 | F94: $ 19,770,621
B95: Diciembre | C95: ='Subp. Inventarios'!C90*'Datos ajustados'!$H$6 -> 0 | D95: ='Subp. Compras y Pagos'!D100 -> $ 19,770,621 | E95: ='Subp. Inventarios'!F90 -> 0 | F95: $ 19,770,621
B96: Período 6 | C96: =SUM(C84:C95) -> 0 | D96: $ 197,706,208 | E96: 0 | F96: $ 197,706,208
B98: Costo de mercadería vendida
B99: Período 7 | C99: Existencia Inicial | D99: Compras | E99: Existencia Final | F99: CMV
B100: Enero | C100: ='Subp. Inventarios'!C94*'Datos ajustados'!$I$6 -> 0 | D100: ='Subp. Compras y Pagos'!D106 -> $ 16,914,864 | E100: ='Subp. Inventarios'!F94 -> 0 | F100: =C100+D100-E100 -> $ 16,914,864
B101: Febrero | C101: ='Subp. Inventarios'!C95*'Datos ajustados'!$I$6 -> 0 | D101: ='Subp. Compras y Pagos'!D107 -> $ 16,914,864 | E101: ='Subp. Inventarios'!F95 -> 0 | F101: $ 16,914,864
B102: Marzo | C102: ='Subp. Inventarios'!C96*'Datos ajustados'!$I$6 -> 0 | D102: ='Subp. Compras y Pagos'!D108 -> $ 16,914,864 | E102: ='Subp. Inventarios'!F96 -> 0 | F102: $ 16,914,864
B103: Abril | C103: ='Subp. Inventarios'!C97*'Datos ajustados'!$I$6 -> 0 | D103: ='Subp. Compras y Pagos'!D109 -> $ 19,331,274 | E103: ='Subp. Inventarios'!F97 -> 0 | F103: $ 19,331,274
B104: Mayo | C104: ='Subp. Inventarios'!C98*'Datos ajustados'!$I$6 -> 0 | D104: ='Subp. Compras y Pagos'!D110 -> $ 19,331,274 | E104: ='Subp. Inventarios'!F98 -> 0 | F104: $ 19,331,274
B105: Junio | C105: ='Subp. Inventarios'!C99*'Datos ajustados'!$I$6 -> 0 | D105: ='Subp. Compras y Pagos'!D111 -> $ 19,331,274 | E105: ='Subp. Inventarios'!F99 -> 0 | F105: $ 19,331,274
B106: Julio | C106: ='Subp. Inventarios'!C100*'Datos ajustados'!$I$6 -> 0 | D106: ='Subp. Compras y Pagos'!D112 -> $ 19,331,274 | E106: ='Subp. Inventarios'!F100 -> 0 | F106: $ 19,331,274
B107: Agosto | C107: ='Subp. Inventarios'!C101*'Datos ajustados'!$I$6 -> 0 | D107: ='Subp. Compras y Pagos'!D113 -> $ 21,747,683 | E107: ='Subp. Inventarios'!F101 -> 0 | F107: $ 21,747,683
B108: Septiembre | C108: ='Subp. Inventarios'!C102*'Datos ajustados'!$I$6 -> 0 | D108: ='Subp. Compras y Pagos'!D114 -> $ 21,747,683 | E108: ='Subp. Inventarios'!F102 -> 0 | F108: $ 21,747,683
B109: Octubre | C109: ='Subp. Inventarios'!C103*'Datos ajustados'!$I$6 -> 0 | D109: ='Subp. Compras y Pagos'!D115 -> $ 21,747,683 | E109: ='Subp. Inventarios'!F103 -> 0 | F109: $ 21,747,683
B110: Noviembre | C110: ='Subp. Inventarios'!C104*'Datos ajustados'!$I$6 -> 0 | D110: ='Subp. Compras y Pagos'!D116 -> $ 24,164,092 | E110: ='Subp. Inventarios'!F104 -> 0 | F110: $ 24,164,092
B111: Diciembre | C111: ='Subp. Inventarios'!C105*'Datos ajustados'!$I$6 -> 0 | D111: ='Subp. Compras y Pagos'!D117 -> $ 24,164,092 | E111: ='Subp. Inventarios'!F105 -> 0 | F111: $ 24,164,092
B112: Período 7 | C112: =SUM(C100:C111) -> 0 | D112: $ 241,640,920 | E112: 0 | F112: $ 241,640,920
B114: Costo de mercadería vendida
B115: Período 8 | C115: Existencia Inicial | D115: Compras | E115: Existencia Final | F115: CMV
B116: Enero | C116: ='Subp. Inventarios'!C109*'Datos ajustados'!$J$6 -> 0 | D116: ='Subp. Compras y Pagos'!D123 -> $ 20,466,986 | E116: ='Subp. Inventarios'!F109 -> 0 | F116: =C116+D116-E116 -> $ 20,466,986
B117: Febrero | C117: ='Subp. Inventarios'!C110*'Datos ajustados'!$J$6 -> 0 | D117: ='Subp. Compras y Pagos'!D124 -> $ 20,466,986 | E117: ='Subp. Inventarios'!F110 -> 0 | F117: $ 20,466,986
B118: Marzo | C118: ='Subp. Inventarios'!C111*'Datos ajustados'!$J$6 -> 0 | D118: ='Subp. Compras y Pagos'!D125 -> $ 20,466,986 | E118: ='Subp. Inventarios'!F111 -> 0 | F118: $ 20,466,986
B119: Abril | C119: ='Subp. Inventarios'!C112*'Datos ajustados'!$J$6 -> 0 | D119: ='Subp. Compras y Pagos'!D126 -> $ 23,390,841 | E119: ='Subp. Inventarios'!F112 -> 0 | F119: $ 23,390,841
B120: Mayo | C120: ='Subp. Inventarios'!C113*'Datos ajustados'!$J$6 -> 0 | D120: ='Subp. Compras y Pagos'!D127 -> $ 23,390,841 | E120: ='Subp. Inventarios'!F113 -> 0 | F120: $ 23,390,841
B121: Junio | C121: ='Subp. Inventarios'!C114*'Datos ajustados'!$J$6 -> 0 | D121: ='Subp. Compras y Pagos'!D128 -> $ 23,390,841 | E121: ='Subp. Inventarios'!F114 -> 0 | F121: $ 23,390,841
B122: Julio | C122: ='Subp. Inventarios'!C115*'Datos ajustados'!$J$6 -> 0 | D122: ='Subp. Compras y Pagos'!D129 -> $ 23,390,841 | E122: ='Subp. Inventarios'!F115 -> 0 | F122: $ 23,390,841
B123: Agosto | C123: ='Subp. Inventarios'!C116*'Datos ajustados'!$J$6 -> 0 | D123: ='Subp. Compras y Pagos'!D130 -> $ 26,314,696 | E123: ='Subp. Inventarios'!F116 -> 0 | F123: $ 26,314,696
B124: Septiembre | C124: ='Subp. Inventarios'!C117*'Datos ajustados'!$J$6 -> 0 | D124: ='Subp. Compras y Pagos'!D131 -> $ 26,314,696 | E124: ='Subp. Inventarios'!F117 -> 0 | F124: $ 26,314,696
B125: Octubre | C125: ='Subp. Inventarios'!C118*'Datos ajustados'!$J$6 -> 0 | D125: ='Subp. Compras y Pagos'!D132 -> $ 26,314,696 | E125: ='Subp. Inventarios'!F118 -> 0 | F125: $ 26,314,696
B126: Noviembre | C126: ='Subp. Inventarios'!C119*'Datos ajustados'!$J$6 -> 0 | D126: ='Subp. Compras y Pagos'!D133 -> $ 29,238,551 | E126: ='Subp. Inventarios'!F119 -> 0 | F126: $ 29,238,551
B127: Diciembre | C127: ='Subp. Inventarios'!C120*'Datos ajustados'!$J$6 -> 0 | D127: ='Subp. Compras y Pagos'!D134 -> $ 29,238,551 | E127: ='Subp. Inventarios'!F120 -> 0 | F127: $ 29,238,551
B128: Período 8 | C128: =SUM(C116:C127) -> 0 | D128: $ 292,385,514 | E128: 0 | F128: $ 292,385,514
B130: Costo de mercadería vendida anualizado
B131: Períodos | C131: Existencia Inicial | D131: Compras | E131: Existencia Final | F131: CMV
B132: Período 1 | C132: =C16 -> 0 | D132: ='Subp. Compras y Pagos'!D139 -> $ 20,460,000 | E132: =E16 -> 0 | F132: =C132+D132-E132 -> $ 20,460,000
B133: Período 2 | C133: =C32 -> 0 | D133: ='Subp. Compras y Pagos'!D140 -> $ 45,912,240 | E133: =E32 -> 0 | F133: $ 45,912,240
B134: Período 3 | C134: =C48 -> 0 | D134: ='Subp. Compras y Pagos'!D141 -> $ 84,172,440 | E134: =E48 -> 0 | F134: $ 84,172,440
B135: Período 4 | C135: =C64 -> 0 | D135: ='Subp. Compras y Pagos'!D142 -> $ 129,625,558 | E135: =E64 -> 0 | F135: $ 129,625,558
B136: Período 5 | C136: =C80 -> 0 | D136: ='Subp. Compras y Pagos'!D143 -> $ 159,762,592 | E136: =E80 -> 0 | F136: $ 159,762,592
B137: Período 6 | C137: =C96 -> 0 | D137: ='Subp. Compras y Pagos'!D144 -> $ 197,706,208 | E137: =E96 -> 0 | F137: $ 197,706,208
B138: Período 7 | C138: =C112 -> 0 | D138: ='Subp. Compras y Pagos'!D145 -> $ 241,640,920 | E138: =E112 -> 0 | F138: $ 241,640,920
B139: Período 8 | C139: =C128 -> 0 | D139: ='Subp. Compras y Pagos'!D146 -> $ 292,385,514 | E139: =E128 -> 0 | F139: $ 292,385,514
B140: Total | F140: =SUM(F132:F139) -> $ 1,171,665,471

Sheet Subp. Gastos
B2: Subpresupuesto de Gastos de Estructura
B3: Concepto | C3: Período 1 | D3: Período 2 | E3: Período 3 | F3: Período 4 | G3: Período 5 | H3: Período 6 | I3: Período 7 | J3: Período 8
B4: Sueldos y costos laborales administrativos | C4: ='Datos ajustados'!C14 -> $ 1,092,798 | D4: ='Datos ajustados'!D14 -> $ 1,147,438 | E4: ='Datos ajustados'!E14 -> $ 1,204,810 | F4: ='Datos ajustados'!F14 -> $ 1,265,050 | G4: ='Datos ajustados'!G14 -> $ 1,328,303 | H4: ='Datos ajustados'!H14 -> $ 1,394,718 | I4: ='Datos ajustados'!I14 -> $ 1,464,454 | J4: ='Datos ajustados'!J14 -> $ 1,537,677
B5: Mantenimiento | C5: =20000*12 -> $ 240,000 | D5: =80000*12 -> $ 960,000 | E5: $ 960,000 | F5: $ 960,000 | G5: $ 960,000 | H5: $ 960,000 | I5: $ 960,000 | J5: $ 960,000
B6: Servicio de agua | C6: =8000*12 -> $ 96,000 | D6: $ 96,000 | E6: $ 96,000 | F6: $ 96,000 | G6: $ 96,000 | H6: $ 96,000 | I6: $ 96,000 | J6: $ 96,000
B7: Servicio de luz | C7: =7000*12 -> $ 84,000 | D7: $ 84,000 | E7: $ 84,000 | F7: $ 84,000 | G7: $ 84,000 | H7: $ 84,000 | I7: $ 84,000 | J7: $ 84,000
B8: Servicio de limpieza | C8: =25000*12 -> $ 300,000 | D8: $ 300,000 | E8: $ 300,000 | F8: $ 300,000 | G8: $ 300,000 | H8: $ 300,000 | I8: $ 300,000 | J8: $ 300,000
B9: Telefonía e internet | C9: =10000*12 -> $ 120,000 | D9: $ 120,000 | E9: $ 120,000 | F9: $ 120,000 | G9: $ 120,000 | H9: $ 120,000 | I9: $ 120,000 | J9: $ 120,000
B10: Impuestos municipales | C10: =2700*12 -> $ 32,400 | D10: $ 32,400 | E10: $ 32,400 | F10: $ 32,400 | G10: $ 32,400 | H10: $ 32,400 | I10: $ 32,400 | J10: $ 32,400
B11: Seguros varios | C11: =4300*12 -> $ 51,600 | D11: $ 51,600 | E11: $ 51,600 | F11: $ 51,600 | G11: $ 51,600 | H11: $ 51,600 | I11: $ 51,600 | J11: $ 51,600
B12: Viáticos | C12: $ 250,000 | D12: $ 250,000 | E12: $ 250,000 | F12: $ 250,000 | G12: $ 250,000 | H12: $ 250,000 | I12: $ 250,000 | J12: $ 250,000
B13: Gastos de librería | C13: =2500*12 -> $ 30,000 | D13: $ 30,000 | E13: $ 30,000 | F13: $ 30,000 | G13: $ 30,000 | H13: $ 30,000 | I13: $ 30,000 | J13: $ 30,000
B14: Gastos de representación Directorio | C14: $ 200,000 | D14: $ 250,000 | E14: $ 250,000 | F14: $ 250,000 | G14: $ 250,000 | H14: $ 250,000 | I14: $ 250,000 | J14: $ 250,000
B15: Honorarios Directorio | C15: =60000*12 -> $ 720,000 | D15: $ 720,000 | E15: $ 720,000 | F15: $ 720,000 | G15: $ 720,000 | H15: $ 720,000 | I15: $ 720,000 | J15: $ 720,000
B16: Capacitación de empleados | C16: =C4*$K$16 -> $ 32,784 | D16: $ 34,423 | E16: $ 36,144 | F16: $ 37,952 | G16: $ 39,849 | H16: $ 41,842 | I16: $ 43,934 | J16: $ 46,130 | K16: 3% | L16: sobre sueldos
B17: Total Gastos de Estructura | C17: =SUM(C4:C16) -> $ 3,249,582 | D17: $ 4,075,861 | E17: $ 4,134,954 | F17: $ 4,197,002 | G17: $ 4,262,152 | H17: $ 4,330,559 | I17: $ 4,402,387 | J17: $ 4,477,807
B19: Subpresupuesto de Gastos Operativos
B20: Concepto | C20: Período 1 | D20: Período 2 | E20: Período 3 | F20: Período 4 | G20: Período 5 | H20: Período 6 | I20: Período 7 | J20: Período 8
B21: Sueldos y costos laborales operativos | C21: ='Datos ajustados'!C16 -> $ 1,613,178 | D21: ='Datos ajustados'!D16 -> $ 1,693,837 | E21: ='Datos ajustados'!E16 -> $ 1,778,529 | F21: ='Datos ajustados'!F16 -> $ 1,867,455 | G21: ='Datos ajustados'!G16 -> $ 1,960,828 | H21: ='Datos ajustados'!H16 -> $ 2,058,869 | I21: ='Datos ajustados'!I16 -> $ 2,161,813 | J21: ='Datos ajustados'!J16 -> $ 2,269,903
B22: Seguridad e Higiene | C22: $ 300,000 | D22: $ 300,000 | E22: $ 300,000 | F22: $ 300,000 | G22: $ 300,000 | H22: $ 300,000 | I22: $ 300,000 | J22: $ 300,000
B23: Contrato de Logística | C23: $ 10,000,000 | D23: $ 10,000,000 | E23: $ 10,000,000 | F23: $ 10,000,000 | G23: $ 10,000,000 | H23: $ 10,000,000 | I23: $ 10,000,000 | J23: $ 10,000,000
B24: Capacitación de empleados | C24: =C21*$K$24 -> $ 48,395 | D24: $ 50,815 | E24: $ 53,356 | F24: $ 56,024 | G24: $ 58,825 | H24: $ 61,766 | I24: $ 64,854 | J24: $ 68,097 | K24: 3% | L24: sobre sueldos
B25: Total Gastos Operativos | C25: =SUM(C21:C24) -> $ 11,961,573 | D25: $ 12,044,652 | E25: $ 12,131,885 | F25: $ 12,223,479 | G25: $ 12,319,653 | H25: $ 12,420,635 | I25: $ 12,526,667 | J25: $ 12,638,001
B27: Subpresupuesto de Gastos Comerciales
B28: Concepto | C28: Período 1 | D28: Período 2 | E28: Período 3 | F28: Período 4 | G28: Período 5 | H28: Período 6 | I28: Período 7 | J28: Período 8
B29: Sueldos y costos laborales comerciales | C29: ='Datos ajustados'!C15 -> $ 1,786,638 | D29: ='Datos ajustados'!D15 -> $ 1,875,970 | E29: ='Datos ajustados'!E15 -> $ 1,969,768 | F29: ='Datos ajustados'!F15 -> $ 2,068,257 | G29: ='Datos ajustados'!G15 -> $ 2,171,670 | H29: ='Datos ajustados'!H15 -> $ 2,280,253 | I29: ='Datos ajustados'!I15 -> $ 2,394,266 | J29: ='Datos ajustados'!J15 -> $ 2,513,979
B30: Comisiones a vendedores (6%) | C30: =$K$30*'Subp. Ventas y Cobros'!F139 -> $ 3,584,117 | D30: =$K$30*'Subp. Ventas y Cobros'!F140 -> $ 8,042,758 | E30: =$K$30*'Subp. Ventas y Cobros'!F141 -> $ 14,745,057 | F30: =$K$30*'Subp. Ventas y Cobros'!F142 -> $ 22,707,387 | G30: =$K$30*'Subp. Ventas y Cobros'!F143 -> $ 27,986,696 | H30: =$K$30*'Subp. Ventas y Cobros'!F144 -> $ 34,633,536 | I30: =$K$30*'Subp. Ventas y Cobros'!F145 -> $ 42,329,877 | J30: =K30*'Subp. Ventas y Cobros'!F146 -> $ 51,219,151 | K30: 6%
B31: Investigación de Mercado | C31: $ 300,000 | D31: $ 350,000 | E31: $ 400,000 | F31: =E31*1.1 -> $ 440,000 | G31: $ 500,000 | H31: =G31*1.1 -> $ 550,000 | I31: $ 600,000 | J31: $ 650,000
B32: Publicidad | C32: $ 800,000 | D32: ='Subp. Ventas y Cobros'!S33*K32 -> $ 6,337,913 | E32: ='Subp. Ventas y Cobros'!S50*K32 -> $ 11,685,216 | F32: ='Subp. Ventas y Cobros'!S67*K32 -> $ 18,207,254 | G32: ='Subp. Ventas y Cobros'!S84*K32 -> $ 23,030,718 | H32: ='Subp. Ventas y Cobros'!S101*K32 -> $ 28,307,376 | I32: ='Subp. Ventas y Cobros'!S118*K32 -> $ 34,633,536 | J32: ='Subp. Ventas y Cobros'!S135*K32 -> $ 41,941,853 | K32: 5% | L32: sobre ventas
B33: Capacitación de empleados | C33: =K33*C29 -> $ 53,599 | D33: =K33*D29 -> $ 56,279 | E33: =K33*E29 -> $ 59,093 | F33: =K33*F29 -> $ 62,048 | G33: =K33*G29 -> $ 65,150 | H33: =K33*H29 -> $ 68,408 | I33: =K33*I29 -> $ 71,828 | J33: =K33*J29 -> $ 75,419 | K33: 3% | L33: sobre sueldos
B34: Total Gastos Comerciales | C34: =SUM(C29:C33) -> $ 6,524,354 | D34: $ 16,662,920 | E34: $ 28,859,134 | F34: $ 43,484,945 | G34: $ 53,754,233 | H34: $ 65,839,573 | I34: $ 80,029,506 | J34: $ 96,400,403
B36: Subpresupuesto de Gastos Financieros
B37: Concepto | C37: Período 1 | D37: Período 2 | E37: Período 3 | F37: Período 4 | G37: Período 5 | H37: Período 6 | I37: Período 7 | J37: Período 8
B38: Gastos bancarios | C38: $ 220,000 | D38: $ 220,000 | E38: $ 220,000 | F38: $ 220,000 | G38: $ 220,000 | H38: $ 220,000 | I38: $ 220,000 | J38: $ 220,000
B39: Financiación en cuotas (12%) | C39: 0 | D39: 0 | E39: 0 | F39: 0 | G39: 0 | H39: 0 | I39: 0 | J39: 0
B40: Total Gastos Financieros | C40: =SUM(C38:C39) -> $ 220,000 | D40: $ 220,000 | E40: $ 220,000 | F40: $ 220,000 | G40: $ 220,000 | H40: $ 220,000 | I40: $ 220,000 | J40: $ 220,000

Sheet Subp. Capital e Inversión
B2: Período | C2: Concepto | D2: Valor de origen | E2: Vida útil | F2: Amortización | H2: Subpresupuesto de Capital e Inversión
B3: Año 1 | C3: Muebles y Útiles | D3: =I6 -> $ 2,500,000 | E3: 5 | F3: =D3/E3 -> $ 500,000 | H3: Capital de trabajo | I3: $ 40,170,000
C4: Inmuebles | D4: =I4 -> $ 30,000,000 | E4: 50 | F4: $ 600,000 | H4: Inmueble | I4: $ 30,000,000
C5: Maquinarias | D5: $ 5,000,000 | E5: 10 | F5: $ 500,000 | H5: Maquinarias | I5: $ 5,000,000
C6: Gastos de organización | D6: =I12 -> $ 10,000,000 | E6: 5 | F6: $ 2,000,000 | H6: Muebles y Útiles | I6: $ 2,500,000
C7: Equipos de Computación | D7: =I7 -> $ 1,500,000 | E7: 3 | F7: $ 500,000 | H7: Equipos de Computación | I7: $ 1,500,000
B8: Total año 1 | D8: =SUM(D3:D7) -> $ 49,000,000 | F8: =SUM(F3:F7) -> $ 4,100,000 | H8: Plan de prevención | I8: $ 1,000,000
B9: Año 2 | C9: Muebles y Útiles | D9: =D3 -> $ 2,500,000 | E9: 5 | F9: =D9/E9 -> $ 500,000 | H9: Plan de contingencia | I9: =250000*12 -> $ 3,000,000
C10: Inmuebles | D10: $ 30,000,000 | E10: 50 | F10: $ 600,000 | H10: Investigación de mercado | I10: $ 300,000
C11: Maquinarias | D11: $ 5,000,000 | E11: 10 | F11: $ 500,000 | H11: Publicidad para lanzamiento | I11: $ 800,000
C12: Gastos de organización | D12: $ 10,000,000 | E12: 5 | F12: $ 2,000,000 | H12: Gastos de organización | I12: $ 10,000,000
C13: Equipos de Computación | D13: $ 1,500,000 | E13: 3 | F13: $ 500,000 | H13: Total | I13: =SUM(I3:I12) -> $ 94,270,000
B14: Total año 2 | D14: =SUM(D9:D13) -> $ 49,000,000 | F14: =SUM(F9:F13) -> $ 4,100,000
B15: Año 3 | C15: Muebles y Útiles | D15: =D9 -> $ 2,500,000 | E15: 5 | F15: =D15/E15 -> $ 500,000
C16: Inmuebles | D16: $ 30,000,000 | E16: 50 | F16: $ 600,000
C17: Maquinarias | D17: $ 5,000,000 | E17: 10 | F17: $ 500,000
C18: Gastos de organización | D18: $ 10,000,000 | E18: 5 | F18: $ 2,000,000
C19: Equipos de Computación | D19: $ 1,500,000 | E19: 3 | F19: $ 500,000
B20: Total año 3 | D20: =SUM(D15:D19) -> $ 49,000,000 | F20: =SUM(F15:F19) -> $ 4,100,000
B21: Año 4 | C21: Muebles y Útiles | D21: =D15 -> $ 2,500,000 | E21: 5 | F21: =D21/E21 -> $ 500,000
C22: Inmuebles | D22: $ 30,000,000 | E22: 50 | F22: $ 600,000
C23: Maquinarias | D23: $ 5,000,000 | E23: 10 | F23: $ 500,000
C24: Gastos de organización | D24: $ 10,000,000 | E24: 5 | F24: $ 2,000,000
C25: Equipos de Computación | D25: $ 1,500,000 | E25: 3
B26: Total año 4 | D26: =SUM(D21:D25) -> $ 49,000,000 | F26: =SUM(F21:F25) -> $ 3,600,000
B27: Año 5 | C27: Muebles y Útiles | D27: =D21 -> $ 2,500,000 | E27: 5 | F27: =D27/E27 -> $ 500,000
C28: Inmuebles | D28: $ 30,000,000 | E28: 50 | F28: $ 600,000
C29: Maquinarias | D29: $ 5,000,000 | E29: 10 | F29: $ 500,000
C30: Gastos de organización | D30: $ 10,000,000 | E30: 5 | F30: $ 2,000,000
C31: Equipos de Computación | D31: $ 1,500,000 | E31: 3
B32: Total año 5 | D32: =SUM(D27:D31) -> $ 49,000,000 | F32: =SUM(F27:F31) -> $ 3,600,000
B33: Año 6 | C33: Muebles y Útiles | D33: =D27 -> $ 2,500,000 | E33: 5
C34: Inmuebles | D34: $ 30,000,000 | E34: 50 | F34: =D34/E34 -> $ 600,000
C35: Maquinarias | D35: $ 5,000,000 | E35: 10 | F35: $ 500,000
C36: Gastos de organización | D36: $ 10,000,000 | E36: 5
C37: Equipos de Computación | D37: $ 1,500,000 | E37: 3
B38: Total año 6 | D38: =SUM(D33:D37) -> $ 49,000,000 | F38: =SUM(F33:F37) -> $ 1,100,000
B39: Año 7 | C39: Muebles y Útiles | D39: =D33 -> $ 2,500,000 | E39: 5
C40: Inmuebles | D40: $ 30,000,000 | E40: 50 | F40: =D40/E40 -> $ 600,000
C41: Maquinarias | D41: $ 5,000,000 | E41: 10 | F41: $ 500,000
C42: Gastos de organización | D42: $ 10,000,000 | E42: 5
C43: Equipos de Computación | D43: $ 1,500,000 | E43: 3
B44: Total año 7 | D44: =SUM(D39:D43) -> $ 49,000,000 | F44: =SUM(F39:F43) -> $ 1,100,000
B45: Año 8 | C45: Muebles y Útiles | D45: =D39 -> $ 2,500,000 | E45: 5
C46: Inmuebles | D46: $ 30,000,000 | E46: 50 | F46: =D46/E46 -> $ 600,000
C47: Maquinarias | D47: $ 5,000,000 | E47: 10 | F47: $ 500,000
C48: Gastos de organización | D48: $ 10,000,000 | E48: 5
C49: Equipos de Computación | D49: $ 1,500,000 | E49: 3
B50: Total año 8 | D50: =SUM(D45:D49) -> $ 49,000,000 | F50: =SUM(F45:F49) -> $ 1,100,000

Sheet ESP Proyectado
B2: Estado de Situación Patrimonial Proyectado
C3: Período 1 | D3: Período 2 | E3: Período 3 | F3: Período 4 | G3: Período 5 | H3: Período 6 | I3: Período 7 | J3: Período 8
B4: ACTIVO CORRIENTE
B5: Caja y Bancos | C5: ='Cash Flow Proyectado'!D25 -> $ 2,180,216 | D5: =C5+'Cash Flow Proyectado'!E25 -> $ 27,376,791 | E5: =D5+'Cash Flow Proyectado'!F25 -> $ 81,950,427 | F5: =E5+'Cash Flow Proyectado'!G25 -> $ 168,769,098 | G5: =F5+'Cash Flow Proyectado'!H25 -> $ 273,486,266 | H5: =G5+'Cash Flow Proyectado'!I25 -> $ 402,551,522 | I5: =H5+'Cash Flow Proyectado'!J25 -> $ 561,796,076 | J5: =I5+'Cash Flow Proyectado'!K25 -> $ 756,290,554
B6: Créditos por ventas | C6: ='Subp. Ventas y Cobros'!H139 -> $ 7,168,234 | D6: ='Subp. Ventas y Cobros'!I140 -> $ 14,455,938 | E6: ='Subp. Ventas y Cobros'!J141 -> $ 26,502,553 | F6: ='Subp. Ventas y Cobros'!K142 -> $ 40,813,931 | G6: ='Subp. Ventas y Cobros'!L143 -> $ 46,644,493 | H6: ='Subp. Ventas y Cobros'!M144 -> $ 57,722,559 | I6: ='Subp. Ventas y Cobros'!N145 -> $ 70,549,795 | J6: ='Subp. Ventas y Cobros'!P146 -> $ 85,365,252
B7: Bienes de cambio (1) | C7: 0 | D7: 0 | E7: 0 | F7: 0 | G7: 0 | H7: 0 | I7: 0 | J7: 0
B8: Inversiones | C8: ='Subp. Capital e Inversión'!$I$3+'Subp. Capital e Inversión'!$I$8+'Subp. Capital e Inversión'!$I$9+'Subp. Capital e Inversión'!$I$10+'Subp. Capital e Inversión'!$I$11+'Subp. Capital e Inversión'!$I$12 -> $ 55,270,000 | D8: ='Subp. Capital e Inversión'!$I$3+'Subp. Capital e Inversión'!$I$8+'Subp. Capital e Inversión'!$I$9+'Subp. Capital e Inversión'!$I$10+'Subp. Capital e Inversión'!$I$11+'Subp. Capital e Inversión'!$I$12 -> $ 55,270,000 | E8: ='Subp. Capital e Inversión'!$I$3+'Subp. Capital e Inversión'!$I$8+'Subp. Capital e Inversión'!$I$9+'Subp. Capital e Inversión'!$I$10+'Subp. Capital e Inversión'!$I$11+'Subp. Capital e Inversión'!$I$12 -> $ 55,270,000 | F8: ='Subp. Capital e Inversión'!$I$3+'Subp. Capital e Inversión'!$I$8+'Subp. Capital e Inversión'!$I$9+'Subp. Capital e Inversión'!$I$10+'Subp. Capital e Inversión'!$I$11+'Subp. Capital e Inversión'!$I$12 -> $ 55,270,000 | G8: ='Subp. Capital e Inversión'!$I$3+'Subp. Capital e Inversión'!$I$8+'Subp. Capital e Inversión'!$I$9+'Subp. Capital e Inversión'!$I$10+'Subp. Capital e Inversión'!$I$11+'Subp. Capital e Inversión'!$I$12 -> $ 55,270,000 | H8: ='Subp. Capital e Inversión'!$I$3+'Subp. Capital e Inversión'!$I$8+'Subp. Capital e Inversión'!$I$9+'Subp. Capital e Inversión'!$I$10+'Subp. Capital e Inversión'!$I$11+'Subp. Capital e Inversión'!$I$12 -> $ 55,270,000 | I8: ='Subp. Capital e Inversión'!$I$3+'Subp. Capital e Inversión'!$I$8+'Subp. Capital e Inversión'!$I$9+'Subp. Capital e Inversión'!$I$10+'Subp. Capital e Inversión'!$I$11+'Subp. Capital e Inversión'!$I$12 -> $ 55,270,000 | J8: ='Subp. Capital e Inversión'!$I$3+'Subp. Capital e Inversión'!$I$8+'Subp. Capital e Inversión'!$I$9+'Subp. Capital e Inversión'!$I$10+'Subp. Capital e Inversión'!$I$11+'Subp. Capital e Inversión'!$I$12 -> $ 55,270,000
B9: TOTAL ACTIVO CORRIENTE | C9: =SUM(C5:C8) -> $ 64,618,449 | D9: $ 97,102,729 | E9: $ 163,722,979 | F9: $ 264,853,029 | G9: $ 375,400,758 | H9: $ 515,544,081 | I9: $ 687,615,871 | J9: $ 896,925,806
B11: ACTIVO NO CORRIENTE
B12: Bienes de Uso | C12: ='Subp. Capital e Inversión'!$I$5+'Subp. Capital e Inversión'!$I$6+'Subp. Capital e Inversión'!$I$7+'Subp. Capital e Inversión'!$I$4 -> $ 39,000,000 | D12: ='Subp. Capital e Inversión'!$I$5+'Subp. Capital e Inversión'!$I$6+'Subp. Capital e Inversión'!$I$7+'Subp. Capital e Inversión'!$I$4 -> $ 39,000,000 | E12: ='Subp. Capital e Inversión'!$I$5+'Subp. Capital e Inversión'!$I$6+'Subp. Capital e Inversión'!$I$7+'Subp. Capital e Inversión'!$I$4 -> $ 39,000,000 | F12: ='Subp. Capital e Inversión'!$I$5+'Subp. Capital e Inversión'!$I$6+'Subp. Capital e Inversión'!$I$7+'Subp. Capital e Inversión'!$I$4 -> $ 39,000,000 | G12: ='Subp. Capital e Inversión'!$I$5+'Subp. Capital e Inversión'!$I$6+'Subp. Capital e Inversión'!$I$7+'Subp. Capital e Inversión'!$I$4 -> $ 39,000,000 | H12: ='Subp. Capital e Inversión'!$I$5+'Subp. Capital e Inversión'!$I$6+'Subp. Capital e Inversión'!$I$7+'Subp. Capital e Inversión'!$I$4 -> $ 39,000,000 | I12: ='Subp. Capital e Inversión'!$I$5+'Subp. Capital e Inversión'!$I$6+'Subp. Capital e Inversión'!$I$7+'Subp. Capital e Inversión'!$I$4 -> $ 39,000,000 | J12: ='Subp. Capital e Inversión'!$I$5+'Subp. Capital e Inversión'!$I$6+'Subp. Capital e Inversión'!$I$7+'Subp. Capital e Inversión'!$I$4 -> $ 39,000,000
B14: TOTAL ACTIVO NO CORRIENTE | C14: =SUM(C12) -> $ 39,000,000 | D14: $ 39,000,000 | E14: $ 39,000,000 | F14: $ 39,000,000 | G14: $ 39,000,000 | H14: $ 39,000,000 | I14: $ 39,000,000 | J14: $ 39,000,000
B16: TOTAL ACTIVO | C16: =SUM(C9+C14) -> $ 103,618,449 | D16: $ 136,102,729 | E16: $ 202,722,979 | F16: $ 303,853,029 | G16: $ 414,400,758 | H16: $ 554,544,081 | I16: $ 726,615,871 | J16: $ 935,925,806
B18: PASIVO CORRIENTE
B19: Deudas comerciales | C19: ='Subp. Compras y Pagos'!H139 -> $ 2,970,792 | D19: ='Subp. Compras y Pagos'!I140 -> $ 5,991,097 | E19: ='Subp. Compras y Pagos'!J141 -> $ 10,983,678 | F19: ='Subp. Compras y Pagos'!K142 -> $ 16,914,864 | G19: ='Subp. Compras y Pagos'!L143 -> $ 19,331,274 | H19: ='Subp. Compras y Pagos'!M144 -> $ 23,922,451 | I19: ='Subp. Compras y Pagos'!N145 -> $ 29,238,551 | J19: ='Subp. Compras y Pagos'!P146 -> $ 35,378,647
B20: Remuneraciones y cargas sociales (2) | C20: 0 | D20: 0 | E20: 0 | F20: 0 | G20: 0 | H20: 0 | I20: 0 | J20: 0
B21: Deudas fiscales (IVA e IIBB) | C21: ='Subp. IVA e IIBB'!G15+'Subp. IVA e IIBB'!L15 -> $ 906,206 | D21: ='Subp. IVA e IIBB'!G31+'Subp. IVA e IIBB'!L31 -> $ 1,827,516 | E21: ='Subp. IVA e IIBB'!G47+'Subp. IVA e IIBB'!L47 -> $ 3,350,446 | F21: ='Subp. IVA e IIBB'!G63+'Subp. IVA e IIBB'!L63 -> $ 5,159,688 | G21: ='Subp. IVA e IIBB'!G79+'Subp. IVA e IIBB'!L79 -> $ 5,896,786 | H21: ='Subp. IVA e IIBB'!G95+'Subp. IVA e IIBB'!L95 -> $ 7,297,272 | I21: ='Subp. IVA e IIBB'!G111+'Subp. IVA e IIBB'!L111 -> $ 8,918,888 | J21: ='Subp. IVA e IIBB'!G127+'Subp. IVA e IIBB'!L127 -> $ 10,791,855
B22: Impuesto a las ganancias | C22: ='Cash Flow Proyectado'!D45 -> 0 | D22: ='Cash Flow Proyectado'!E45 -> $ 7,383,802 | E22: ='Cash Flow Proyectado'!F45 -> $ 20,250,103 | F22: ='Cash Flow Proyectado'!G45 -> $ 36,214,071 | G22: ='Cash Flow Proyectado'!H45 -> $ 48,065,934 | H22: ='Cash Flow Proyectado'!I45 -> $ 61,610,916 | I22: ='Cash Flow Proyectado'!J45 -> $ 76,914,415 | J22: ='Cash Flow Proyectado'!K45 -> $ 94,608,112
B23: TOTAL PASIVO CORRIENTE | C23: =SUM(C19:C22) -> $ 3,876,998 | D23: $ 15,202,415 | E23: $ 34,584,228 | F23: $ 58,288,623 | G23: $ 73,293,993 | H23: $ 92,830,640 | I23: $ 115,071,855 | J23: $ 140,778,614
B25: PASIVO NO CORRIENTE | C25: 0 | D25: 0 | E25: 0 | F25: 0 | G25: 0 | H25: 0 | I25: 0 | J25: 0
B27: TOTAL PASIVO NO CORRIENTE | C27: =SUM(C25) -> 0 | D27: 0 | E27: 0 | F27: 0 | G27: 0 | H27: 0 | I27: 0 | J27: 0
B29: TOTAL PASIVO | C29: =SUM(C23+C27) -> $ 3,876,998 | D29: $ 15,202,415 | E29: $ 34,584,228 | F29: $ 58,288,623 | G29: $ 73,293,993 | H29: $ 92,830,640 | I29: $ 115,071,855 | J29: $ 140,778,614
B31: PATRIMONIO NETO
B32: Capital | C32: ='Hoja de datos'!$C$21 -> $ 94,270,000 | D32: ='Hoja de datos'!$C$21 -> $ 94,270,000 | E32: ='Hoja de datos'!$C$21 -> $ 94,270,000 | F32: ='Hoja de datos'!$C$21 -> $ 94,270,000 | G32: ='Hoja de datos'!$C$21 -> $ 94,270,000 | H32: ='Hoja de datos'!$C$21 -> $ 94,270,000 | I32: ='Hoja de datos'!$C$21 -> $ 94,270,000 | J32: ='Hoja de datos'!$C$21 -> $ 94,270,000
B33: Resultados no asignados | C33: 0 | D33: =C33+C34 -> $ 5,471,451 | E33: $ 26,630,314 | F33: $ 73,868,752 | G33: $ 151,294,406 | H33: $ 246,836,765 | I33: $ 367,443,441 | J33: $ 517,274,017
B34: Resultado del ejercicio | C34: ='EERR Proyectado'!C23 -> $ 5,471,451 | D34: ='EERR Proyectado'!D23 -> $ 21,158,863 | E34: ='EERR Proyectado'!E23 -> $ 47,238,438 | F34: ='EERR Proyectado'!F23 -> $ 77,425,654 | G34: ='EERR Proyectado'!G23 -> $ 95,542,360 | H34: ='EERR Proyectado'!H23 -> $ 120,606,676 | I34: ='EERR Proyectado'!I23 -> $ 149,830,575 | J34: ='EERR Proyectado'!J23 -> $ 183,603,175
B36: TOTAL PATRIMONIO NETO | C36: =SUM(C32:C34) -> $ 99,741,451 | D36: $ 120,900,314 | E36: $ 168,138,752 | F36: $ 245,564,406 | G36: $ 341,106,765 | H36: $ 461,713,441 | I36: $ 611,544,017 | J36: $ 795,147,191
B38: PASIVO + PN | C38: =SUM(C29+C36) -> $ 103,618,449 | D38: $ 136,102,729 | E38: $ 202,722,979 | F38: $ 303,853,029 | G38: $ 414,400,758 | H38: $ 554,544,081 | I38: $ 726,615,871 | J38: $ 935,925,806
B40: Igualdad Patrimonial: | C40: =C16-C38 -> 0 | D40: 0 | E40: 0 | F40: 0 | G40: 0 | H40: 0 | I40: 0 | J40: 0
B42: (1) Política de inventario: Just in Time
B43: (2) Los salarios se pagan el último día hábil de cada mes

Sheet EERR Proyectado
B2: Estado de Resultados Proyectado
C3: Período 1 | D3: Período 2 | E3: Período 3 | F3: Período 4 | G3: Período 5 | H3: Período 6 | I3: Período 7 | J3: Período 8
B4: Ventas Brutas | C4: ='Subp. Ventas y Cobros'!D139 -> $ 49,368,000 | D4: ='Subp. Ventas y Cobros'!D140 -> $ 110,781,792 | E4: ='Subp. Ventas y Cobros'!D141 -> $ 203,099,952 | F4: ='Subp. Ventas y Cobros'!D142 -> $ 312,773,926 | G4: ='Subp. Ventas y Cobros'!D143 -> $ 385,491,674 | H4: ='Subp. Ventas y Cobros'!D144 -> $ 477,045,946 | I4: ='Subp. Ventas y Cobros'!D145 -> $ 583,056,156 | J4: ='Subp. Ventas y Cobros'!D146 -> $ 705,497,949
B5: IIBB | C5: ='Subp. IVA e IIBB'!L132 -> $ 1,481,040 | D5: ='Subp. IVA e IIBB'!L133 -> $ 3,323,454 | E5: ='Subp. IVA e IIBB'!L134 -> $ 6,092,999 | F5: ='Subp. IVA e IIBB'!L135 -> $ 9,383,218 | G5: ='Subp. IVA e IIBB'!L136 -> $ 11,564,750 | H5: ='Subp. IVA e IIBB'!L137 -> $ 14,311,378 | I5: ='Subp. IVA e IIBB'!L138 -> $ 17,491,685 | J5: ='Subp. IVA e IIBB'!L139 -> $ 21,164,938
B6: Ventas Netas | C6: =C4-C5 -> $ 47,886,960 | D6: $ 107,458,338 | E6: $ 197,006,953 | F6: $ 303,390,708 | G6: $ 373,926,923 | H6: $ 462,734,568 | I6: $ 565,564,472 | J6: $ 684,333,011
B7: CMV | C7: ='Subp. CMV'!F132 -> $ 20,460,000 | D7: ='Subp. CMV'!F133 -> $ 45,912,240 | E7: ='Subp. CMV'!F134 -> $ 84,172,440 | F7: ='Subp. CMV'!F135 -> $ 129,625,558 | G7: ='Subp. CMV'!F136 -> $ 159,762,592 | H7: ='Subp. CMV'!F137 -> $ 197,706,208 | I7: ='Subp. CMV'!F138 -> $ 241,640,920 | J7: ='Subp. CMV'!F139 -> $ 292,385,514
B8: Utilidad bruta $ | C8: =C6-C7 -> $ 27,426,960 | D8: $ 61,546,098 | E8: $ 112,834,513 | F8: $ 173,765,151 | G8: $ 214,164,331 | H8: $ 265,028,360 | I8: $ 323,923,551 | J8: $ 391,947,497
B10: Gastos Administrativos | C10: ='Subp. Gastos'!C17 -> $ 3,249,582 | D10: ='Subp. Gastos'!D17 -> $ 4,075,861 | E10: ='Subp. Gastos'!E17 -> $ 4,134,954 | F10: ='Subp. Gastos'!F17 -> $ 4,197,002 | G10: ='Subp. Gastos'!G17 -> $ 4,262,152 | H10: ='Subp. Gastos'!H17 -> $ 4,330,559 | I10: ='Subp. Gastos'!I17 -> $ 4,402,387 | J10: ='Subp. Gastos'!J17 -> $ 4,477,807
B11: Gastos Comerciales | C11: ='Subp. Gastos'!C34 -> $ 6,524,354 | D11: ='Subp. Gastos'!D34 -> $ 16,662,920 | E11: ='Subp. Gastos'!E34 -> $ 28,859,134 | F11: ='Subp. Gastos'!F34 -> $ 43,484,945 | G11: ='Subp. Gastos'!G34 -> $ 53,754,233 | H11: ='Subp. Gastos'!H34 -> $ 65,839,573 | I11: ='Subp. Gastos'!I34 -> $ 80,029,506 | J11: ='Subp. Gastos'!J34 -> $ 96,400,403
B12: Otros conceptos operativos | C12: ='Subp. Gastos'!C25+'Subp. Gastos'!C40 -> $ 12,181,573 | D12: ='Subp. Gastos'!D25+'Subp. Gastos'!D40 -> $ 12,264,652 | E12: ='Subp. Gastos'!E25+'Subp. Gastos'!E40 -> $ 12,351,885 | F12: ='Subp. Gastos'!F25+'Subp. Gastos'!F40 -> $ 12,443,479 | G12: ='Subp. Gastos'!G25+'Subp. Gastos'!G40 -> $ 12,539,653 | H12: ='Subp. Gastos'!H25+'Subp. Gastos'!H40 -> $ 12,640,635 | I12: ='Subp. Gastos'!I25+'Subp. Gastos'!I40 -> $ 12,746,667 | J12: ='Subp. Gastos'!J25+'Subp. Gastos'!J40 -> $ 12,858,001
B13: Resultado Operativo | C13: =C8-C10-C11-C12 -> $ 5,471,451 | D13: $ 28,542,665 | E13: $ 67,488,540 | F13: $ 113,639,725 | G13: $ 143,608,293 | H13: $ 182,217,592 | I13: $ 226,744,990 | J13: $ 278,211,287
B15: Otros ingresos/egresos | C15: 0 | D15: 0 | E15: 0 | F15: 0 | G15: 0 | H15: 0 | I15: 0 | J15: 0
B16: Resultados Financieros | C16: 0 | D16: 0 | E16: 0 | F16: 0 | G16: 0 | H16: 0 | I16: 0 | J16: 0
B17: Resultado antes de intereses e impuestos (EBIT) | C17: =C13-C15-C16 -> $ 5,471,451 | D17: $ 28,542,665 | E17: $ 67,488,540 | F17: $ 113,639,725 | G17: $ 143,608,293 | H17: $ 182,217,592 | I17: $ 226,744,990 | J17: $ 278,211,287
B19: Resultados financieros de terceros | C19: 0 | D19: 0 | E19: 0 | F19: 0 | G19: 0 | H19: 0 | I19: 0 | J19: 0
B20: Resultado antes de impuesto (EBT) | C20: =C17-C19 -> $ 5,471,451 | D20: $ 28,542,665 | E20: $ 67,488,540 | F20: $ 113,639,725 | G20: $ 143,608,293 | H20: $ 182,217,592 | I20: $ 226,744,990 | J20: $ 278,211,287
B22: Impuesto a las ganancias | C22: ='Cash Flow Proyectado'!D45 -> 0 | D22: ='Cash Flow Proyectado'!E45 -> $ 7,383,802 | E22: ='Cash Flow Proyectado'!F45 -> $ 20,250,103 | F22: ='Cash Flow Proyectado'!G45 -> $ 36,214,071 | G22: ='Cash Flow Proyectado'!H45 -> $ 48,065,934 | H22: ='Cash Flow Proyectado'!I45 -> $ 61,610,916 | I22: ='Cash Flow Proyectado'!J45 -> $ 76,914,415 | J22: ='Cash Flow Proyectado'!K45 -> $ 94,608,112
B23: Resultado del Ejercicio | C23: =C20-C22 -> $ 5,471,451 | D23: $ 21,158,863 | E23: $ 47,238,438 | F23: $ 77,425,654 | G23: $ 95,542,360 | H23: $ 120,606,676 | I23: $ 149,830,575 | J23: $ 183,603,175
B24: Margen neto (% sobre ventas) | C24: =C23/C6 -> 11% | D24: 20% | E24: 24% | F24: 26% | G24: 26% | H24: 26% | I24: 26% | J24: 27%
